Organisation Name,Organisation Code,Unique Ref No ,Effective Date,Directorate where expenditure incurred, Supplier Name ,Payment Date,Net amount,Purpose of Spend,"Procurement Classification
(Higher Level)","Procurement Classification
(Lower Level)",CAPITAL / REVEUNE
Walsall Council,http://opendatacommunities.org/id/metropolitan-district-council/walsall ,WC152-1,31.07.2023,RESOURCES AND TRANSFORMATION,11KBW,10/07/2023,"-16,214.17",6610-School Only Payments - Catering,THIRD PARTY PAYMENTS,INDEPENDENT UNIT WITHIN COUNCIL,REVENUE
Walsall Council,http://opendatacommunities.org/id/metropolitan-district-council/walsall ,WC152-2,31.07.2023,RESOURCES AND TRANSFORMATION,11KBW,10/07/2023,"16,214.17",6610-School Only Payments - Catering,THIRD PARTY PAYMENTS,INDEPENDENT UNIT WITHIN COUNCIL,REVENUE
Walsall Council,http://opendatacommunities.org/id/metropolitan-district-council/walsall ,WC152-3,31.07.2023,CHILDRENS,247 CARS (WILLENHALL) LIMITED,17/07/2023,"2,950.00",6241-Hire of Vehicle with Driver,TRANSPORT,DIRECT TRANSPORT COSTS,REVENUE
Walsall Council,http://opendatacommunities.org/id/metropolitan-district-council/walsall ,WC152-4,31.07.2023,CHILDRENS,247 CARS (WILLENHALL) LIMITED,17/07/2023,"1,850.00",6241-Hire of Vehicle with Driver,TRANSPORT,DIRECT TRANSPORT COSTS,REVENUE
Walsall Council,http://opendatacommunities.org/id/metropolitan-district-council/walsall ,WC152-5,31.07.2023,CHILDRENS,247 CARS (WILLENHALL) LIMITED,17/07/2023,"2,584.00",6241-Hire of Vehicle with Driver,TRANSPORT,DIRECT TRANSPORT COSTS,REVENUE
Walsall Council,http://opendatacommunities.org/id/metropolitan-district-council/walsall ,WC152-6,31.07.2023,CHILDRENS,247 CARS (WILLENHALL) LIMITED,17/07/2023,"2,158.40",6241-Hire of Vehicle with Driver,TRANSPORT,DIRECT TRANSPORT COSTS,REVENUE
Walsall Council,http://opendatacommunities.org/id/metropolitan-district-council/walsall ,WC152-7,31.07.2023,CHILDRENS,247 CARS (WILLENHALL) LIMITED,17/07/2023,"2,158.40",6241-Hire of Vehicle with Driver,TRANSPORT,DIRECT TRANSPORT COSTS,REVENUE
Walsall Council,http://opendatacommunities.org/id/metropolitan-district-council/walsall ,WC152-8,31.07.2023,CHILDRENS,247 CARS (WILLENHALL) LIMITED,17/07/2023,"2,500.40",6241-Hire of Vehicle with Driver,TRANSPORT,DIRECT TRANSPORT COSTS,REVENUE
Walsall Council,http://opendatacommunities.org/id/metropolitan-district-council/walsall ,WC152-9,31.07.2023,CHILDRENS,247 CARS (WILLENHALL) LIMITED,17/07/2023,"1,690.00",6241-Hire of Vehicle with Driver,TRANSPORT,DIRECT TRANSPORT COSTS,REVENUE
Walsall Council,http://opendatacommunities.org/id/metropolitan-district-council/walsall ,WC152-10,31.07.2023,CHILDRENS,247 CARS (WILLENHALL) LIMITED,17/07/2023,"2,272.00",6241-Hire of Vehicle with Driver,TRANSPORT,DIRECT TRANSPORT COSTS,REVENUE
Walsall Council,http://opendatacommunities.org/id/metropolitan-district-council/walsall ,WC152-11,31.07.2023,CHILDRENS,247 CARS (WILLENHALL) LIMITED,17/07/2023,"1,057.30",6241-Hire of Vehicle with Driver,TRANSPORT,DIRECT TRANSPORT COSTS,REVENUE
Walsall Council,http://opendatacommunities.org/id/metropolitan-district-council/walsall ,WC152-12,31.07.2023,CHILDRENS,247 CARS (WILLENHALL) LIMITED,17/07/2023,"1,850.00",6241-Hire of Vehicle with Driver,TRANSPORT,DIRECT TRANSPORT COSTS,REVENUE
Walsall Council,http://opendatacommunities.org/id/metropolitan-district-council/walsall ,WC152-13,31.07.2023,CHILDRENS,247 CARS (WILLENHALL) LIMITED,17/07/2023,"2,885.00",6241-Hire of Vehicle with Driver,TRANSPORT,DIRECT TRANSPORT COSTS,REVENUE
Walsall Council,http://opendatacommunities.org/id/metropolitan-district-council/walsall ,WC152-14,31.07.2023,CHILDRENS,247 CARS (WILLENHALL) LIMITED,17/07/2023,"1,850.00",6241-Hire of Vehicle with Driver,TRANSPORT,DIRECT TRANSPORT COSTS,REVENUE
Walsall Council,http://opendatacommunities.org/id/metropolitan-district-council/walsall ,WC152-15,31.07.2023,CHILDRENS,247 CARS (WILLENHALL) LIMITED,17/07/2023,"1,850.00",6241-Hire of Vehicle with Driver,TRANSPORT,DIRECT TRANSPORT COSTS,REVENUE
Walsall Council,http://opendatacommunities.org/id/metropolitan-district-council/walsall ,WC152-16,31.07.2023,CHILDRENS,247 CARS (WILLENHALL) LIMITED,17/07/2023,"3,900.00",6241-Hire of Vehicle with Driver,TRANSPORT,DIRECT TRANSPORT COSTS,REVENUE
Walsall Council,http://opendatacommunities.org/id/metropolitan-district-council/walsall ,WC152-17,31.07.2023,CHILDRENS,247 CARS (WILLENHALL) LIMITED,17/07/2023,"1,761.20",6241-Hire of Vehicle with Driver,TRANSPORT,DIRECT TRANSPORT COSTS,REVENUE
Walsall Council,http://opendatacommunities.org/id/metropolitan-district-council/walsall ,WC152-18,31.07.2023,CHILDRENS,247 CARS (WILLENHALL) LIMITED,17/07/2023,"2,400.00",6241-Hire of Vehicle with Driver,TRANSPORT,DIRECT TRANSPORT COSTS,REVENUE
Walsall Council,http://opendatacommunities.org/id/metropolitan-district-council/walsall ,WC152-19,31.07.2023,CHILDRENS,247 CARS (WILLENHALL) LIMITED,17/07/2023,"2,500.40",6241-Hire of Vehicle with Driver,TRANSPORT,DIRECT TRANSPORT COSTS,REVENUE
Walsall Council,http://opendatacommunities.org/id/metropolitan-district-council/walsall ,WC152-20,31.07.2023,CHILDRENS,247 CARS (WILLENHALL) LIMITED,17/07/2023,"2,158.40",6241-Hire of Vehicle with Driver,TRANSPORT,DIRECT TRANSPORT COSTS,REVENUE
Walsall Council,http://opendatacommunities.org/id/metropolitan-district-council/walsall ,WC152-21,31.07.2023,CHILDRENS,247 CARS (WILLENHALL) LIMITED,17/07/2023,"1,088.00",6241-Hire of Vehicle with Driver,TRANSPORT,DIRECT TRANSPORT COSTS,REVENUE
Walsall Council,http://opendatacommunities.org/id/metropolitan-district-council/walsall ,WC152-22,31.07.2023,CHILDRENS,247 CARS (WILLENHALL) LIMITED,17/07/2023,"1,330.00",6241-Hire of Vehicle with Driver,TRANSPORT,DIRECT TRANSPORT COSTS,REVENUE
Walsall Council,http://opendatacommunities.org/id/metropolitan-district-council/walsall ,WC152-23,31.07.2023,CHILDRENS,247 CARS (WILLENHALL) LIMITED,17/07/2023,"2,140.00",6241-Hire of Vehicle with Driver,TRANSPORT,DIRECT TRANSPORT COSTS,REVENUE
Walsall Council,http://opendatacommunities.org/id/metropolitan-district-council/walsall ,WC152-24,31.07.2023,CHILDRENS,247 CARS (WILLENHALL) LIMITED,17/07/2023,"1,461.60",6241-Hire of Vehicle with Driver,TRANSPORT,DIRECT TRANSPORT COSTS,REVENUE
Walsall Council,http://opendatacommunities.org/id/metropolitan-district-council/walsall ,WC152-25,31.07.2023,CHILDRENS,247 CARS (WILLENHALL) LIMITED,17/07/2023,"2,158.40",6241-Hire of Vehicle with Driver,TRANSPORT,DIRECT TRANSPORT COSTS,REVENUE
Walsall Council,http://opendatacommunities.org/id/metropolitan-district-council/walsall ,WC152-26,31.07.2023,CHILDRENS,247 CARS (WILLENHALL) LIMITED,17/07/2023,"1,491.60",6241-Hire of Vehicle with Driver,TRANSPORT,DIRECT TRANSPORT COSTS,REVENUE
Walsall Council,http://opendatacommunities.org/id/metropolitan-district-council/walsall ,WC152-27,31.07.2023,CHILDRENS,247 CARS (WILLENHALL) LIMITED,17/07/2023,"2,400.60",6241-Hire of Vehicle with Driver,TRANSPORT,DIRECT TRANSPORT COSTS,REVENUE
Walsall Council,http://opendatacommunities.org/id/metropolitan-district-council/walsall ,WC152-28,31.07.2023,CHILDRENS,247 CARS (WILLENHALL) LIMITED,17/07/2023,"1,097.60",6241-Hire of Vehicle with Driver,TRANSPORT,DIRECT TRANSPORT COSTS,REVENUE
Walsall Council,http://opendatacommunities.org/id/metropolitan-district-council/walsall ,WC152-29,31.07.2023,CHILDRENS,247 CARS (WILLENHALL) LIMITED,17/07/2023,615.2,6241-Hire of Vehicle with Driver,TRANSPORT,DIRECT TRANSPORT COSTS,REVENUE
Walsall Council,http://opendatacommunities.org/id/metropolitan-district-council/walsall ,WC152-30,31.07.2023,CHILDRENS,247 CARS (WILLENHALL) LIMITED,17/07/2023,"2,158.40",6241-Hire of Vehicle with Driver,TRANSPORT,DIRECT TRANSPORT COSTS,REVENUE
Walsall Council,http://opendatacommunities.org/id/metropolitan-district-council/walsall ,WC152-31,31.07.2023,CHILDRENS,247 CARS (WILLENHALL) LIMITED,17/07/2023,"2,158.40",6241-Hire of Vehicle with Driver,TRANSPORT,DIRECT TRANSPORT COSTS,REVENUE
Walsall Council,http://opendatacommunities.org/id/metropolitan-district-council/walsall ,WC152-32,31.07.2023,CHILDRENS,247 CARS (WILLENHALL) LIMITED,17/07/2023,"2,158.40",6241-Hire of Vehicle with Driver,TRANSPORT,DIRECT TRANSPORT COSTS,REVENUE
Walsall Council,http://opendatacommunities.org/id/metropolitan-district-council/walsall ,WC152-33,31.07.2023,CHILDRENS,247 CARS (WILLENHALL) LIMITED,17/07/2023,"1,520.00",6241-Hire of Vehicle with Driver,TRANSPORT,DIRECT TRANSPORT COSTS,REVENUE
Walsall Council,http://opendatacommunities.org/id/metropolitan-district-council/walsall ,WC152-34,31.07.2023,CHILDRENS,247 CARS (WILLENHALL) LIMITED,17/07/2023,"2,554.00",6241-Hire of Vehicle with Driver,TRANSPORT,DIRECT TRANSPORT COSTS,REVENUE
Walsall Council,http://opendatacommunities.org/id/metropolitan-district-council/walsall ,WC152-35,31.07.2023,CHILDRENS,247 CARS (WILLENHALL) LIMITED,17/07/2023,"1,696.32",6241-Hire of Vehicle with Driver,TRANSPORT,DIRECT TRANSPORT COSTS,REVENUE
Walsall Council,http://opendatacommunities.org/id/metropolitan-district-council/walsall ,WC152-36,31.07.2023,CHILDRENS,247 CARS (WILLENHALL) LIMITED,17/07/2023,567.6,6241-Hire of Vehicle with Driver,TRANSPORT,DIRECT TRANSPORT COSTS,REVENUE
Walsall Council,http://opendatacommunities.org/id/metropolitan-district-council/walsall ,WC152-37,31.07.2023,RESOURCES AND TRANSFORMATION,3 SPIRIT UK TRAINING & CONSULTANCY,31/07/2023,700,6625-Consultant Fees,SUPPLIES & SERVICES,SERVICES,REVENUE
Walsall Council,http://opendatacommunities.org/id/metropolitan-district-council/walsall ,WC152-38,31.07.2023,ADULT SOCIAL CARE,5 CARE SERVICES LTD,04/07/2023,756,6541-Domiciliary Care,THIRD PARTY PAYMENTS,PRIVATE CONTRACTOR,REVENUE
Walsall Council,http://opendatacommunities.org/id/metropolitan-district-council/walsall ,WC152-39,31.07.2023,ADULT SOCIAL CARE,5 CARE SERVICES LTD,04/07/2023,328.5,6541-Domiciliary Care,THIRD PARTY PAYMENTS,PRIVATE CONTRACTOR,REVENUE
Walsall Council,http://opendatacommunities.org/id/metropolitan-district-council/walsall ,WC152-40,31.07.2023,ADULT SOCIAL CARE,5 CARE SERVICES LTD,04/07/2023,283.5,6541-Domiciliary Care,THIRD PARTY PAYMENTS,PRIVATE CONTRACTOR,REVENUE
Walsall Council,http://opendatacommunities.org/id/metropolitan-district-council/walsall ,WC152-41,31.07.2023,ADULT SOCIAL CARE,5 CARE SERVICES LTD,04/07/2023,432,6541-Domiciliary Care,THIRD PARTY PAYMENTS,PRIVATE CONTRACTOR,REVENUE
Walsall Council,http://opendatacommunities.org/id/metropolitan-district-council/walsall ,WC152-42,31.07.2023,ADULT SOCIAL CARE,5 CARE SERVICES LTD,04/07/2023,630,6541-Domiciliary Care,THIRD PARTY PAYMENTS,PRIVATE CONTRACTOR,REVENUE
Walsall Council,http://opendatacommunities.org/id/metropolitan-district-council/walsall ,WC152-43,31.07.2023,ADULT SOCIAL CARE,5 CARE SERVICES LTD,04/07/2023,360,6541-Domiciliary Care,THIRD PARTY PAYMENTS,PRIVATE CONTRACTOR,REVENUE
Walsall Council,http://opendatacommunities.org/id/metropolitan-district-council/walsall ,WC152-44,31.07.2023,ADULT SOCIAL CARE,5 CARE SERVICES LTD,04/07/2023,378,6541-Domiciliary Care,THIRD PARTY PAYMENTS,PRIVATE CONTRACTOR,REVENUE
Walsall Council,http://opendatacommunities.org/id/metropolitan-district-council/walsall ,WC152-45,31.07.2023,ADULT SOCIAL CARE,5 CARE SERVICES LTD,04/07/2023,567,6541-Domiciliary Care,THIRD PARTY PAYMENTS,PRIVATE CONTRACTOR,REVENUE
Walsall Council,http://opendatacommunities.org/id/metropolitan-district-council/walsall ,WC152-46,31.07.2023,ADULT SOCIAL CARE,5 CARE SERVICES LTD,04/07/2023,"1,008.00",6541-Domiciliary Care,THIRD PARTY PAYMENTS,PRIVATE CONTRACTOR,REVENUE
Walsall Council,http://opendatacommunities.org/id/metropolitan-district-council/walsall ,WC152-47,31.07.2023,ADULT SOCIAL CARE,5 CARE SERVICES LTD,04/07/2023,360,6541-Domiciliary Care,THIRD PARTY PAYMENTS,PRIVATE CONTRACTOR,REVENUE
Walsall Council,http://opendatacommunities.org/id/metropolitan-district-council/walsall ,WC152-48,31.07.2023,ADULT SOCIAL CARE,5 CARE SERVICES LTD,04/07/2023,567,6541-Domiciliary Care,THIRD PARTY PAYMENTS,PRIVATE CONTRACTOR,REVENUE
Walsall Council,http://opendatacommunities.org/id/metropolitan-district-council/walsall ,WC152-49,31.07.2023,ADULT SOCIAL CARE,5 CARE SERVICES LTD,04/07/2023,283.5,6541-Domiciliary Care,THIRD PARTY PAYMENTS,PRIVATE CONTRACTOR,REVENUE
Walsall Council,http://opendatacommunities.org/id/metropolitan-district-council/walsall ,WC152-50,31.07.2023,ADULT SOCIAL CARE,5 CARE SERVICES LTD,04/07/2023,597,6541-Domiciliary Care,THIRD PARTY PAYMENTS,PRIVATE CONTRACTOR,REVENUE
Walsall Council,http://opendatacommunities.org/id/metropolitan-district-council/walsall ,WC152-51,31.07.2023,ADULT SOCIAL CARE,5 CARE SERVICES LTD,04/07/2023,351,6541-Domiciliary Care,THIRD PARTY PAYMENTS,PRIVATE CONTRACTOR,REVENUE
Walsall Council,http://opendatacommunities.org/id/metropolitan-district-council/walsall ,WC152-52,31.07.2023,ADULT SOCIAL CARE,5 CARE SERVICES LTD,04/07/2023,"1,386.00",6541-Domiciliary Care,THIRD PARTY PAYMENTS,PRIVATE CONTRACTOR,REVENUE
Walsall Council,http://opendatacommunities.org/id/metropolitan-district-council/walsall ,WC152-53,31.07.2023,ADULT SOCIAL CARE,5 CARE SERVICES LTD,04/07/2023,567,6541-Domiciliary Care,THIRD PARTY PAYMENTS,PRIVATE CONTRACTOR,REVENUE
Walsall Council,http://opendatacommunities.org/id/metropolitan-district-council/walsall ,WC152-54,31.07.2023,ADULT SOCIAL CARE,5 CARE SERVICES LTD,04/07/2023,567,6541-Domiciliary Care,THIRD PARTY PAYMENTS,PRIVATE CONTRACTOR,REVENUE
Walsall Council,http://opendatacommunities.org/id/metropolitan-district-council/walsall ,WC152-55,31.07.2023,ADULT SOCIAL CARE,5 CARE SERVICES LTD,04/07/2023,378,6541-Domiciliary Care,THIRD PARTY PAYMENTS,PRIVATE CONTRACTOR,REVENUE
Walsall Council,http://opendatacommunities.org/id/metropolitan-district-council/walsall ,WC152-56,31.07.2023,ADULT SOCIAL CARE,5 CARE SERVICES LTD,04/07/2023,567,6541-Domiciliary Care,THIRD PARTY PAYMENTS,PRIVATE CONTRACTOR,REVENUE
Walsall Council,http://opendatacommunities.org/id/metropolitan-district-council/walsall ,WC152-57,31.07.2023,ADULT SOCIAL CARE,5 CARE SERVICES LTD,04/07/2023,504,6541-Domiciliary Care,THIRD PARTY PAYMENTS,PRIVATE CONTRACTOR,REVENUE
Walsall Council,http://opendatacommunities.org/id/metropolitan-district-council/walsall ,WC152-58,31.07.2023,ADULT SOCIAL CARE,5 CARE SERVICES LTD,04/07/2023,864,6541-Domiciliary Care,THIRD PARTY PAYMENTS,PRIVATE CONTRACTOR,REVENUE
Walsall Council,http://opendatacommunities.org/id/metropolitan-district-council/walsall ,WC152-59,31.07.2023,ADULT SOCIAL CARE,5 CARE SERVICES LTD,04/07/2023,651,6541-Domiciliary Care,THIRD PARTY PAYMENTS,PRIVATE CONTRACTOR,REVENUE
Walsall Council,http://opendatacommunities.org/id/metropolitan-district-council/walsall ,WC152-60,31.07.2023,ADULT SOCIAL CARE,5 CARE SERVICES LTD,04/07/2023,283.5,6541-Domiciliary Care,THIRD PARTY PAYMENTS,PRIVATE CONTRACTOR,REVENUE
Walsall Council,http://opendatacommunities.org/id/metropolitan-district-council/walsall ,WC152-61,31.07.2023,ADULT SOCIAL CARE,5 CARE SERVICES LTD,04/07/2023,262.5,6541-Domiciliary Care,THIRD PARTY PAYMENTS,PRIVATE CONTRACTOR,REVENUE
Walsall Council,http://opendatacommunities.org/id/metropolitan-district-council/walsall ,WC152-62,31.07.2023,ADULT SOCIAL CARE,5 CARE SERVICES LTD,04/07/2023,283.5,6541-Domiciliary Care,THIRD PARTY PAYMENTS,PRIVATE CONTRACTOR,REVENUE
Walsall Council,http://opendatacommunities.org/id/metropolitan-district-council/walsall ,WC152-63,31.07.2023,ADULT SOCIAL CARE,5 CARE SERVICES LTD,04/07/2023,819,6541-Domiciliary Care,THIRD PARTY PAYMENTS,PRIVATE CONTRACTOR,REVENUE
Walsall Council,http://opendatacommunities.org/id/metropolitan-district-council/walsall ,WC152-64,31.07.2023,ADULT SOCIAL CARE,5 CARE SERVICES LTD,04/07/2023,630,6541-Domiciliary Care,THIRD PARTY PAYMENTS,PRIVATE CONTRACTOR,REVENUE
Walsall Council,http://opendatacommunities.org/id/metropolitan-district-council/walsall ,WC152-65,31.07.2023,ADULT SOCIAL CARE,5 CARE SERVICES LTD,04/07/2023,567,6541-Domiciliary Care,THIRD PARTY PAYMENTS,PRIVATE CONTRACTOR,REVENUE
Walsall Council,http://opendatacommunities.org/id/metropolitan-district-council/walsall ,WC152-66,31.07.2023,ADULT SOCIAL CARE,5 CARE SERVICES LTD,04/07/2023,576,6541-Domiciliary Care,THIRD PARTY PAYMENTS,PRIVATE CONTRACTOR,REVENUE
Walsall Council,http://opendatacommunities.org/id/metropolitan-district-council/walsall ,WC152-67,31.07.2023,ADULT SOCIAL CARE,5 CARE SERVICES LTD,04/07/2023,603,6541-Domiciliary Care,THIRD PARTY PAYMENTS,PRIVATE CONTRACTOR,REVENUE
Walsall Council,http://opendatacommunities.org/id/metropolitan-district-council/walsall ,WC152-68,31.07.2023,ADULT SOCIAL CARE,5 CARE SERVICES LTD,04/07/2023,283.5,6541-Domiciliary Care,THIRD PARTY PAYMENTS,PRIVATE CONTRACTOR,REVENUE
Walsall Council,http://opendatacommunities.org/id/metropolitan-district-council/walsall ,WC152-69,31.07.2023,ADULT SOCIAL CARE,5 CARE SERVICES LTD,04/07/2023,864,6541-Domiciliary Care,THIRD PARTY PAYMENTS,PRIVATE CONTRACTOR,REVENUE
Walsall Council,http://opendatacommunities.org/id/metropolitan-district-council/walsall ,WC152-70,31.07.2023,ADULT SOCIAL CARE,5 CARE SERVICES LTD,04/07/2023,360,6541-Domiciliary Care,THIRD PARTY PAYMENTS,PRIVATE CONTRACTOR,REVENUE
Walsall Council,http://opendatacommunities.org/id/metropolitan-district-council/walsall ,WC152-71,31.07.2023,ADULT SOCIAL CARE,5 CARE SERVICES LTD,04/07/2023,774,6541-Domiciliary Care,THIRD PARTY PAYMENTS,PRIVATE CONTRACTOR,REVENUE
Walsall Council,http://opendatacommunities.org/id/metropolitan-district-council/walsall ,WC152-72,31.07.2023,ADULT SOCIAL CARE,5 CARE SERVICES LTD,04/07/2023,756,6541-Domiciliary Care,THIRD PARTY PAYMENTS,PRIVATE CONTRACTOR,REVENUE
Walsall Council,http://opendatacommunities.org/id/metropolitan-district-council/walsall ,WC152-73,31.07.2023,ADULT SOCIAL CARE,5 CARE SERVICES LTD,04/07/2023,328.5,6541-Domiciliary Care,THIRD PARTY PAYMENTS,PRIVATE CONTRACTOR,REVENUE
Walsall Council,http://opendatacommunities.org/id/metropolitan-district-council/walsall ,WC152-74,31.07.2023,ADULT SOCIAL CARE,5 CARE SERVICES LTD,04/07/2023,567,6541-Domiciliary Care,THIRD PARTY PAYMENTS,PRIVATE CONTRACTOR,REVENUE
Walsall Council,http://opendatacommunities.org/id/metropolitan-district-council/walsall ,WC152-75,31.07.2023,ADULT SOCIAL CARE,5 CARE SERVICES LTD,04/07/2023,283.5,6541-Domiciliary Care,THIRD PARTY PAYMENTS,PRIVATE CONTRACTOR,REVENUE
Walsall Council,http://opendatacommunities.org/id/metropolitan-district-council/walsall ,WC152-76,31.07.2023,ADULT SOCIAL CARE,5 CARE SERVICES LTD,04/07/2023,597,6541-Domiciliary Care,THIRD PARTY PAYMENTS,PRIVATE CONTRACTOR,REVENUE
Walsall Council,http://opendatacommunities.org/id/metropolitan-district-council/walsall ,WC152-77,31.07.2023,ADULT SOCIAL CARE,5 CARE SERVICES LTD,04/07/2023,666,6541-Domiciliary Care,THIRD PARTY PAYMENTS,PRIVATE CONTRACTOR,REVENUE
Walsall Council,http://opendatacommunities.org/id/metropolitan-district-council/walsall ,WC152-78,31.07.2023,ADULT SOCIAL CARE,5 CARE SERVICES LTD,04/07/2023,"1,386.00",6541-Domiciliary Care,THIRD PARTY PAYMENTS,PRIVATE CONTRACTOR,REVENUE
Walsall Council,http://opendatacommunities.org/id/metropolitan-district-council/walsall ,WC152-79,31.07.2023,ADULT SOCIAL CARE,5 CARE SERVICES LTD,04/07/2023,630,6541-Domiciliary Care,THIRD PARTY PAYMENTS,PRIVATE CONTRACTOR,REVENUE
Walsall Council,http://opendatacommunities.org/id/metropolitan-district-council/walsall ,WC152-80,31.07.2023,ADULT SOCIAL CARE,5 CARE SERVICES LTD,04/07/2023,567,6541-Domiciliary Care,THIRD PARTY PAYMENTS,PRIVATE CONTRACTOR,REVENUE
Walsall Council,http://opendatacommunities.org/id/metropolitan-district-council/walsall ,WC152-81,31.07.2023,ADULT SOCIAL CARE,5 CARE SERVICES LTD,04/07/2023,567,6541-Domiciliary Care,THIRD PARTY PAYMENTS,PRIVATE CONTRACTOR,REVENUE
Walsall Council,http://opendatacommunities.org/id/metropolitan-district-council/walsall ,WC152-82,31.07.2023,ADULT SOCIAL CARE,5 CARE SERVICES LTD,04/07/2023,567,6541-Domiciliary Care,THIRD PARTY PAYMENTS,PRIVATE CONTRACTOR,REVENUE
Walsall Council,http://opendatacommunities.org/id/metropolitan-district-council/walsall ,WC152-83,31.07.2023,ADULT SOCIAL CARE,5 CARE SERVICES LTD,04/07/2023,504,6541-Domiciliary Care,THIRD PARTY PAYMENTS,PRIVATE CONTRACTOR,REVENUE
Walsall Council,http://opendatacommunities.org/id/metropolitan-district-council/walsall ,WC152-84,31.07.2023,ADULT SOCIAL CARE,5 CARE SERVICES LTD,04/07/2023,864,6541-Domiciliary Care,THIRD PARTY PAYMENTS,PRIVATE CONTRACTOR,REVENUE
Walsall Council,http://opendatacommunities.org/id/metropolitan-district-council/walsall ,WC152-85,31.07.2023,ADULT SOCIAL CARE,5 CARE SERVICES LTD,04/07/2023,651,6541-Domiciliary Care,THIRD PARTY PAYMENTS,PRIVATE CONTRACTOR,REVENUE
Walsall Council,http://opendatacommunities.org/id/metropolitan-district-council/walsall ,WC152-86,31.07.2023,ADULT SOCIAL CARE,5 CARE SERVICES LTD,04/07/2023,283.5,6541-Domiciliary Care,THIRD PARTY PAYMENTS,PRIVATE CONTRACTOR,REVENUE
Walsall Council,http://opendatacommunities.org/id/metropolitan-district-council/walsall ,WC152-87,31.07.2023,ADULT SOCIAL CARE,5 CARE SERVICES LTD,04/07/2023,360,6541-Domiciliary Care,THIRD PARTY PAYMENTS,PRIVATE CONTRACTOR,REVENUE
Walsall Council,http://opendatacommunities.org/id/metropolitan-district-council/walsall ,WC152-88,31.07.2023,ADULT SOCIAL CARE,5 CARE SERVICES LTD,04/07/2023,378,6541-Domiciliary Care,THIRD PARTY PAYMENTS,PRIVATE CONTRACTOR,REVENUE
Walsall Council,http://opendatacommunities.org/id/metropolitan-district-council/walsall ,WC152-89,31.07.2023,ADULT SOCIAL CARE,5 CARE SERVICES LTD,04/07/2023,567,6541-Domiciliary Care,THIRD PARTY PAYMENTS,PRIVATE CONTRACTOR,REVENUE
Walsall Council,http://opendatacommunities.org/id/metropolitan-district-council/walsall ,WC152-90,31.07.2023,ADULT SOCIAL CARE,5 CARE SERVICES LTD,04/07/2023,"1,008.00",6541-Domiciliary Care,THIRD PARTY PAYMENTS,PRIVATE CONTRACTOR,REVENUE
Walsall Council,http://opendatacommunities.org/id/metropolitan-district-council/walsall ,WC152-91,31.07.2023,ADULT SOCIAL CARE,5 CARE SERVICES LTD,04/07/2023,283.5,6541-Domiciliary Care,THIRD PARTY PAYMENTS,PRIVATE CONTRACTOR,REVENUE
Walsall Council,http://opendatacommunities.org/id/metropolitan-district-council/walsall ,WC152-92,31.07.2023,ADULT SOCIAL CARE,5 CARE SERVICES LTD,04/07/2023,262.5,6541-Domiciliary Care,THIRD PARTY PAYMENTS,PRIVATE CONTRACTOR,REVENUE
Walsall Council,http://opendatacommunities.org/id/metropolitan-district-council/walsall ,WC152-93,31.07.2023,ADULT SOCIAL CARE,5 CARE SERVICES LTD,04/07/2023,630,6541-Domiciliary Care,THIRD PARTY PAYMENTS,PRIVATE CONTRACTOR,REVENUE
Walsall Council,http://opendatacommunities.org/id/metropolitan-district-council/walsall ,WC152-94,31.07.2023,ADULT SOCIAL CARE,5 CARE SERVICES LTD,04/07/2023,819,6541-Domiciliary Care,THIRD PARTY PAYMENTS,PRIVATE CONTRACTOR,REVENUE
Walsall Council,http://opendatacommunities.org/id/metropolitan-district-council/walsall ,WC152-95,31.07.2023,ADULT SOCIAL CARE,5 CARE SERVICES LTD,04/07/2023,378,6541-Domiciliary Care,THIRD PARTY PAYMENTS,PRIVATE CONTRACTOR,REVENUE
Walsall Council,http://opendatacommunities.org/id/metropolitan-district-council/walsall ,WC152-96,31.07.2023,ADULT SOCIAL CARE,5 CARE SERVICES LTD,04/07/2023,567,6541-Domiciliary Care,THIRD PARTY PAYMENTS,PRIVATE CONTRACTOR,REVENUE
Walsall Council,http://opendatacommunities.org/id/metropolitan-district-council/walsall ,WC152-97,31.07.2023,ADULT SOCIAL CARE,5 CARE SERVICES LTD,04/07/2023,567,6541-Domiciliary Care,THIRD PARTY PAYMENTS,PRIVATE CONTRACTOR,REVENUE
Walsall Council,http://opendatacommunities.org/id/metropolitan-district-council/walsall ,WC152-98,31.07.2023,ADULT SOCIAL CARE,5 CARE SERVICES LTD,04/07/2023,603,6541-Domiciliary Care,THIRD PARTY PAYMENTS,PRIVATE CONTRACTOR,REVENUE
Walsall Council,http://opendatacommunities.org/id/metropolitan-district-council/walsall ,WC152-99,31.07.2023,ADULT SOCIAL CARE,5 CARE SERVICES LTD,18/07/2023,283.5,6541-Domiciliary Care,THIRD PARTY PAYMENTS,PRIVATE CONTRACTOR,REVENUE
Walsall Council,http://opendatacommunities.org/id/metropolitan-district-council/walsall ,WC152-100,31.07.2023,ADULT SOCIAL CARE,5 CARE SERVICES LTD,18/07/2023,432,6541-Domiciliary Care,THIRD PARTY PAYMENTS,PRIVATE CONTRACTOR,REVENUE
Walsall Council,http://opendatacommunities.org/id/metropolitan-district-council/walsall ,WC152-101,31.07.2023,ADULT SOCIAL CARE,5 CARE SERVICES LTD,18/07/2023,774,6541-Domiciliary Care,THIRD PARTY PAYMENTS,PRIVATE CONTRACTOR,REVENUE
Walsall Council,http://opendatacommunities.org/id/metropolitan-district-council/walsall ,WC152-102,31.07.2023,ADULT SOCIAL CARE,5 CARE SERVICES LTD,18/07/2023,360,6541-Domiciliary Care,THIRD PARTY PAYMENTS,PRIVATE CONTRACTOR,REVENUE
Walsall Council,http://opendatacommunities.org/id/metropolitan-district-council/walsall ,WC152-103,31.07.2023,ADULT SOCIAL CARE,5 CARE SERVICES LTD,18/07/2023,567,6541-Domiciliary Care,THIRD PARTY PAYMENTS,PRIVATE CONTRACTOR,REVENUE
Walsall Council,http://opendatacommunities.org/id/metropolitan-district-council/walsall ,WC152-104,31.07.2023,ADULT SOCIAL CARE,5 CARE SERVICES LTD,18/07/2023,288,6541-Domiciliary Care,THIRD PARTY PAYMENTS,PRIVATE CONTRACTOR,REVENUE
Walsall Council,http://opendatacommunities.org/id/metropolitan-district-council/walsall ,WC152-105,31.07.2023,ADULT SOCIAL CARE,5 CARE SERVICES LTD,18/07/2023,378,6541-Domiciliary Care,THIRD PARTY PAYMENTS,PRIVATE CONTRACTOR,REVENUE
Walsall Council,http://opendatacommunities.org/id/metropolitan-district-council/walsall ,WC152-106,31.07.2023,ADULT SOCIAL CARE,5 CARE SERVICES LTD,18/07/2023,567,6541-Domiciliary Care,THIRD PARTY PAYMENTS,PRIVATE CONTRACTOR,REVENUE
Walsall Council,http://opendatacommunities.org/id/metropolitan-district-council/walsall ,WC152-107,31.07.2023,ADULT SOCIAL CARE,5 CARE SERVICES LTD,18/07/2023,"1,008.00",6541-Domiciliary Care,THIRD PARTY PAYMENTS,PRIVATE CONTRACTOR,REVENUE
Walsall Council,http://opendatacommunities.org/id/metropolitan-district-council/walsall ,WC152-108,31.07.2023,ADULT SOCIAL CARE,5 CARE SERVICES LTD,18/07/2023,283.5,6541-Domiciliary Care,THIRD PARTY PAYMENTS,PRIVATE CONTRACTOR,REVENUE
Walsall Council,http://opendatacommunities.org/id/metropolitan-district-council/walsall ,WC152-109,31.07.2023,ADULT SOCIAL CARE,5 CARE SERVICES LTD,18/07/2023,597,6541-Domiciliary Care,THIRD PARTY PAYMENTS,PRIVATE CONTRACTOR,REVENUE
Walsall Council,http://opendatacommunities.org/id/metropolitan-district-council/walsall ,WC152-110,31.07.2023,ADULT SOCIAL CARE,5 CARE SERVICES LTD,18/07/2023,585,6541-Domiciliary Care,THIRD PARTY PAYMENTS,PRIVATE CONTRACTOR,REVENUE
Walsall Council,http://opendatacommunities.org/id/metropolitan-district-council/walsall ,WC152-111,31.07.2023,ADULT SOCIAL CARE,5 CARE SERVICES LTD,18/07/2023,"1,386.00",6541-Domiciliary Care,THIRD PARTY PAYMENTS,PRIVATE CONTRACTOR,REVENUE
Walsall Council,http://opendatacommunities.org/id/metropolitan-district-council/walsall ,WC152-112,31.07.2023,ADULT SOCIAL CARE,5 CARE SERVICES LTD,18/07/2023,567,6541-Domiciliary Care,THIRD PARTY PAYMENTS,PRIVATE CONTRACTOR,REVENUE
Walsall Council,http://opendatacommunities.org/id/metropolitan-district-council/walsall ,WC152-113,31.07.2023,ADULT SOCIAL CARE,5 CARE SERVICES LTD,18/07/2023,378,6541-Domiciliary Care,THIRD PARTY PAYMENTS,PRIVATE CONTRACTOR,REVENUE
Walsall Council,http://opendatacommunities.org/id/metropolitan-district-council/walsall ,WC152-114,31.07.2023,ADULT SOCIAL CARE,5 CARE SERVICES LTD,18/07/2023,864,6541-Domiciliary Care,THIRD PARTY PAYMENTS,PRIVATE CONTRACTOR,REVENUE
Walsall Council,http://opendatacommunities.org/id/metropolitan-district-council/walsall ,WC152-115,31.07.2023,ADULT SOCIAL CARE,5 CARE SERVICES LTD,18/07/2023,651,6541-Domiciliary Care,THIRD PARTY PAYMENTS,PRIVATE CONTRACTOR,REVENUE
Walsall Council,http://opendatacommunities.org/id/metropolitan-district-council/walsall ,WC152-116,31.07.2023,ADULT SOCIAL CARE,5 CARE SERVICES LTD,18/07/2023,756,6541-Domiciliary Care,THIRD PARTY PAYMENTS,PRIVATE CONTRACTOR,REVENUE
Walsall Council,http://opendatacommunities.org/id/metropolitan-district-council/walsall ,WC152-117,31.07.2023,ADULT SOCIAL CARE,5 CARE SERVICES LTD,18/07/2023,328.5,6541-Domiciliary Care,THIRD PARTY PAYMENTS,PRIVATE CONTRACTOR,REVENUE
Walsall Council,http://opendatacommunities.org/id/metropolitan-district-council/walsall ,WC152-118,31.07.2023,ADULT SOCIAL CARE,5 CARE SERVICES LTD,18/07/2023,504,6541-Domiciliary Care,THIRD PARTY PAYMENTS,PRIVATE CONTRACTOR,REVENUE
Walsall Council,http://opendatacommunities.org/id/metropolitan-district-council/walsall ,WC152-119,31.07.2023,ADULT SOCIAL CARE,5 CARE SERVICES LTD,18/07/2023,-445.5,6541-Domiciliary Care,THIRD PARTY PAYMENTS,PRIVATE CONTRACTOR,REVENUE
Walsall Council,http://opendatacommunities.org/id/metropolitan-district-council/walsall ,WC152-120,31.07.2023,ADULT SOCIAL CARE,5 CARE SERVICES LTD,18/07/2023,262.5,6541-Domiciliary Care,THIRD PARTY PAYMENTS,PRIVATE CONTRACTOR,REVENUE
Walsall Council,http://opendatacommunities.org/id/metropolitan-district-council/walsall ,WC152-121,31.07.2023,ADULT SOCIAL CARE,5 CARE SERVICES LTD,18/07/2023,283.5,6541-Domiciliary Care,THIRD PARTY PAYMENTS,PRIVATE CONTRACTOR,REVENUE
Walsall Council,http://opendatacommunities.org/id/metropolitan-district-council/walsall ,WC152-122,31.07.2023,ADULT SOCIAL CARE,5 CARE SERVICES LTD,18/07/2023,819,6541-Domiciliary Care,THIRD PARTY PAYMENTS,PRIVATE CONTRACTOR,REVENUE
Walsall Council,http://opendatacommunities.org/id/metropolitan-district-council/walsall ,WC152-123,31.07.2023,ADULT SOCIAL CARE,5 CARE SERVICES LTD,18/07/2023,630,6541-Domiciliary Care,THIRD PARTY PAYMENTS,PRIVATE CONTRACTOR,REVENUE
Walsall Council,http://opendatacommunities.org/id/metropolitan-district-council/walsall ,WC152-124,31.07.2023,ADULT SOCIAL CARE,5 CARE SERVICES LTD,18/07/2023,630,6541-Domiciliary Care,THIRD PARTY PAYMENTS,PRIVATE CONTRACTOR,REVENUE
Walsall Council,http://opendatacommunities.org/id/metropolitan-district-council/walsall ,WC152-125,31.07.2023,ADULT SOCIAL CARE,5 CARE SERVICES LTD,18/07/2023,567,6541-Domiciliary Care,THIRD PARTY PAYMENTS,PRIVATE CONTRACTOR,REVENUE
Walsall Council,http://opendatacommunities.org/id/metropolitan-district-council/walsall ,WC152-126,31.07.2023,ADULT SOCIAL CARE,5 CARE SERVICES LTD,18/07/2023,567,6541-Domiciliary Care,THIRD PARTY PAYMENTS,PRIVATE CONTRACTOR,REVENUE
Walsall Council,http://opendatacommunities.org/id/metropolitan-district-council/walsall ,WC152-127,31.07.2023,ADULT SOCIAL CARE,5 CARE SERVICES LTD,18/07/2023,598.5,6541-Domiciliary Care,THIRD PARTY PAYMENTS,PRIVATE CONTRACTOR,REVENUE
Walsall Council,http://opendatacommunities.org/id/metropolitan-district-council/walsall ,WC152-128,31.07.2023,ADULT SOCIAL CARE,5 CARE SERVICES LTD,18/07/2023,357,6541-Domiciliary Care,THIRD PARTY PAYMENTS,PRIVATE CONTRACTOR,REVENUE
Walsall Council,http://opendatacommunities.org/id/metropolitan-district-council/walsall ,WC152-129,31.07.2023,ADULT SOCIAL CARE,5 CARE SERVICES LTD,18/07/2023,567,6541-Domiciliary Care,THIRD PARTY PAYMENTS,PRIVATE CONTRACTOR,REVENUE
Walsall Council,http://opendatacommunities.org/id/metropolitan-district-council/walsall ,WC152-130,31.07.2023,ADULT SOCIAL CARE,5 CARE SERVICES LTD,18/07/2023,567,6541-Domiciliary Care,THIRD PARTY PAYMENTS,PRIVATE CONTRACTOR,REVENUE
Walsall Council,http://opendatacommunities.org/id/metropolitan-district-council/walsall ,WC152-131,31.07.2023,ADULT SOCIAL CARE,5 CARE SERVICES LTD,18/07/2023,"-1,381.68",6541-Domiciliary Care,THIRD PARTY PAYMENTS,PRIVATE CONTRACTOR,REVENUE
Walsall Council,http://opendatacommunities.org/id/metropolitan-district-council/walsall ,WC152-132,31.07.2023,ADULT SOCIAL CARE,5 CARE SERVICES LTD,18/07/2023,603,6541-Domiciliary Care,THIRD PARTY PAYMENTS,PRIVATE CONTRACTOR,REVENUE
Walsall Council,http://opendatacommunities.org/id/metropolitan-district-council/walsall ,WC152-133,31.07.2023,ADULT SOCIAL CARE,5 CARE SERVICES LTD,18/07/2023,283.5,6541-Domiciliary Care,THIRD PARTY PAYMENTS,PRIVATE CONTRACTOR,REVENUE
Walsall Council,http://opendatacommunities.org/id/metropolitan-district-council/walsall ,WC152-134,31.07.2023,ADULT SOCIAL CARE,5 CARE SERVICES LTD,18/07/2023,"1,080.00",6541-Domiciliary Care,THIRD PARTY PAYMENTS,PRIVATE CONTRACTOR,REVENUE
Walsall Council,http://opendatacommunities.org/id/metropolitan-district-council/walsall ,WC152-135,31.07.2023,ADULT SOCIAL CARE,5 CARE SERVICES LTD,18/07/2023,360,6541-Domiciliary Care,THIRD PARTY PAYMENTS,PRIVATE CONTRACTOR,REVENUE
Walsall Council,http://opendatacommunities.org/id/metropolitan-district-council/walsall ,WC152-136,31.07.2023,ADULT SOCIAL CARE,5 CARE SERVICES LTD,18/07/2023,774,6541-Domiciliary Care,THIRD PARTY PAYMENTS,PRIVATE CONTRACTOR,REVENUE
Walsall Council,http://opendatacommunities.org/id/metropolitan-district-council/walsall ,WC152-137,31.07.2023,ADULT SOCIAL CARE,5 CARE SERVICES LTD,18/07/2023,756,6541-Domiciliary Care,THIRD PARTY PAYMENTS,PRIVATE CONTRACTOR,REVENUE
Walsall Council,http://opendatacommunities.org/id/metropolitan-district-council/walsall ,WC152-138,31.07.2023,ADULT SOCIAL CARE,5 CARE SERVICES LTD,18/07/2023,328.5,6541-Domiciliary Care,THIRD PARTY PAYMENTS,PRIVATE CONTRACTOR,REVENUE
Walsall Council,http://opendatacommunities.org/id/metropolitan-district-council/walsall ,WC152-139,31.07.2023,ADULT SOCIAL CARE,5 CARE SERVICES LTD,18/07/2023,283.5,6541-Domiciliary Care,THIRD PARTY PAYMENTS,PRIVATE CONTRACTOR,REVENUE
Walsall Council,http://opendatacommunities.org/id/metropolitan-district-council/walsall ,WC152-140,31.07.2023,ADULT SOCIAL CARE,5 CARE SERVICES LTD,18/07/2023,597,6541-Domiciliary Care,THIRD PARTY PAYMENTS,PRIVATE CONTRACTOR,REVENUE
Walsall Council,http://opendatacommunities.org/id/metropolitan-district-council/walsall ,WC152-141,31.07.2023,ADULT SOCIAL CARE,5 CARE SERVICES LTD,18/07/2023,"1,386.00",6541-Domiciliary Care,THIRD PARTY PAYMENTS,PRIVATE CONTRACTOR,REVENUE
Walsall Council,http://opendatacommunities.org/id/metropolitan-district-council/walsall ,WC152-142,31.07.2023,ADULT SOCIAL CARE,5 CARE SERVICES LTD,18/07/2023,864,6541-Domiciliary Care,THIRD PARTY PAYMENTS,PRIVATE CONTRACTOR,REVENUE
Walsall Council,http://opendatacommunities.org/id/metropolitan-district-council/walsall ,WC152-143,31.07.2023,ADULT SOCIAL CARE,5 CARE SERVICES LTD,18/07/2023,567,6541-Domiciliary Care,THIRD PARTY PAYMENTS,PRIVATE CONTRACTOR,REVENUE
Walsall Council,http://opendatacommunities.org/id/metropolitan-district-council/walsall ,WC152-144,31.07.2023,ADULT SOCIAL CARE,5 CARE SERVICES LTD,18/07/2023,630,6541-Domiciliary Care,THIRD PARTY PAYMENTS,PRIVATE CONTRACTOR,REVENUE
Walsall Council,http://opendatacommunities.org/id/metropolitan-district-council/walsall ,WC152-145,31.07.2023,ADULT SOCIAL CARE,5 CARE SERVICES LTD,18/07/2023,567,6541-Domiciliary Care,THIRD PARTY PAYMENTS,PRIVATE CONTRACTOR,REVENUE
Walsall Council,http://opendatacommunities.org/id/metropolitan-district-council/walsall ,WC152-146,31.07.2023,ADULT SOCIAL CARE,5 CARE SERVICES LTD,18/07/2023,567,6541-Domiciliary Care,THIRD PARTY PAYMENTS,PRIVATE CONTRACTOR,REVENUE
Walsall Council,http://opendatacommunities.org/id/metropolitan-district-council/walsall ,WC152-147,31.07.2023,ADULT SOCIAL CARE,5 CARE SERVICES LTD,18/07/2023,378,6541-Domiciliary Care,THIRD PARTY PAYMENTS,PRIVATE CONTRACTOR,REVENUE
Walsall Council,http://opendatacommunities.org/id/metropolitan-district-council/walsall ,WC152-148,31.07.2023,ADULT SOCIAL CARE,5 CARE SERVICES LTD,18/07/2023,567,6541-Domiciliary Care,THIRD PARTY PAYMENTS,PRIVATE CONTRACTOR,REVENUE
Walsall Council,http://opendatacommunities.org/id/metropolitan-district-council/walsall ,WC152-149,31.07.2023,ADULT SOCIAL CARE,5 CARE SERVICES LTD,18/07/2023,"1,008.00",6541-Domiciliary Care,THIRD PARTY PAYMENTS,PRIVATE CONTRACTOR,REVENUE
Walsall Council,http://opendatacommunities.org/id/metropolitan-district-council/walsall ,WC152-150,31.07.2023,ADULT SOCIAL CARE,5 CARE SERVICES LTD,18/07/2023,651,6541-Domiciliary Care,THIRD PARTY PAYMENTS,PRIVATE CONTRACTOR,REVENUE
Walsall Council,http://opendatacommunities.org/id/metropolitan-district-council/walsall ,WC152-151,31.07.2023,ADULT SOCIAL CARE,5 CARE SERVICES LTD,18/07/2023,283.5,6541-Domiciliary Care,THIRD PARTY PAYMENTS,PRIVATE CONTRACTOR,REVENUE
Walsall Council,http://opendatacommunities.org/id/metropolitan-district-council/walsall ,WC152-152,31.07.2023,ADULT SOCIAL CARE,5 CARE SERVICES LTD,18/07/2023,567,6541-Domiciliary Care,THIRD PARTY PAYMENTS,PRIVATE CONTRACTOR,REVENUE
Walsall Council,http://opendatacommunities.org/id/metropolitan-district-council/walsall ,WC152-153,31.07.2023,ADULT SOCIAL CARE,5 CARE SERVICES LTD,18/07/2023,504,6541-Domiciliary Care,THIRD PARTY PAYMENTS,PRIVATE CONTRACTOR,REVENUE
Walsall Council,http://opendatacommunities.org/id/metropolitan-district-council/walsall ,WC152-154,31.07.2023,ADULT SOCIAL CARE,5 CARE SERVICES LTD,18/07/2023,262.5,6541-Domiciliary Care,THIRD PARTY PAYMENTS,PRIVATE CONTRACTOR,REVENUE
Walsall Council,http://opendatacommunities.org/id/metropolitan-district-council/walsall ,WC152-155,31.07.2023,ADULT SOCIAL CARE,5 CARE SERVICES LTD,18/07/2023,630,6541-Domiciliary Care,THIRD PARTY PAYMENTS,PRIVATE CONTRACTOR,REVENUE
Walsall Council,http://opendatacommunities.org/id/metropolitan-district-council/walsall ,WC152-156,31.07.2023,ADULT SOCIAL CARE,5 CARE SERVICES LTD,18/07/2023,819,6541-Domiciliary Care,THIRD PARTY PAYMENTS,PRIVATE CONTRACTOR,REVENUE
Walsall Council,http://opendatacommunities.org/id/metropolitan-district-council/walsall ,WC152-157,31.07.2023,ADULT SOCIAL CARE,5 CARE SERVICES LTD,18/07/2023,283.5,6541-Domiciliary Care,THIRD PARTY PAYMENTS,PRIVATE CONTRACTOR,REVENUE
Walsall Council,http://opendatacommunities.org/id/metropolitan-district-council/walsall ,WC152-158,31.07.2023,ADULT SOCIAL CARE,5 CARE SERVICES LTD,18/07/2023,270,6541-Domiciliary Care,THIRD PARTY PAYMENTS,PRIVATE CONTRACTOR,REVENUE
Walsall Council,http://opendatacommunities.org/id/metropolitan-district-council/walsall ,WC152-159,31.07.2023,ADULT SOCIAL CARE,5 CARE SERVICES LTD,18/07/2023,378,6541-Domiciliary Care,THIRD PARTY PAYMENTS,PRIVATE CONTRACTOR,REVENUE
Walsall Council,http://opendatacommunities.org/id/metropolitan-district-council/walsall ,WC152-160,31.07.2023,ADULT SOCIAL CARE,5 CARE SERVICES LTD,18/07/2023,567,6541-Domiciliary Care,THIRD PARTY PAYMENTS,PRIVATE CONTRACTOR,REVENUE
Walsall Council,http://opendatacommunities.org/id/metropolitan-district-council/walsall ,WC152-161,31.07.2023,ADULT SOCIAL CARE,5 CARE SERVICES LTD,18/07/2023,567,6541-Domiciliary Care,THIRD PARTY PAYMENTS,PRIVATE CONTRACTOR,REVENUE
Walsall Council,http://opendatacommunities.org/id/metropolitan-district-council/walsall ,WC152-162,31.07.2023,ADULT SOCIAL CARE,5 CARE SERVICES LTD,18/07/2023,603,6541-Domiciliary Care,THIRD PARTY PAYMENTS,PRIVATE CONTRACTOR,REVENUE
Walsall Council,http://opendatacommunities.org/id/metropolitan-district-council/walsall ,WC152-163,31.07.2023,ADULT SOCIAL CARE,5 CARE SERVICES LTD,26/07/2023,"1,548.00",6554-Professional Services-Priv Contractor & Other Agencies,THIRD PARTY PAYMENTS,PRIVATE CONTRACTOR,REVENUE
Walsall Council,http://opendatacommunities.org/id/metropolitan-district-council/walsall ,WC152-164,31.07.2023,CHILDRENS,5UP CIC,03/07/2023,"6,240.00",6211-Professional Fees & Services,SUPPLIES & SERVICES,SERVICES,REVENUE
Walsall Council,http://opendatacommunities.org/id/metropolitan-district-council/walsall ,WC152-165,31.07.2023,RESOURCES AND TRANSFORMATION,A D T FIRE AND SECURITY PLC,25/07/2023,"1,532.50",6310-Security & Alarm Maintenance,PREMISES,REPAIRS & MAINTENANCE,REVENUE
Walsall Council,http://opendatacommunities.org/id/metropolitan-district-council/walsall ,WC152-166,31.07.2023,"ECONOMY, ENVIRONMENT & COMMUNITIES",A F BLAKEMORE & SON LTD,26/07/2023,408.94,6413-Food & Drink Supplies,SUPPLIES & SERVICES,CATERING,REVENUE
Walsall Council,http://opendatacommunities.org/id/metropolitan-district-council/walsall ,WC152-167,31.07.2023,"ECONOMY, ENVIRONMENT & COMMUNITIES",A F BLAKEMORE & SON LTD,26/07/2023,"1,127.65",6413-Food & Drink Supplies,SUPPLIES & SERVICES,CATERING,REVENUE
Walsall Council,http://opendatacommunities.org/id/metropolitan-district-council/walsall ,WC152-168,31.07.2023,"ECONOMY, ENVIRONMENT & COMMUNITIES",A F BLAKEMORE & SON LTD,28/07/2023,259.19,6413-Food & Drink Supplies,SUPPLIES & SERVICES,CATERING,REVENUE
Walsall Council,http://opendatacommunities.org/id/metropolitan-district-council/walsall ,WC152-169,31.07.2023,"ECONOMY, ENVIRONMENT & COMMUNITIES",A F BLAKEMORE & SON LTD,28/07/2023,"1,412.23",6413-Food & Drink Supplies,SUPPLIES & SERVICES,CATERING,REVENUE
Walsall Council,http://opendatacommunities.org/id/metropolitan-district-council/walsall ,WC152-170,31.07.2023,"ECONOMY, ENVIRONMENT & COMMUNITIES",A F BLAKEMORE & SON LTD,25/07/2023,443.43,6413-Food & Drink Supplies,SUPPLIES & SERVICES,CATERING,REVENUE
Walsall Council,http://opendatacommunities.org/id/metropolitan-district-council/walsall ,WC152-171,31.07.2023,"ECONOMY, ENVIRONMENT & COMMUNITIES",A F BLAKEMORE & SON LTD,25/07/2023,878.52,6413-Food & Drink Supplies,SUPPLIES & SERVICES,CATERING,REVENUE
Walsall Council,http://opendatacommunities.org/id/metropolitan-district-council/walsall ,WC152-172,31.07.2023,"ECONOMY, ENVIRONMENT & COMMUNITIES",A F BLAKEMORE & SON LTD,27/07/2023,"-1,607.68",6413-Food & Drink Supplies,SUPPLIES & SERVICES,CATERING,REVENUE
Walsall Council,http://opendatacommunities.org/id/metropolitan-district-council/walsall ,WC152-173,31.07.2023,"ECONOMY, ENVIRONMENT & COMMUNITIES",A F BLAKEMORE & SON LTD,27/07/2023,-823.15,6413-Food & Drink Supplies,SUPPLIES & SERVICES,CATERING,REVENUE
Walsall Council,http://opendatacommunities.org/id/metropolitan-district-council/walsall ,WC152-174,31.07.2023,"ECONOMY, ENVIRONMENT & COMMUNITIES",A F BLAKEMORE & SON LTD,27/07/2023,823.15,6413-Food & Drink Supplies,SUPPLIES & SERVICES,CATERING,REVENUE
Walsall Council,http://opendatacommunities.org/id/metropolitan-district-council/walsall ,WC152-175,31.07.2023,"ECONOMY, ENVIRONMENT & COMMUNITIES",A F BLAKEMORE & SON LTD,27/07/2023,"1,607.68",6413-Food & Drink Supplies,SUPPLIES & SERVICES,CATERING,REVENUE
Walsall Council,http://opendatacommunities.org/id/metropolitan-district-council/walsall ,WC152-176,31.07.2023,CHILDRENS,A1 WALSALL RADIO CARS,17/07/2023,"1,660.00",6241-Hire of Vehicle with Driver,TRANSPORT,DIRECT TRANSPORT COSTS,REVENUE
Walsall Council,http://opendatacommunities.org/id/metropolitan-district-council/walsall ,WC152-177,31.07.2023,CHILDRENS,A1 WALSALL RADIO CARS,17/07/2023,"1,530.00",6241-Hire of Vehicle with Driver,TRANSPORT,DIRECT TRANSPORT COSTS,REVENUE
Walsall Council,http://opendatacommunities.org/id/metropolitan-district-council/walsall ,WC152-178,31.07.2023,CHILDRENS,A1 WALSALL RADIO CARS,17/07/2023,"1,300.00",6241-Hire of Vehicle with Driver,TRANSPORT,DIRECT TRANSPORT COSTS,REVENUE
Walsall Council,http://opendatacommunities.org/id/metropolitan-district-council/walsall ,WC152-179,31.07.2023,CHILDRENS,A1 WALSALL RADIO CARS,17/07/2023,"-2,566.60",6241-Hire of Vehicle with Driver,TRANSPORT,DIRECT TRANSPORT COSTS,REVENUE
Walsall Council,http://opendatacommunities.org/id/metropolitan-district-council/walsall ,WC152-180,31.07.2023,CHILDRENS,A1 WALSALL RADIO CARS,17/07/2023,"2,220.00",6241-Hire of Vehicle with Driver,TRANSPORT,DIRECT TRANSPORT COSTS,REVENUE
Walsall Council,http://opendatacommunities.org/id/metropolitan-district-council/walsall ,WC152-181,31.07.2023,CHILDRENS,A1 WALSALL RADIO CARS,17/07/2023,"2,160.00",6241-Hire of Vehicle with Driver,TRANSPORT,DIRECT TRANSPORT COSTS,REVENUE
Walsall Council,http://opendatacommunities.org/id/metropolitan-district-council/walsall ,WC152-182,31.07.2023,CHILDRENS,A1 WALSALL RADIO CARS,17/07/2023,"1,536.00",6241-Hire of Vehicle with Driver,TRANSPORT,DIRECT TRANSPORT COSTS,REVENUE
Walsall Council,http://opendatacommunities.org/id/metropolitan-district-council/walsall ,WC152-183,31.07.2023,ADULT SOCIAL CARE,REDACTED,06/07/2023,900.96,6541-Direct Payment,THIRD PARTY PAYMENTS,PRIVATE CONTRACTOR,REVENUE
Walsall Council,http://opendatacommunities.org/id/metropolitan-district-council/walsall ,WC152-184,31.07.2023,CHILDRENS,ABACUS FOSTERING LTD,11/07/2023,"2,984.80",6223-Independent Foster Care-Oth Agency Provision,THIRD PARTY PAYMENTS,PRIVATE CONTRACTOR,REVENUE
Walsall Council,http://opendatacommunities.org/id/metropolitan-district-council/walsall ,WC152-185,31.07.2023,CHILDRENS,ABACUS FOSTERING LTD,11/07/2023,"2,818.88",6223-Independent Foster Care-Oth Agency Provision,THIRD PARTY PAYMENTS,PRIVATE CONTRACTOR,REVENUE
Walsall Council,http://opendatacommunities.org/id/metropolitan-district-council/walsall ,WC152-186,31.07.2023,ADULT SOCIAL CARE,ABBEY HEALTHCARE HOMES LTD,04/07/2023,"3,180.76",6541-Residential,THIRD PARTY PAYMENTS,PRIVATE CONTRACTOR,REVENUE
Walsall Council,http://opendatacommunities.org/id/metropolitan-district-council/walsall ,WC152-187,31.07.2023,ADULT SOCIAL CARE,ABBEY HEALTHCARE HOMES LTD,04/07/2023,"3,180.76",6541-Residential,THIRD PARTY PAYMENTS,PRIVATE CONTRACTOR,REVENUE
Walsall Council,http://opendatacommunities.org/id/metropolitan-district-council/walsall ,WC152-188,31.07.2023,ADULT SOCIAL CARE,ABBEY HEALTHCARE HOMES LTD,04/07/2023,"3,604.84",6541-Residential,THIRD PARTY PAYMENTS,PRIVATE CONTRACTOR,REVENUE
Walsall Council,http://opendatacommunities.org/id/metropolitan-district-council/walsall ,WC152-189,31.07.2023,ADULT SOCIAL CARE,ABBEY HEALTHCARE HOMES LTD,04/07/2023,"2,432.32",6541-Residential,THIRD PARTY PAYMENTS,PRIVATE CONTRACTOR,REVENUE
Walsall Council,http://opendatacommunities.org/id/metropolitan-district-council/walsall ,WC152-190,31.07.2023,ADULT SOCIAL CARE,ABBEY HEALTHCARE HOMES LTD,26/07/2023,"1,971.43",6541-Residential,THIRD PARTY PAYMENTS,PRIVATE CONTRACTOR,REVENUE
Walsall Council,http://opendatacommunities.org/id/metropolitan-district-council/walsall ,WC152-191,31.07.2023,ADULT SOCIAL CARE,REDACTED,06/07/2023,"2,438.24",6541-Direct Payment,THIRD PARTY PAYMENTS,PRIVATE CONTRACTOR,REVENUE
Walsall Council,http://opendatacommunities.org/id/metropolitan-district-council/walsall ,WC152-192,31.07.2023,ADULT SOCIAL CARE,ABILITY HEALTHCARE LTD,26/07/2023,"2,034.00",6541-Domiciliary Care,THIRD PARTY PAYMENTS,PRIVATE CONTRACTOR,REVENUE
Walsall Council,http://opendatacommunities.org/id/metropolitan-district-council/walsall ,WC152-193,31.07.2023,ADULT SOCIAL CARE,ABILITY HEALTHCARE LTD,26/07/2023,"2,268.00",6541-Domiciliary Care,THIRD PARTY PAYMENTS,PRIVATE CONTRACTOR,REVENUE
Walsall Council,http://opendatacommunities.org/id/metropolitan-district-council/walsall ,WC152-194,31.07.2023,ADULT SOCIAL CARE,ABILITY HEALTHCARE LTD,26/07/2023,"1,647.00",6541-Domiciliary Care,THIRD PARTY PAYMENTS,PRIVATE CONTRACTOR,REVENUE
Walsall Council,http://opendatacommunities.org/id/metropolitan-district-council/walsall ,WC152-195,31.07.2023,ADULT SOCIAL CARE,ABILITY HEALTHCARE LTD,26/07/2023,"2,268.00",6541-Domiciliary Care,THIRD PARTY PAYMENTS,PRIVATE CONTRACTOR,REVENUE
Walsall Council,http://opendatacommunities.org/id/metropolitan-district-council/walsall ,WC152-196,31.07.2023,ADULT SOCIAL CARE,ABILITY HEALTHCARE LTD,26/07/2023,"2,268.00",6541-Domiciliary Care,THIRD PARTY PAYMENTS,PRIVATE CONTRACTOR,REVENUE
Walsall Council,http://opendatacommunities.org/id/metropolitan-district-council/walsall ,WC152-197,31.07.2023,ADULT SOCIAL CARE,ABILITY HEALTHCARE LTD,26/07/2023,"2,268.00",6541-Domiciliary Care,THIRD PARTY PAYMENTS,PRIVATE CONTRACTOR,REVENUE
Walsall Council,http://opendatacommunities.org/id/metropolitan-district-council/walsall ,WC152-198,31.07.2023,ADULT SOCIAL CARE,ABILITY HEALTHCARE LTD,26/07/2023,"1,476.00",6541-Domiciliary Care,THIRD PARTY PAYMENTS,PRIVATE CONTRACTOR,REVENUE
Walsall Council,http://opendatacommunities.org/id/metropolitan-district-council/walsall ,WC152-199,31.07.2023,ADULT SOCIAL CARE,ABILITY HEALTHCARE LTD,26/07/2023,504,6541-Domiciliary Care,THIRD PARTY PAYMENTS,PRIVATE CONTRACTOR,REVENUE
Walsall Council,http://opendatacommunities.org/id/metropolitan-district-council/walsall ,WC152-200,31.07.2023,ADULT SOCIAL CARE,ABILITY HEALTHCARE LTD,26/07/2023,"1,134.00",6541-Domiciliary Care,THIRD PARTY PAYMENTS,PRIVATE CONTRACTOR,REVENUE
Walsall Council,http://opendatacommunities.org/id/metropolitan-district-council/walsall ,WC152-201,31.07.2023,ADULT SOCIAL CARE,ABILITY HEALTHCARE LTD,26/07/2023,576,6541-Domiciliary Care,THIRD PARTY PAYMENTS,PRIVATE CONTRACTOR,REVENUE
Walsall Council,http://opendatacommunities.org/id/metropolitan-district-council/walsall ,WC152-202,31.07.2023,ADULT SOCIAL CARE,ABILITY HEALTHCARE LTD,26/07/2023,"2,016.00",6541-Domiciliary Care,THIRD PARTY PAYMENTS,PRIVATE CONTRACTOR,REVENUE
Walsall Council,http://opendatacommunities.org/id/metropolitan-district-council/walsall ,WC152-203,31.07.2023,ADULT SOCIAL CARE,ABILITY HEALTHCARE LTD,26/07/2023,"3,528.00",6541-Domiciliary Care,THIRD PARTY PAYMENTS,PRIVATE CONTRACTOR,REVENUE
Walsall Council,http://opendatacommunities.org/id/metropolitan-district-council/walsall ,WC152-204,31.07.2023,ADULT SOCIAL CARE,ABILITY HEALTHCARE LTD,26/07/2023,"2,016.00",6541-Domiciliary Care,THIRD PARTY PAYMENTS,PRIVATE CONTRACTOR,REVENUE
Walsall Council,http://opendatacommunities.org/id/metropolitan-district-council/walsall ,WC152-205,31.07.2023,ADULT SOCIAL CARE,ABILITY HEALTHCARE LTD,26/07/2023,"1,008.00",6541-Domiciliary Care,THIRD PARTY PAYMENTS,PRIVATE CONTRACTOR,REVENUE
Walsall Council,http://opendatacommunities.org/id/metropolitan-district-council/walsall ,WC152-206,31.07.2023,ADULT SOCIAL CARE,ABILITY HEALTHCARE LTD,26/07/2023,"2,268.00",6541-Domiciliary Care,THIRD PARTY PAYMENTS,PRIVATE CONTRACTOR,REVENUE
Walsall Council,http://opendatacommunities.org/id/metropolitan-district-council/walsall ,WC152-207,31.07.2023,ADULT SOCIAL CARE,ABILITY HEALTHCARE LTD,26/07/2023,"2,772.00",6541-Domiciliary Care,THIRD PARTY PAYMENTS,PRIVATE CONTRACTOR,REVENUE
Walsall Council,http://opendatacommunities.org/id/metropolitan-district-council/walsall ,WC152-208,31.07.2023,ADULT SOCIAL CARE,ABILITY HEALTHCARE LTD,26/07/2023,"2,304.00",6541-Domiciliary Care,THIRD PARTY PAYMENTS,PRIVATE CONTRACTOR,REVENUE
Walsall Council,http://opendatacommunities.org/id/metropolitan-district-council/walsall ,WC152-209,31.07.2023,ADULT SOCIAL CARE,ABILITY HEALTHCARE LTD,26/07/2023,"2,016.00",6541-Domiciliary Care,THIRD PARTY PAYMENTS,PRIVATE CONTRACTOR,REVENUE
Walsall Council,http://opendatacommunities.org/id/metropolitan-district-council/walsall ,WC152-210,31.07.2023,ADULT SOCIAL CARE,ABILITY HEALTHCARE LTD,26/07/2023,"1,656.00",6541-Domiciliary Care,THIRD PARTY PAYMENTS,PRIVATE CONTRACTOR,REVENUE
Walsall Council,http://opendatacommunities.org/id/metropolitan-district-council/walsall ,WC152-211,31.07.2023,ADULT SOCIAL CARE,ABILITY HEALTHCARE LTD,26/07/2023,"2,016.00",6541-Domiciliary Care,THIRD PARTY PAYMENTS,PRIVATE CONTRACTOR,REVENUE
Walsall Council,http://opendatacommunities.org/id/metropolitan-district-council/walsall ,WC152-212,31.07.2023,ADULT SOCIAL CARE,ABILITY HEALTHCARE LTD,26/07/2023,336,6541-Domiciliary Care,THIRD PARTY PAYMENTS,PRIVATE CONTRACTOR,REVENUE
Walsall Council,http://opendatacommunities.org/id/metropolitan-district-council/walsall ,WC152-213,31.07.2023,ADULT SOCIAL CARE,ABILITY HEALTHCARE LTD,26/07/2023,"1,344.00",6541-Domiciliary Care,THIRD PARTY PAYMENTS,PRIVATE CONTRACTOR,REVENUE
Walsall Council,http://opendatacommunities.org/id/metropolitan-district-council/walsall ,WC152-214,31.07.2023,ADULT SOCIAL CARE,ABILITY HEALTHCARE LTD,26/07/2023,"2,016.00",6541-Domiciliary Care,THIRD PARTY PAYMENTS,PRIVATE CONTRACTOR,REVENUE
Walsall Council,http://opendatacommunities.org/id/metropolitan-district-council/walsall ,WC152-215,31.07.2023,ADULT SOCIAL CARE,ABILITY HEALTHCARE LTD,26/07/2023,"1,260.00",6541-Domiciliary Care,THIRD PARTY PAYMENTS,PRIVATE CONTRACTOR,REVENUE
Walsall Council,http://opendatacommunities.org/id/metropolitan-district-council/walsall ,WC152-216,31.07.2023,ADULT SOCIAL CARE,ABILITY HEALTHCARE LTD,26/07/2023,"2,268.00",6541-Domiciliary Care,THIRD PARTY PAYMENTS,PRIVATE CONTRACTOR,REVENUE
Walsall Council,http://opendatacommunities.org/id/metropolitan-district-council/walsall ,WC152-217,31.07.2023,ADULT SOCIAL CARE,ABILITY HEALTHCARE LTD,26/07/2023,360,6554-Professional Services-Priv Contractor & Other Agencies,THIRD PARTY PAYMENTS,PRIVATE CONTRACTOR,REVENUE
Walsall Council,http://opendatacommunities.org/id/metropolitan-district-council/walsall ,WC152-218,31.07.2023,ADULT SOCIAL CARE,ABILITY HEALTHCARE LTD,26/07/2023,432,6541-Domiciliary Care,THIRD PARTY PAYMENTS,PRIVATE CONTRACTOR,REVENUE
Walsall Council,http://opendatacommunities.org/id/metropolitan-district-council/walsall ,WC152-219,31.07.2023,ADULT SOCIAL CARE,ABILITY HEALTHCARE LTD,26/07/2023,504,6541-Domiciliary Care,THIRD PARTY PAYMENTS,PRIVATE CONTRACTOR,REVENUE
Walsall Council,http://opendatacommunities.org/id/metropolitan-district-council/walsall ,WC152-220,31.07.2023,ADULT SOCIAL CARE,ABILITY HEALTHCARE LTD,26/07/2023,"1,008.00",6541-Domiciliary Care,THIRD PARTY PAYMENTS,PRIVATE CONTRACTOR,REVENUE
Walsall Council,http://opendatacommunities.org/id/metropolitan-district-council/walsall ,WC152-221,31.07.2023,ADULT SOCIAL CARE,ABILITY HEALTHCARE LTD,26/07/2023,"1,512.00",6541-Domiciliary Care,THIRD PARTY PAYMENTS,PRIVATE CONTRACTOR,REVENUE
Walsall Council,http://opendatacommunities.org/id/metropolitan-district-council/walsall ,WC152-222,31.07.2023,ADULT SOCIAL CARE,ABILITY HEALTHCARE LTD,26/07/2023,"1,458.00",6541-Domiciliary Care,THIRD PARTY PAYMENTS,PRIVATE CONTRACTOR,REVENUE
Walsall Council,http://opendatacommunities.org/id/metropolitan-district-council/walsall ,WC152-223,31.07.2023,ADULT SOCIAL CARE,ABILITY HEALTHCARE LTD,26/07/2023,"2,268.00",6541-Domiciliary Care,THIRD PARTY PAYMENTS,PRIVATE CONTRACTOR,REVENUE
Walsall Council,http://opendatacommunities.org/id/metropolitan-district-council/walsall ,WC152-224,31.07.2023,ADULT SOCIAL CARE,ABILITY HEALTHCARE LTD,27/07/2023,"2,106.00",6554-Professional Services-Priv Contractor & Other Agencies,THIRD PARTY PAYMENTS,PRIVATE CONTRACTOR,REVENUE
Walsall Council,http://opendatacommunities.org/id/metropolitan-district-council/walsall ,WC152-225,31.07.2023,ADULT SOCIAL CARE,ABILITY HEALTHCARE LTD,27/07/2023,810,6554-Professional Services-Priv Contractor & Other Agencies,THIRD PARTY PAYMENTS,PRIVATE CONTRACTOR,REVENUE
Walsall Council,http://opendatacommunities.org/id/metropolitan-district-council/walsall ,WC152-226,31.07.2023,ADULT SOCIAL CARE,ABILITY HEALTHCARE LTD,27/07/2023,"1,170.00",6554-Professional Services-Priv Contractor & Other Agencies,THIRD PARTY PAYMENTS,PRIVATE CONTRACTOR,REVENUE
Walsall Council,http://opendatacommunities.org/id/metropolitan-district-council/walsall ,WC152-227,31.07.2023,ADULT SOCIAL CARE,ABILITY HEALTHCARE LTD,27/07/2023,"1,008.00",6554-Professional Services-Priv Contractor & Other Agencies,THIRD PARTY PAYMENTS,PRIVATE CONTRACTOR,REVENUE
Walsall Council,http://opendatacommunities.org/id/metropolitan-district-council/walsall ,WC152-228,31.07.2023,ADULT SOCIAL CARE,ABILITY HEALTHCARE LTD,27/07/2023,729,6554-Professional Services-Priv Contractor & Other Agencies,THIRD PARTY PAYMENTS,PRIVATE CONTRACTOR,REVENUE
Walsall Council,http://opendatacommunities.org/id/metropolitan-district-council/walsall ,WC152-229,31.07.2023,ADULT SOCIAL CARE,ABILITY HEALTHCARE LTD,27/07/2023,729,6554-Professional Services-Priv Contractor & Other Agencies,THIRD PARTY PAYMENTS,PRIVATE CONTRACTOR,REVENUE
Walsall Council,http://opendatacommunities.org/id/metropolitan-district-council/walsall ,WC152-230,31.07.2023,"ECONOMY, ENVIRONMENT & COMMUNITIES",ABLE INVESTIGATIONS & ENFORCEMENTS LTD,18/07/2023,"2,055.00",6440-Professional Fees & Services,SUPPLIES & SERVICES,SERVICES,REVENUE
Walsall Council,http://opendatacommunities.org/id/metropolitan-district-council/walsall ,WC152-231,31.07.2023,"ECONOMY, ENVIRONMENT & COMMUNITIES",ABLE INVESTIGATIONS & ENFORCEMENTS LTD,27/07/2023,"3,475.00",6440-Professional Fees & Services,SUPPLIES & SERVICES,SERVICES,REVENUE
Walsall Council,http://opendatacommunities.org/id/metropolitan-district-council/walsall ,WC152-232,31.07.2023,CHILDRENS,ABLEWELL CARS,17/07/2023,"1,320.00",6241-Hire of Vehicle with Driver,TRANSPORT,DIRECT TRANSPORT COSTS,REVENUE
Walsall Council,http://opendatacommunities.org/id/metropolitan-district-council/walsall ,WC152-233,31.07.2023,CHILDRENS,ABLEWELL CARS,17/07/2023,"1,664.00",6241-Hire of Vehicle with Driver,TRANSPORT,DIRECT TRANSPORT COSTS,REVENUE
Walsall Council,http://opendatacommunities.org/id/metropolitan-district-council/walsall ,WC152-234,31.07.2023,CHILDRENS,ABLEWELL CARS,17/07/2023,"2,465.40",6241-Hire of Vehicle with Driver,TRANSPORT,DIRECT TRANSPORT COSTS,REVENUE
Walsall Council,http://opendatacommunities.org/id/metropolitan-district-council/walsall ,WC152-235,31.07.2023,CHILDRENS,ABLEWELL CARS,17/07/2023,"2,650.80",6241-Hire of Vehicle with Driver,TRANSPORT,DIRECT TRANSPORT COSTS,REVENUE
Walsall Council,http://opendatacommunities.org/id/metropolitan-district-council/walsall ,WC152-236,31.07.2023,CHILDRENS,ABLEWELL CARS,17/07/2023,"1,200.80",6241-Hire of Vehicle with Driver,TRANSPORT,DIRECT TRANSPORT COSTS,REVENUE
Walsall Council,http://opendatacommunities.org/id/metropolitan-district-council/walsall ,WC152-237,31.07.2023,CHILDRENS,ABLEWELL CARS,17/07/2023,"1,471.20",6241-Hire of Vehicle with Driver,TRANSPORT,DIRECT TRANSPORT COSTS,REVENUE
Walsall Council,http://opendatacommunities.org/id/metropolitan-district-council/walsall ,WC152-238,31.07.2023,CHILDRENS,ABS TAXIS (ALDRIDGE),17/07/2023,"1,974.00",6241-Hire of Vehicle with Driver,TRANSPORT,DIRECT TRANSPORT COSTS,REVENUE
Walsall Council,http://opendatacommunities.org/id/metropolitan-district-council/walsall ,WC152-239,31.07.2023,CHILDRENS,ABS TAXIS (ALDRIDGE),17/07/2023,"2,076.00",6241-Hire of Vehicle with Driver,TRANSPORT,DIRECT TRANSPORT COSTS,REVENUE
Walsall Council,http://opendatacommunities.org/id/metropolitan-district-council/walsall ,WC152-240,31.07.2023,CHILDRENS,ABS TAXIS (ALDRIDGE),17/07/2023,"1,610.00",6241-Hire of Vehicle with Driver,TRANSPORT,DIRECT TRANSPORT COSTS,REVENUE
Walsall Council,http://opendatacommunities.org/id/metropolitan-district-council/walsall ,WC152-241,31.07.2023,CHILDRENS,ABS TAXIS (ALDRIDGE),17/07/2023,"2,010.00",6241-Hire of Vehicle with Driver,TRANSPORT,DIRECT TRANSPORT COSTS,REVENUE
Walsall Council,http://opendatacommunities.org/id/metropolitan-district-council/walsall ,WC152-242,31.07.2023,ADULT SOCIAL CARE,ABSOLUTE HEALTHCARE SWAN HOUSE LTD,04/07/2023,"2,137.32",6541-Residential,THIRD PARTY PAYMENTS,PRIVATE CONTRACTOR,REVENUE
Walsall Council,http://opendatacommunities.org/id/metropolitan-district-council/walsall ,WC152-243,31.07.2023,ADULT SOCIAL CARE,ABSOLUTE HEALTHCARE SWAN HOUSE LTD,04/07/2023,"2,137.32",6541-Residential,THIRD PARTY PAYMENTS,PRIVATE CONTRACTOR,REVENUE
Walsall Council,http://opendatacommunities.org/id/metropolitan-district-council/walsall ,WC152-244,31.07.2023,ADULT SOCIAL CARE,ABSOLUTE HEALTHCARE SWAN HOUSE LTD,04/07/2023,"2,413.36",6541-Residential EMI,THIRD PARTY PAYMENTS,PRIVATE CONTRACTOR,REVENUE
Walsall Council,http://opendatacommunities.org/id/metropolitan-district-council/walsall ,WC152-245,31.07.2023,ADULT SOCIAL CARE,ABSOLUTE HEALTHCARE SWAN HOUSE LTD,04/07/2023,"2,413.36",6541-Residential EMI,THIRD PARTY PAYMENTS,PRIVATE CONTRACTOR,REVENUE
Walsall Council,http://opendatacommunities.org/id/metropolitan-district-council/walsall ,WC152-246,31.07.2023,ADULT SOCIAL CARE,ABSOLUTE HEALTHCARE SWAN HOUSE LTD,04/07/2023,"2,277.32",6541-Residential,THIRD PARTY PAYMENTS,PRIVATE CONTRACTOR,REVENUE
Walsall Council,http://opendatacommunities.org/id/metropolitan-district-council/walsall ,WC152-247,31.07.2023,ADULT SOCIAL CARE,ABSOLUTE HEALTHCARE SWAN HOUSE LTD,04/07/2023,"2,177.32",6541-Residential,THIRD PARTY PAYMENTS,PRIVATE CONTRACTOR,REVENUE
Walsall Council,http://opendatacommunities.org/id/metropolitan-district-council/walsall ,WC152-248,31.07.2023,ADULT SOCIAL CARE,ABSOLUTE HEALTHCARE SWAN HOUSE LTD,04/07/2023,"2,137.32",6541-Residential,THIRD PARTY PAYMENTS,PRIVATE CONTRACTOR,REVENUE
Walsall Council,http://opendatacommunities.org/id/metropolitan-district-council/walsall ,WC152-249,31.07.2023,ADULT SOCIAL CARE,ABSOLUTE HEALTHCARE SWAN HOUSE LTD,04/07/2023,"3,049.12",6541-Nursing,THIRD PARTY PAYMENTS,PRIVATE CONTRACTOR,REVENUE
Walsall Council,http://opendatacommunities.org/id/metropolitan-district-council/walsall ,WC152-250,31.07.2023,ADULT SOCIAL CARE,ABSOLUTE HEALTHCARE SWAN HOUSE LTD,04/07/2023,"2,137.32",6541-Residential,THIRD PARTY PAYMENTS,PRIVATE CONTRACTOR,REVENUE
Walsall Council,http://opendatacommunities.org/id/metropolitan-district-council/walsall ,WC152-251,31.07.2023,ADULT SOCIAL CARE,ABSOLUTE HEALTHCARE SWAN HOUSE LTD,04/07/2023,"2,413.36",6541-Residential EMI,THIRD PARTY PAYMENTS,PRIVATE CONTRACTOR,REVENUE
Walsall Council,http://opendatacommunities.org/id/metropolitan-district-council/walsall ,WC152-252,31.07.2023,ADULT SOCIAL CARE,ABSOLUTE HEALTHCARE SWAN HOUSE LTD,04/07/2023,"3,048.96",6541-Nursing,THIRD PARTY PAYMENTS,PRIVATE CONTRACTOR,REVENUE
Walsall Council,http://opendatacommunities.org/id/metropolitan-district-council/walsall ,WC152-253,31.07.2023,ADULT SOCIAL CARE,ABSOLUTE HEALTHCARE SWAN HOUSE LTD,04/07/2023,"3,336.92",6541-Nursing EMI,THIRD PARTY PAYMENTS,PRIVATE CONTRACTOR,REVENUE
Walsall Council,http://opendatacommunities.org/id/metropolitan-district-council/walsall ,WC152-254,31.07.2023,ADULT SOCIAL CARE,ABSOLUTE HEALTHCARE SWAN HOUSE LTD,04/07/2023,"3,600.00",6541-Residential,THIRD PARTY PAYMENTS,PRIVATE CONTRACTOR,REVENUE
Walsall Council,http://opendatacommunities.org/id/metropolitan-district-council/walsall ,WC152-255,31.07.2023,ADULT SOCIAL CARE,ABSOLUTE HEALTHCARE SWAN HOUSE LTD,04/07/2023,"2,413.36",6541-Residential EMI,THIRD PARTY PAYMENTS,PRIVATE CONTRACTOR,REVENUE
Walsall Council,http://opendatacommunities.org/id/metropolitan-district-council/walsall ,WC152-256,31.07.2023,ADULT SOCIAL CARE,ABSOLUTE HEALTHCARE SWAN HOUSE LTD,04/07/2023,"2,137.32",6541-Residential,THIRD PARTY PAYMENTS,PRIVATE CONTRACTOR,REVENUE
Walsall Council,http://opendatacommunities.org/id/metropolitan-district-council/walsall ,WC152-257,31.07.2023,ADULT SOCIAL CARE,ABSOLUTE HEALTHCARE SWAN HOUSE LTD,04/07/2023,"5,240.48",6541-Nursing EMI,THIRD PARTY PAYMENTS,PRIVATE CONTRACTOR,REVENUE
Walsall Council,http://opendatacommunities.org/id/metropolitan-district-council/walsall ,WC152-258,31.07.2023,ADULT SOCIAL CARE,ABSOLUTE HEALTHCARE SWAN HOUSE LTD,04/07/2023,"4,200.00",6554-Professional Services-Priv Contractor & Other Agencies,THIRD PARTY PAYMENTS,PRIVATE CONTRACTOR,REVENUE
Walsall Council,http://opendatacommunities.org/id/metropolitan-district-council/walsall ,WC152-259,31.07.2023,ADULT SOCIAL CARE,ABSOLUTE HEALTHCARE SWAN HOUSE LTD,04/07/2023,"1,295.00",6554-Professional Services-Priv Contractor & Other Agencies,THIRD PARTY PAYMENTS,PRIVATE CONTRACTOR,REVENUE
Walsall Council,http://opendatacommunities.org/id/metropolitan-district-council/walsall ,WC152-260,31.07.2023,CHILDRENS,ACCALIA CARE SERVICES LTD,11/07/2023,"22,212.00",6223-External Residential Care-Oth Agency Provision,THIRD PARTY PAYMENTS,PRIVATE CONTRACTOR,REVENUE
Walsall Council,http://opendatacommunities.org/id/metropolitan-district-council/walsall ,WC152-261,31.07.2023,CHILDRENS,ACCEPTING BEHAVIOUR LTD,07/07/2023,617.5,1220-Professional Fees & Services,SUPPLIES & SERVICES,SERVICES,REVENUE
Walsall Council,http://opendatacommunities.org/id/metropolitan-district-council/walsall ,WC152-262,31.07.2023,RESOURCES AND TRANSFORMATION,ACCESS SYSTEMS (UK) LTD,05/07/2023,"6,612.47",6623-Computer Equipment,SUPPLIES & SERVICES,COMMUNICATIONS & COMPUTING,REVENUE
Walsall Council,http://opendatacommunities.org/id/metropolitan-district-council/walsall ,WC152-263,31.07.2023,ADULT SOCIAL CARE,ACCESS UK LTD ,05/07/2023,"-36,630.00",6551-Professional Fees & Services,SUPPLIES & SERVICES,SERVICES,REVENUE
Walsall Council,http://opendatacommunities.org/id/metropolitan-district-council/walsall ,WC152-264,31.07.2023,ADULT SOCIAL CARE,ACCESS UK LTD ,05/07/2023,"18,315.00",6551-Professional Fees & Services,SUPPLIES & SERVICES,SERVICES,REVENUE
Walsall Council,http://opendatacommunities.org/id/metropolitan-district-council/walsall ,WC152-265,31.07.2023,ADULT SOCIAL CARE,ACCESS UK LTD ,05/07/2023,"36,630.00",6551-Professional Fees & Services,SUPPLIES & SERVICES,SERVICES,REVENUE
Walsall Council,http://opendatacommunities.org/id/metropolitan-district-council/walsall ,WC152-266,31.07.2023,ADULT SOCIAL CARE,ACCESS UK LTD ,10/07/2023,"1,000.00",6551-Software Licences,SUPPLIES & SERVICES,COMMUNICATIONS & COMPUTING,REVENUE
Walsall Council,http://opendatacommunities.org/id/metropolitan-district-council/walsall ,WC152-267,31.07.2023,ADULT SOCIAL CARE,ACCESS UK LTD ,10/07/2023,"4,876.00",6551-Software Licences,SUPPLIES & SERVICES,COMMUNICATIONS & COMPUTING,REVENUE
Walsall Council,http://opendatacommunities.org/id/metropolitan-district-council/walsall ,WC152-268,31.07.2023,ADULT SOCIAL CARE,ACCESS UK LTD ,10/07/2023,"4,994.00",6551-Software Licences,SUPPLIES & SERVICES,COMMUNICATIONS & COMPUTING,REVENUE
Walsall Council,http://opendatacommunities.org/id/metropolitan-district-council/walsall ,WC152-269,31.07.2023,ADULT SOCIAL CARE,ACCESS UK LTD ,10/07/2023,"29,823.00",6551-Software Licences,SUPPLIES & SERVICES,COMMUNICATIONS & COMPUTING,REVENUE
Walsall Council,http://opendatacommunities.org/id/metropolitan-district-council/walsall ,WC152-270,31.07.2023,ADULT SOCIAL CARE,ACCESS UK LTD ,10/07/2023,"52,679.00",6551-Software Licences,SUPPLIES & SERVICES,COMMUNICATIONS & COMPUTING,REVENUE
Walsall Council,http://opendatacommunities.org/id/metropolitan-district-council/walsall ,WC152-271,31.07.2023,ADULT SOCIAL CARE,ACCORD HOUSING ASSOCIATION LIMITED - HOBS MEADOW,04/07/2023,"4,776.84",6541-Residential,THIRD PARTY PAYMENTS,PRIVATE CONTRACTOR,REVENUE
Walsall Council,http://opendatacommunities.org/id/metropolitan-district-council/walsall ,WC152-272,31.07.2023,ADULT SOCIAL CARE,ACCORD HOUSING ASSOCIATION LIMITED - HOBS MEADOW,04/07/2023,"4,776.84",6541-Residential,THIRD PARTY PAYMENTS,PRIVATE CONTRACTOR,REVENUE
Walsall Council,http://opendatacommunities.org/id/metropolitan-district-council/walsall ,WC152-273,31.07.2023,ADULT SOCIAL CARE,ACCORD HOUSING ASSOCIATION LIMITED - HOBS MEADOW,04/07/2023,"4,776.84",6541-Residential,THIRD PARTY PAYMENTS,PRIVATE CONTRACTOR,REVENUE
Walsall Council,http://opendatacommunities.org/id/metropolitan-district-council/walsall ,WC152-274,31.07.2023,ADULT SOCIAL CARE,ACCORD HOUSING ASSOCIATION LIMITED - HOBS MEADOW,04/07/2023,"4,776.84",6541-Residential,THIRD PARTY PAYMENTS,PRIVATE CONTRACTOR,REVENUE
Walsall Council,http://opendatacommunities.org/id/metropolitan-district-council/walsall ,WC152-275,31.07.2023,CHILDRENS,ACE CARS & MINIBUSES LTD,17/07/2023,"2,140.00",6241-Hire of Vehicle with Driver,TRANSPORT,DIRECT TRANSPORT COSTS,REVENUE
Walsall Council,http://opendatacommunities.org/id/metropolitan-district-council/walsall ,WC152-276,31.07.2023,CHILDRENS,ACE CARS & MINIBUSES LTD,17/07/2023,"2,140.00",6241-Hire of Vehicle with Driver,TRANSPORT,DIRECT TRANSPORT COSTS,REVENUE
Walsall Council,http://opendatacommunities.org/id/metropolitan-district-council/walsall ,WC152-277,31.07.2023,CHILDRENS,ACE CARS & MINIBUSES LTD,17/07/2023,"2,140.00",6241-Hire of Vehicle with Driver,TRANSPORT,DIRECT TRANSPORT COSTS,REVENUE
Walsall Council,http://opendatacommunities.org/id/metropolitan-district-council/walsall ,WC152-278,31.07.2023,CHILDRENS,ACE CARS & MINIBUSES LTD,17/07/2023,"2,140.00",6241-Hire of Vehicle with Driver,TRANSPORT,DIRECT TRANSPORT COSTS,REVENUE
Walsall Council,http://opendatacommunities.org/id/metropolitan-district-council/walsall ,WC152-279,31.07.2023,CHILDRENS,ACE CARS & MINIBUSES LTD,17/07/2023,"2,360.00",6241-Hire of Vehicle with Driver,TRANSPORT,DIRECT TRANSPORT COSTS,REVENUE
Walsall Council,http://opendatacommunities.org/id/metropolitan-district-council/walsall ,WC152-280,31.07.2023,CHILDRENS,ACE CARS & MINIBUSES LTD,17/07/2023,"3,170.00",6241-Hire of Vehicle with Driver,TRANSPORT,DIRECT TRANSPORT COSTS,REVENUE
Walsall Council,http://opendatacommunities.org/id/metropolitan-district-council/walsall ,WC152-281,31.07.2023,CHILDRENS,ACE CARS & MINIBUSES LTD,17/07/2023,"2,390.00",6241-Hire of Vehicle with Driver,TRANSPORT,DIRECT TRANSPORT COSTS,REVENUE
Walsall Council,http://opendatacommunities.org/id/metropolitan-district-council/walsall ,WC152-282,31.07.2023,CHILDRENS,ACE CARS & MINIBUSES LTD,17/07/2023,"2,629.00",6241-Hire of Vehicle with Driver,TRANSPORT,DIRECT TRANSPORT COSTS,REVENUE
Walsall Council,http://opendatacommunities.org/id/metropolitan-district-council/walsall ,WC152-283,31.07.2023,CHILDRENS,ACE CARS & MINIBUSES LTD,17/07/2023,"2,390.00",6241-Hire of Vehicle with Driver,TRANSPORT,DIRECT TRANSPORT COSTS,REVENUE
Walsall Council,http://opendatacommunities.org/id/metropolitan-district-council/walsall ,WC152-284,31.07.2023,CHILDRENS,ACE CARS & MINIBUSES LTD,17/07/2023,"2,722.00",6241-Hire of Vehicle with Driver,TRANSPORT,DIRECT TRANSPORT COSTS,REVENUE
Walsall Council,http://opendatacommunities.org/id/metropolitan-district-council/walsall ,WC152-285,31.07.2023,CHILDRENS,ACE CARS & MINIBUSES LTD,17/07/2023,"2,722.00",6241-Hire of Vehicle with Driver,TRANSPORT,DIRECT TRANSPORT COSTS,REVENUE
Walsall Council,http://opendatacommunities.org/id/metropolitan-district-council/walsall ,WC152-286,31.07.2023,CHILDRENS,ACE CARS & MINIBUSES LTD,17/07/2023,"2,280.00",6241-Hire of Vehicle with Driver,TRANSPORT,DIRECT TRANSPORT COSTS,REVENUE
Walsall Council,http://opendatacommunities.org/id/metropolitan-district-council/walsall ,WC152-287,31.07.2023,CHILDRENS,ACE CARS & MINIBUSES LTD,17/07/2023,"2,360.00",6241-Hire of Vehicle with Driver,TRANSPORT,DIRECT TRANSPORT COSTS,REVENUE
Walsall Council,http://opendatacommunities.org/id/metropolitan-district-council/walsall ,WC152-288,31.07.2023,CHILDRENS,ACE CARS & MINIBUSES LTD,17/07/2023,"2,690.40",6241-Hire of Vehicle with Driver,TRANSPORT,DIRECT TRANSPORT COSTS,REVENUE
Walsall Council,http://opendatacommunities.org/id/metropolitan-district-council/walsall ,WC152-289,31.07.2023,CHILDRENS,ACE CARS & MINIBUSES LTD,17/07/2023,"2,501.60",6241-Hire of Vehicle with Driver,TRANSPORT,DIRECT TRANSPORT COSTS,REVENUE
Walsall Council,http://opendatacommunities.org/id/metropolitan-district-council/walsall ,WC152-290,31.07.2023,CHILDRENS,ACE CARS & MINIBUSES LTD,17/07/2023,"2,360.00",6241-Hire of Vehicle with Driver,TRANSPORT,DIRECT TRANSPORT COSTS,REVENUE
Walsall Council,http://opendatacommunities.org/id/metropolitan-district-council/walsall ,WC152-291,31.07.2023,CHILDRENS,ACE CARS & MINIBUSES LTD,17/07/2023,"3,200.00",6241-Hire of Vehicle with Driver,TRANSPORT,DIRECT TRANSPORT COSTS,REVENUE
Walsall Council,http://opendatacommunities.org/id/metropolitan-district-council/walsall ,WC152-292,31.07.2023,CHILDRENS,ACE CARS & MINIBUSES LTD,17/07/2023,"3,783.80",6241-Hire of Vehicle with Driver,TRANSPORT,DIRECT TRANSPORT COSTS,REVENUE
Walsall Council,http://opendatacommunities.org/id/metropolitan-district-council/walsall ,WC152-293,31.07.2023,CHILDRENS,ACE CARS & MINIBUSES LTD,17/07/2023,"2,722.00",6241-Hire of Vehicle with Driver,TRANSPORT,DIRECT TRANSPORT COSTS,REVENUE
Walsall Council,http://opendatacommunities.org/id/metropolitan-district-council/walsall ,WC152-294,31.07.2023,CHILDRENS,ACE CARS & MINIBUSES LTD,17/07/2023,"3,075.80",6241-Hire of Vehicle with Driver,TRANSPORT,DIRECT TRANSPORT COSTS,REVENUE
Walsall Council,http://opendatacommunities.org/id/metropolitan-district-council/walsall ,WC152-295,31.07.2023,CHILDRENS,ACE CARS & MINIBUSES LTD,17/07/2023,"3,393.80",6241-Hire of Vehicle with Driver,TRANSPORT,DIRECT TRANSPORT COSTS,REVENUE
Walsall Council,http://opendatacommunities.org/id/metropolitan-district-council/walsall ,WC152-296,31.07.2023,CHILDRENS,ACE CARS & MINIBUSES LTD,17/07/2023,"2,140.00",6241-Hire of Vehicle with Driver,TRANSPORT,DIRECT TRANSPORT COSTS,REVENUE
Walsall Council,http://opendatacommunities.org/id/metropolitan-district-council/walsall ,WC152-297,31.07.2023,CHILDRENS,ACE CARS & MINIBUSES LTD,17/07/2023,"2,140.00",6241-Hire of Vehicle with Driver,TRANSPORT,DIRECT TRANSPORT COSTS,REVENUE
Walsall Council,http://opendatacommunities.org/id/metropolitan-district-council/walsall ,WC152-298,31.07.2023,CHILDRENS,ACE CARS & MINIBUSES LTD,17/07/2023,"2,360.00",6241-Hire of Vehicle with Driver,TRANSPORT,DIRECT TRANSPORT COSTS,REVENUE
Walsall Council,http://opendatacommunities.org/id/metropolitan-district-council/walsall ,WC152-299,31.07.2023,CHILDRENS,ACE CARS & MINIBUSES LTD,17/07/2023,"2,280.00",6241-Hire of Vehicle with Driver,TRANSPORT,DIRECT TRANSPORT COSTS,REVENUE
Walsall Council,http://opendatacommunities.org/id/metropolitan-district-council/walsall ,WC152-300,31.07.2023,CHILDRENS,ACE CARS & MINIBUSES LTD,17/07/2023,"2,280.00",6241-Hire of Vehicle with Driver,TRANSPORT,DIRECT TRANSPORT COSTS,REVENUE
Walsall Council,http://opendatacommunities.org/id/metropolitan-district-council/walsall ,WC152-301,31.07.2023,CHILDRENS,ACE CARS & MINIBUSES LTD,17/07/2023,"3,848.00",6241-Hire of Vehicle with Driver,TRANSPORT,DIRECT TRANSPORT COSTS,REVENUE
Walsall Council,http://opendatacommunities.org/id/metropolitan-district-council/walsall ,WC152-302,31.07.2023,CHILDRENS,ACE CARS & MINIBUSES LTD,17/07/2023,"2,280.00",6241-Hire of Vehicle with Driver,TRANSPORT,DIRECT TRANSPORT COSTS,REVENUE
Walsall Council,http://opendatacommunities.org/id/metropolitan-district-council/walsall ,WC152-303,31.07.2023,CHILDRENS,ACE CARS & MINIBUSES LTD,17/07/2023,"3,115.20",6241-Hire of Vehicle with Driver,TRANSPORT,DIRECT TRANSPORT COSTS,REVENUE
Walsall Council,http://opendatacommunities.org/id/metropolitan-district-council/walsall ,WC152-304,31.07.2023,CHILDRENS,ACE CARS & MINIBUSES LTD,17/07/2023,"2,140.00",6241-Hire of Vehicle with Driver,TRANSPORT,DIRECT TRANSPORT COSTS,REVENUE
Walsall Council,http://opendatacommunities.org/id/metropolitan-district-council/walsall ,WC152-305,31.07.2023,CHILDRENS,ACE CARS & MINIBUSES LTD,17/07/2023,"4,248.00",6241-Hire of Vehicle with Driver,TRANSPORT,DIRECT TRANSPORT COSTS,REVENUE
Walsall Council,http://opendatacommunities.org/id/metropolitan-district-council/walsall ,WC152-306,31.07.2023,CHILDRENS,ACE CARS & MINIBUSES LTD,17/07/2023,"2,140.00",6241-Hire of Vehicle with Driver,TRANSPORT,DIRECT TRANSPORT COSTS,REVENUE
Walsall Council,http://opendatacommunities.org/id/metropolitan-district-council/walsall ,WC152-307,31.07.2023,CHILDRENS,ACE CARS & MINIBUSES LTD,17/07/2023,"2,140.00",6241-Hire of Vehicle with Driver,TRANSPORT,DIRECT TRANSPORT COSTS,REVENUE
Walsall Council,http://opendatacommunities.org/id/metropolitan-district-council/walsall ,WC152-308,31.07.2023,CHILDRENS,ACE CARS & MINIBUSES LTD,17/07/2023,"2,140.00",6241-Hire of Vehicle with Driver,TRANSPORT,DIRECT TRANSPORT COSTS,REVENUE
Walsall Council,http://opendatacommunities.org/id/metropolitan-district-council/walsall ,WC152-309,31.07.2023,CHILDRENS,ACE CARS & MINIBUSES LTD,17/07/2023,"2,360.00",6241-Hire of Vehicle with Driver,TRANSPORT,DIRECT TRANSPORT COSTS,REVENUE
Walsall Council,http://opendatacommunities.org/id/metropolitan-district-council/walsall ,WC152-310,31.07.2023,CHILDRENS,ACE CARS & MINIBUSES LTD,17/07/2023,"2,390.00",6241-Hire of Vehicle with Driver,TRANSPORT,DIRECT TRANSPORT COSTS,REVENUE
Walsall Council,http://opendatacommunities.org/id/metropolitan-district-council/walsall ,WC152-311,31.07.2023,CHILDRENS,ACE CARS & MINIBUSES LTD,17/07/2023,"2,722.00",6241-Hire of Vehicle with Driver,TRANSPORT,DIRECT TRANSPORT COSTS,REVENUE
Walsall Council,http://opendatacommunities.org/id/metropolitan-district-council/walsall ,WC152-312,31.07.2023,CHILDRENS,ACE CARS & MINIBUSES LTD,17/07/2023,"2,722.00",6241-Hire of Vehicle with Driver,TRANSPORT,DIRECT TRANSPORT COSTS,REVENUE
Walsall Council,http://opendatacommunities.org/id/metropolitan-district-council/walsall ,WC152-313,31.07.2023,CHILDRENS,ACE CARS & MINIBUSES LTD,17/07/2023,"2,722.00",6241-Hire of Vehicle with Driver,TRANSPORT,DIRECT TRANSPORT COSTS,REVENUE
Walsall Council,http://opendatacommunities.org/id/metropolitan-district-council/walsall ,WC152-314,31.07.2023,CHILDRENS,ACE CARS & MINIBUSES LTD,17/07/2023,"3,390.00",6241-Hire of Vehicle with Driver,TRANSPORT,DIRECT TRANSPORT COSTS,REVENUE
Walsall Council,http://opendatacommunities.org/id/metropolitan-district-council/walsall ,WC152-315,31.07.2023,CHILDRENS,ACE COACHING LIMITED,03/07/2023,"3,328.00",6211-Professional Fees & Services,SUPPLIES & SERVICES,SERVICES,REVENUE
Walsall Council,http://opendatacommunities.org/id/metropolitan-district-council/walsall ,WC152-316,31.07.2023,ADULT SOCIAL CARE,ACEPAY LTD (COTTAGE NUR HOME),04/07/2023,"2,505.36",6541-Nursing,THIRD PARTY PAYMENTS,PRIVATE CONTRACTOR,REVENUE
Walsall Council,http://opendatacommunities.org/id/metropolitan-district-council/walsall ,WC152-317,31.07.2023,ADULT SOCIAL CARE,ACEPAY LTD (COTTAGE NUR HOME),04/07/2023,"2,505.36",6541-Nursing,THIRD PARTY PAYMENTS,PRIVATE CONTRACTOR,REVENUE
Walsall Council,http://opendatacommunities.org/id/metropolitan-district-council/walsall ,WC152-318,31.07.2023,ADULT SOCIAL CARE,ACEPAY LTD (COTTAGE NUR HOME),04/07/2023,"2,505.36",6541-Nursing,THIRD PARTY PAYMENTS,PRIVATE CONTRACTOR,REVENUE
Walsall Council,http://opendatacommunities.org/id/metropolitan-district-council/walsall ,WC152-319,31.07.2023,ADULT SOCIAL CARE,ACEPAY LTD (COTTAGE NUR HOME),04/07/2023,"2,505.36",6541-Nursing,THIRD PARTY PAYMENTS,PRIVATE CONTRACTOR,REVENUE
Walsall Council,http://opendatacommunities.org/id/metropolitan-district-council/walsall ,WC152-320,31.07.2023,ADULT SOCIAL CARE,ACEPAY LTD (COTTAGE NUR HOME),04/07/2023,"2,413.36",6541-Residential EMI,THIRD PARTY PAYMENTS,PRIVATE CONTRACTOR,REVENUE
Walsall Council,http://opendatacommunities.org/id/metropolitan-district-council/walsall ,WC152-321,31.07.2023,ADULT SOCIAL CARE,ACEPAY LTD (COTTAGE NUR HOME),04/07/2023,"2,819.08",6541-Nursing EMI,THIRD PARTY PAYMENTS,PRIVATE CONTRACTOR,REVENUE
Walsall Council,http://opendatacommunities.org/id/metropolitan-district-council/walsall ,WC152-322,31.07.2023,ADULT SOCIAL CARE,ACEPAY LTD (COTTAGE NUR HOME),04/07/2023,"2,413.36",6541-Residential EMI,THIRD PARTY PAYMENTS,PRIVATE CONTRACTOR,REVENUE
Walsall Council,http://opendatacommunities.org/id/metropolitan-district-council/walsall ,WC152-323,31.07.2023,ADULT SOCIAL CARE,ACEPAY LTD (COTTAGE NUR HOME),04/07/2023,"1,342.16",6541-Nursing,THIRD PARTY PAYMENTS,PRIVATE CONTRACTOR,REVENUE
Walsall Council,http://opendatacommunities.org/id/metropolitan-district-council/walsall ,WC152-324,31.07.2023,ADULT SOCIAL CARE,ACEPAY LTD (COTTAGE NUR HOME),04/07/2023,"2,505.36",6541-Nursing,THIRD PARTY PAYMENTS,PRIVATE CONTRACTOR,REVENUE
Walsall Council,http://opendatacommunities.org/id/metropolitan-district-council/walsall ,WC152-325,31.07.2023,ADULT SOCIAL CARE,ACEPAY LTD (COTTAGE NUR HOME),04/07/2023,"2,505.36",6541-Nursing,THIRD PARTY PAYMENTS,PRIVATE CONTRACTOR,REVENUE
Walsall Council,http://opendatacommunities.org/id/metropolitan-district-council/walsall ,WC152-326,31.07.2023,ADULT SOCIAL CARE,ACEPAY LTD (COTTAGE NUR HOME),04/07/2023,"2,505.36",6541-Nursing,THIRD PARTY PAYMENTS,PRIVATE CONTRACTOR,REVENUE
Walsall Council,http://opendatacommunities.org/id/metropolitan-district-council/walsall ,WC152-327,31.07.2023,ADULT SOCIAL CARE,ACEPAY LTD (COTTAGE NUR HOME),04/07/2023,"2,505.36",6541-Nursing,THIRD PARTY PAYMENTS,PRIVATE CONTRACTOR,REVENUE
Walsall Council,http://opendatacommunities.org/id/metropolitan-district-council/walsall ,WC152-328,31.07.2023,ADULT SOCIAL CARE,ACEPAY LTD (COTTAGE NUR HOME),04/07/2023,"2,505.36",6541-Nursing,THIRD PARTY PAYMENTS,PRIVATE CONTRACTOR,REVENUE
Walsall Council,http://opendatacommunities.org/id/metropolitan-district-council/walsall ,WC152-329,31.07.2023,ADULT SOCIAL CARE,ACEPAY LTD (COTTAGE NUR HOME),04/07/2023,"2,505.36",6541-Nursing,THIRD PARTY PAYMENTS,PRIVATE CONTRACTOR,REVENUE
Walsall Council,http://opendatacommunities.org/id/metropolitan-district-council/walsall ,WC152-330,31.07.2023,ADULT SOCIAL CARE,ACEPAY LTD (COTTAGE NUR HOME),04/07/2023,"2,819.08",6541-Nursing EMI,THIRD PARTY PAYMENTS,PRIVATE CONTRACTOR,REVENUE
Walsall Council,http://opendatacommunities.org/id/metropolitan-district-council/walsall ,WC152-331,31.07.2023,ADULT SOCIAL CARE,ACEPAY LTD (COTTAGE NUR HOME),04/07/2023,"2,413.36",6541-Residential EMI,THIRD PARTY PAYMENTS,PRIVATE CONTRACTOR,REVENUE
Walsall Council,http://opendatacommunities.org/id/metropolitan-district-council/walsall ,WC152-332,31.07.2023,ADULT SOCIAL CARE,ACEPAY LTD (COTTAGE NUR HOME),04/07/2023,"2,413.36",6541-Residential EMI,THIRD PARTY PAYMENTS,PRIVATE CONTRACTOR,REVENUE
Walsall Council,http://opendatacommunities.org/id/metropolitan-district-council/walsall ,WC152-333,31.07.2023,ADULT SOCIAL CARE,ACEPAY LTD (COTTAGE NUR HOME),04/07/2023,"2,819.08",6541-Nursing EMI,THIRD PARTY PAYMENTS,PRIVATE CONTRACTOR,REVENUE
Walsall Council,http://opendatacommunities.org/id/metropolitan-district-council/walsall ,WC152-334,31.07.2023,ADULT SOCIAL CARE,ACHIEVE TOGETHER LIMITED,04/07/2023,"5,506.08",6541-Residential,THIRD PARTY PAYMENTS,PRIVATE CONTRACTOR,REVENUE
Walsall Council,http://opendatacommunities.org/id/metropolitan-district-council/walsall ,WC152-335,31.07.2023,ADULT SOCIAL CARE,ACHIEVE TOGETHER LIMITED,04/07/2023,"9,178.80",6541-Residential,THIRD PARTY PAYMENTS,PRIVATE CONTRACTOR,REVENUE
Walsall Council,http://opendatacommunities.org/id/metropolitan-district-council/walsall ,WC152-336,31.07.2023,ADULT SOCIAL CARE,ACHIEVE TOGETHER LIMITED,04/07/2023,"3,852.80",6541-Residential,THIRD PARTY PAYMENTS,PRIVATE CONTRACTOR,REVENUE
Walsall Council,http://opendatacommunities.org/id/metropolitan-district-council/walsall ,WC152-337,31.07.2023,ADULT SOCIAL CARE,ACHIEVE TOGETHER LIMITED,04/07/2023,"4,920.72",6541-Residential,THIRD PARTY PAYMENTS,PRIVATE CONTRACTOR,REVENUE
Walsall Council,http://opendatacommunities.org/id/metropolitan-district-council/walsall ,WC152-338,31.07.2023,ADULT SOCIAL CARE,ACHIEVE TOGETHER LIMITED,04/07/2023,"6,572.72",6541-Residential,THIRD PARTY PAYMENTS,PRIVATE CONTRACTOR,REVENUE
Walsall Council,http://opendatacommunities.org/id/metropolitan-district-council/walsall ,WC152-339,31.07.2023,"ECONOMY, ENVIRONMENT & COMMUNITIES",ACOEM UK LTD FORMERLY AIR MONITORS LIMITED,13/07/2023,435,6411-Repair & Maintenance of Furniture & Equipment,SUPPLIES & SERVICES,EQUIPMENT FURNITURE & MATERIALS,REVENUE
Walsall Council,http://opendatacommunities.org/id/metropolitan-district-council/walsall ,WC152-340,31.07.2023,"ECONOMY, ENVIRONMENT & COMMUNITIES",ACOEM UK LTD FORMERLY AIR MONITORS LIMITED,13/07/2023,"2,325.00",6411-Repair & Maintenance of Furniture & Equipment,SUPPLIES & SERVICES,EQUIPMENT FURNITURE & MATERIALS,REVENUE
Walsall Council,http://opendatacommunities.org/id/metropolitan-district-council/walsall ,WC152-341,31.07.2023,"ECONOMY, ENVIRONMENT & COMMUNITIES",ACOEM UK LTD FORMERLY AIR MONITORS LIMITED,13/07/2023,"32,460.00",6411-Repair & Maintenance of Furniture & Equipment,SUPPLIES & SERVICES,EQUIPMENT FURNITURE & MATERIALS,REVENUE
Walsall Council,http://opendatacommunities.org/id/metropolitan-district-council/walsall ,WC152-342,31.07.2023,CHILDRENS,ACORN CARE & EDUCATION LTD (SALES),19/07/2023,"6,389.17",1220-Professional Fees & Services,SUPPLIES & SERVICES,SERVICES,REVENUE
Walsall Council,http://opendatacommunities.org/id/metropolitan-district-council/walsall ,WC152-343,31.07.2023,CHILDRENS,ACORN CARE & EDUCATION LTD (SALES),03/07/2023,"-25,960.02",1220-Professional Fees & Services,SUPPLIES & SERVICES,SERVICES,REVENUE
Walsall Council,http://opendatacommunities.org/id/metropolitan-district-council/walsall ,WC152-344,31.07.2023,CHILDRENS,ACORN CARE & EDUCATION LTD (SALES),19/07/2023,"31,091.84",6223-External Residential Care-Oth Agency Provision,THIRD PARTY PAYMENTS,PRIVATE CONTRACTOR,REVENUE
Walsall Council,http://opendatacommunities.org/id/metropolitan-district-council/walsall ,WC152-345,31.07.2023,CHILDRENS,ACORN CARE & EDUCATION LTD (SALES),19/07/2023,"35,269.47",6223-External Residential Care-Oth Agency Provision,THIRD PARTY PAYMENTS,PRIVATE CONTRACTOR,REVENUE
Walsall Council,http://opendatacommunities.org/id/metropolitan-district-council/walsall ,WC152-346,31.07.2023,CHILDRENS,ACORN CARE & EDUCATION LTD (SALES),03/07/2023,"-25,959.97",1220-Professional Fees & Services,SUPPLIES & SERVICES,SERVICES,REVENUE
Walsall Council,http://opendatacommunities.org/id/metropolitan-district-council/walsall ,WC152-347,31.07.2023,CHILDRENS,ACORN CARE & EDUCATION LTD (SALES),03/07/2023,"25,959.96",1220-Professional Fees & Services,SUPPLIES & SERVICES,SERVICES,REVENUE
Walsall Council,http://opendatacommunities.org/id/metropolitan-district-council/walsall ,WC152-348,31.07.2023,CHILDRENS,ACORN CARE & EDUCATION LTD (SALES),03/07/2023,"25,959.97",1220-Professional Fees & Services,SUPPLIES & SERVICES,SERVICES,REVENUE
Walsall Council,http://opendatacommunities.org/id/metropolitan-district-council/walsall ,WC152-349,31.07.2023,CHILDRENS,ACORN CARE & EDUCATION LTD (SALES),03/07/2023,"25,959.97",1220-Professional Fees & Services,SUPPLIES & SERVICES,SERVICES,REVENUE
Walsall Council,http://opendatacommunities.org/id/metropolitan-district-council/walsall ,WC152-350,31.07.2023,CHILDRENS,ACORN FOSTERING SERVICES LTD,11/07/2023,"3,340.00",6223-Independent Foster Care-Oth Agency Provision,THIRD PARTY PAYMENTS,PRIVATE CONTRACTOR,REVENUE
Walsall Council,http://opendatacommunities.org/id/metropolitan-district-council/walsall ,WC152-351,31.07.2023,CHILDRENS,ACORN RESIDENTIAL CARE LTD T/A ADECYN HOMES,11/07/2023,"13,398.00",6223-External Residential Care-Oth Agency Provision,THIRD PARTY PAYMENTS,PRIVATE CONTRACTOR,REVENUE
Walsall Council,http://opendatacommunities.org/id/metropolitan-district-council/walsall ,WC152-352,31.07.2023,CHILDRENS,ACORNS CHILDRENS HOSPICE TRUST,10/07/2023,"1,950.00",6220-Professional Fees & Services,SUPPLIES & SERVICES,SERVICES,REVENUE
Walsall Council,http://opendatacommunities.org/id/metropolitan-district-council/walsall ,WC152-353,31.07.2023,CHILDRENS,ACORNS CHILDRENS HOSPICE TRUST,25/07/2023,975,6220-Professional Fees & Services,SUPPLIES & SERVICES,SERVICES,REVENUE
Walsall Council,http://opendatacommunities.org/id/metropolitan-district-council/walsall ,WC152-354,31.07.2023,CHILDRENS,ACORNS CHILDRENS HOSPICE TRUST,21/07/2023,"2,925.00",6220-Professional Fees & Services,SUPPLIES & SERVICES,SERVICES,REVENUE
Walsall Council,http://opendatacommunities.org/id/metropolitan-district-council/walsall ,WC152-355,31.07.2023,CHILDRENS,ACTIVE CARE SOLUTIONS LTD,11/07/2023,"3,514.80",6223-Independent Foster Care-Oth Agency Provision,THIRD PARTY PAYMENTS,PRIVATE CONTRACTOR,REVENUE
Walsall Council,http://opendatacommunities.org/id/metropolitan-district-council/walsall ,WC152-356,31.07.2023,CHILDRENS,ACTIVE CARE SOLUTIONS LTD,11/07/2023,"3,514.80",6223-Independent Foster Care-Oth Agency Provision,THIRD PARTY PAYMENTS,PRIVATE CONTRACTOR,REVENUE
Walsall Council,http://opendatacommunities.org/id/metropolitan-district-council/walsall ,WC152-357,31.07.2023,CHILDRENS,ACTIVE CARE SOLUTIONS LTD,11/07/2023,"3,317.56",6223-Independent Foster Care-Oth Agency Provision,THIRD PARTY PAYMENTS,PRIVATE CONTRACTOR,REVENUE
Walsall Council,http://opendatacommunities.org/id/metropolitan-district-council/walsall ,WC152-358,31.07.2023,"ECONOMY, ENVIRONMENT & COMMUNITIES",ACTIVITY GYM LTD,20/07/2023,"2,250.00",6413-Fees & Licences,SUPPLIES & SERVICES,SERVICES,REVENUE
Walsall Council,http://opendatacommunities.org/id/metropolitan-district-council/walsall ,WC152-359,31.07.2023,CHILDRENS,ACTIVITY GYM LTD,03/07/2023,"3,444.80",6211-Professional Fees & Services,SUPPLIES & SERVICES,SERVICES,REVENUE
Walsall Council,http://opendatacommunities.org/id/metropolitan-district-council/walsall ,WC152-360,31.07.2023,RESOURCES AND TRANSFORMATION,AD HOC UK SECURITY LTD,27/07/2023,339,6310-Security & Alarm Maintenance,PREMISES,REPAIRS & MAINTENANCE,REVENUE
Walsall Council,http://opendatacommunities.org/id/metropolitan-district-council/walsall ,WC152-361,31.07.2023,ADULT SOCIAL CARE,REDACTED,06/07/2023,747.92,6541-Direct Payment,THIRD PARTY PAYMENTS,PRIVATE CONTRACTOR,REVENUE
Walsall Council,http://opendatacommunities.org/id/metropolitan-district-council/walsall ,WC152-362,31.07.2023,CHILDRENS,REDACTED,27/07/2023,350.96,6223-Residents Orders,TRANSFER PAYMENTS,CHILDREN SOCIAL SERVICES CLIENT,REVENUE
Walsall Council,http://opendatacommunities.org/id/metropolitan-district-council/walsall ,WC152-363,31.07.2023,ADULT SOCIAL CARE,REDACTED,06/07/2023,"2,177.80",6541-Direct Payment,THIRD PARTY PAYMENTS,PRIVATE CONTRACTOR,REVENUE
Walsall Council,http://opendatacommunities.org/id/metropolitan-district-council/walsall ,WC152-364,31.07.2023,ADULT SOCIAL CARE,ADVANCE HEALTH CARE (UK) LTD,26/07/2023,358.52,6541-Domiciliary Care,THIRD PARTY PAYMENTS,PRIVATE CONTRACTOR,REVENUE
Walsall Council,http://opendatacommunities.org/id/metropolitan-district-council/walsall ,WC152-365,31.07.2023,ADULT SOCIAL CARE,ADVANCE HEALTH CARE (UK) LTD,26/07/2023,718.96,6541-Domiciliary Care,THIRD PARTY PAYMENTS,PRIVATE CONTRACTOR,REVENUE
Walsall Council,http://opendatacommunities.org/id/metropolitan-district-council/walsall ,WC152-366,31.07.2023,ADULT SOCIAL CARE,ADVANCE HEALTH CARE (UK) LTD,26/07/2023,"1,110.04",6541-Domiciliary Care,THIRD PARTY PAYMENTS,PRIVATE CONTRACTOR,REVENUE
Walsall Council,http://opendatacommunities.org/id/metropolitan-district-council/walsall ,WC152-367,31.07.2023,ADULT SOCIAL CARE,ADVANCE HEALTH CARE (UK) LTD,26/07/2023,980.84,6541-Domiciliary Care,THIRD PARTY PAYMENTS,PRIVATE CONTRACTOR,REVENUE
Walsall Council,http://opendatacommunities.org/id/metropolitan-district-council/walsall ,WC152-368,31.07.2023,ADULT SOCIAL CARE,ADVANCE HEALTH CARE (UK) LTD,26/07/2023,"1,093.16",6541-Domiciliary Care,THIRD PARTY PAYMENTS,PRIVATE CONTRACTOR,REVENUE
Walsall Council,http://opendatacommunities.org/id/metropolitan-district-council/walsall ,WC152-369,31.07.2023,ADULT SOCIAL CARE,ADVANCE HEALTH CARE (UK) LTD,26/07/2023,550.78,6541-Domiciliary Care,THIRD PARTY PAYMENTS,PRIVATE CONTRACTOR,REVENUE
Walsall Council,http://opendatacommunities.org/id/metropolitan-district-council/walsall ,WC152-370,31.07.2023,ADULT SOCIAL CARE,ADVANCE HEALTH CARE (UK) LTD,26/07/2023,"1,059.52",6541-Domiciliary Care,THIRD PARTY PAYMENTS,PRIVATE CONTRACTOR,REVENUE
Walsall Council,http://opendatacommunities.org/id/metropolitan-district-council/walsall ,WC152-371,31.07.2023,ADULT SOCIAL CARE,ADVANCE HEALTH CARE (UK) LTD,26/07/2023,784.56,6541-Domiciliary Care,THIRD PARTY PAYMENTS,PRIVATE CONTRACTOR,REVENUE
Walsall Council,http://opendatacommunities.org/id/metropolitan-district-council/walsall ,WC152-372,31.07.2023,ADULT SOCIAL CARE,ADVANCE HEALTH CARE (UK) LTD,26/07/2023,252.28,6541-Domiciliary Care,THIRD PARTY PAYMENTS,PRIVATE CONTRACTOR,REVENUE
Walsall Council,http://opendatacommunities.org/id/metropolitan-district-council/walsall ,WC152-373,31.07.2023,ADULT SOCIAL CARE,ADVANCE HEALTH CARE (UK) LTD,26/07/2023,"1,126.76",6541-Domiciliary Care,THIRD PARTY PAYMENTS,PRIVATE CONTRACTOR,REVENUE
Walsall Council,http://opendatacommunities.org/id/metropolitan-district-council/walsall ,WC152-374,31.07.2023,ADULT SOCIAL CARE,ADVANCE HEALTH CARE (UK) LTD,26/07/2023,509.88,6541-Domiciliary Care,THIRD PARTY PAYMENTS,PRIVATE CONTRACTOR,REVENUE
Walsall Council,http://opendatacommunities.org/id/metropolitan-district-council/walsall ,WC152-375,31.07.2023,ADULT SOCIAL CARE,ADVANCE HEALTH CARE (UK) LTD,26/07/2023,733.92,6541-Domiciliary Care,THIRD PARTY PAYMENTS,PRIVATE CONTRACTOR,REVENUE
Walsall Council,http://opendatacommunities.org/id/metropolitan-district-council/walsall ,WC152-376,31.07.2023,ADULT SOCIAL CARE,ADVANCE HEALTH CARE (UK) LTD,04/07/2023,378,6541-Domiciliary Care,THIRD PARTY PAYMENTS,PRIVATE CONTRACTOR,REVENUE
Walsall Council,http://opendatacommunities.org/id/metropolitan-district-council/walsall ,WC152-377,31.07.2023,ADULT SOCIAL CARE,ADVANCE HEALTH CARE (UK) LTD,04/07/2023,963,6541-Domiciliary Care,THIRD PARTY PAYMENTS,PRIVATE CONTRACTOR,REVENUE
Walsall Council,http://opendatacommunities.org/id/metropolitan-district-council/walsall ,WC152-378,31.07.2023,ADULT SOCIAL CARE,ADVANCE HEALTH CARE (UK) LTD,04/07/2023,441,6541-Domiciliary Care,THIRD PARTY PAYMENTS,PRIVATE CONTRACTOR,REVENUE
Walsall Council,http://opendatacommunities.org/id/metropolitan-district-council/walsall ,WC152-379,31.07.2023,ADULT SOCIAL CARE,ADVANCE HEALTH CARE (UK) LTD,04/07/2023,-486,6541-Domiciliary Care,THIRD PARTY PAYMENTS,PRIVATE CONTRACTOR,REVENUE
Walsall Council,http://opendatacommunities.org/id/metropolitan-district-council/walsall ,WC152-380,31.07.2023,ADULT SOCIAL CARE,ADVANCE HEALTH CARE (UK) LTD,04/07/2023,567,6541-Domiciliary Care,THIRD PARTY PAYMENTS,PRIVATE CONTRACTOR,REVENUE
Walsall Council,http://opendatacommunities.org/id/metropolitan-district-council/walsall ,WC152-381,31.07.2023,ADULT SOCIAL CARE,ADVANCE HEALTH CARE (UK) LTD,04/07/2023,567,6541-Domiciliary Care,THIRD PARTY PAYMENTS,PRIVATE CONTRACTOR,REVENUE
Walsall Council,http://opendatacommunities.org/id/metropolitan-district-council/walsall ,WC152-382,31.07.2023,ADULT SOCIAL CARE,ADVANCE HEALTH CARE (UK) LTD,04/07/2023,567,6541-Domiciliary Care,THIRD PARTY PAYMENTS,PRIVATE CONTRACTOR,REVENUE
Walsall Council,http://opendatacommunities.org/id/metropolitan-district-council/walsall ,WC152-383,31.07.2023,ADULT SOCIAL CARE,ADVANCE HEALTH CARE (UK) LTD,04/07/2023,567,6541-Domiciliary Care,THIRD PARTY PAYMENTS,PRIVATE CONTRACTOR,REVENUE
Walsall Council,http://opendatacommunities.org/id/metropolitan-district-council/walsall ,WC152-384,31.07.2023,ADULT SOCIAL CARE,ADVANCE HEALTH CARE (UK) LTD,04/07/2023,630,6541-Domiciliary Care,THIRD PARTY PAYMENTS,PRIVATE CONTRACTOR,REVENUE
Walsall Council,http://opendatacommunities.org/id/metropolitan-district-council/walsall ,WC152-385,31.07.2023,ADULT SOCIAL CARE,ADVANCE HEALTH CARE (UK) LTD,04/07/2023,283.5,6541-Domiciliary Care,THIRD PARTY PAYMENTS,PRIVATE CONTRACTOR,REVENUE
Walsall Council,http://opendatacommunities.org/id/metropolitan-district-council/walsall ,WC152-386,31.07.2023,ADULT SOCIAL CARE,ADVANCE HEALTH CARE (UK) LTD,04/07/2023,420,6541-Domiciliary Care,THIRD PARTY PAYMENTS,PRIVATE CONTRACTOR,REVENUE
Walsall Council,http://opendatacommunities.org/id/metropolitan-district-council/walsall ,WC152-387,31.07.2023,ADULT SOCIAL CARE,ADVANCE HEALTH CARE (UK) LTD,04/07/2023,441,6541-Domiciliary Care,THIRD PARTY PAYMENTS,PRIVATE CONTRACTOR,REVENUE
Walsall Council,http://opendatacommunities.org/id/metropolitan-district-council/walsall ,WC152-388,31.07.2023,ADULT SOCIAL CARE,ADVANCE HEALTH CARE (UK) LTD,04/07/2023,504,6541-Domiciliary Care,THIRD PARTY PAYMENTS,PRIVATE CONTRACTOR,REVENUE
Walsall Council,http://opendatacommunities.org/id/metropolitan-district-council/walsall ,WC152-389,31.07.2023,ADULT SOCIAL CARE,ADVANCE HEALTH CARE (UK) LTD,04/07/2023,252,6541-Domiciliary Care,THIRD PARTY PAYMENTS,PRIVATE CONTRACTOR,REVENUE
Walsall Council,http://opendatacommunities.org/id/metropolitan-district-council/walsall ,WC152-390,31.07.2023,ADULT SOCIAL CARE,ADVANCE HEALTH CARE (UK) LTD,04/07/2023,504,6541-Domiciliary Care,THIRD PARTY PAYMENTS,PRIVATE CONTRACTOR,REVENUE
Walsall Council,http://opendatacommunities.org/id/metropolitan-district-council/walsall ,WC152-391,31.07.2023,ADULT SOCIAL CARE,ADVANCE HEALTH CARE (UK) LTD,04/07/2023,441,6541-Domiciliary Care,THIRD PARTY PAYMENTS,PRIVATE CONTRACTOR,REVENUE
Walsall Council,http://opendatacommunities.org/id/metropolitan-district-council/walsall ,WC152-392,31.07.2023,ADULT SOCIAL CARE,ADVANCE HEALTH CARE (UK) LTD,04/07/2023,567,6541-Domiciliary Care,THIRD PARTY PAYMENTS,PRIVATE CONTRACTOR,REVENUE
Walsall Council,http://opendatacommunities.org/id/metropolitan-district-council/walsall ,WC152-393,31.07.2023,ADULT SOCIAL CARE,ADVANCE HEALTH CARE (UK) LTD,04/07/2023,378,6541-Domiciliary Care,THIRD PARTY PAYMENTS,PRIVATE CONTRACTOR,REVENUE
Walsall Council,http://opendatacommunities.org/id/metropolitan-district-council/walsall ,WC152-394,31.07.2023,ADULT SOCIAL CARE,ADVANCE HEALTH CARE (UK) LTD,04/07/2023,630,6541-Domiciliary Care,THIRD PARTY PAYMENTS,PRIVATE CONTRACTOR,REVENUE
Walsall Council,http://opendatacommunities.org/id/metropolitan-district-council/walsall ,WC152-395,31.07.2023,ADULT SOCIAL CARE,ADVANCE HEALTH CARE (UK) LTD,04/07/2023,283.5,6541-Domiciliary Care,THIRD PARTY PAYMENTS,PRIVATE CONTRACTOR,REVENUE
Walsall Council,http://opendatacommunities.org/id/metropolitan-district-council/walsall ,WC152-396,31.07.2023,ADULT SOCIAL CARE,ADVANCE HEALTH CARE (UK) LTD,04/07/2023,301.5,6541-Domiciliary Care,THIRD PARTY PAYMENTS,PRIVATE CONTRACTOR,REVENUE
Walsall Council,http://opendatacommunities.org/id/metropolitan-district-council/walsall ,WC152-397,31.07.2023,ADULT SOCIAL CARE,ADVANCE HEALTH CARE (UK) LTD,04/07/2023,630,6541-Domiciliary Care,THIRD PARTY PAYMENTS,PRIVATE CONTRACTOR,REVENUE
Walsall Council,http://opendatacommunities.org/id/metropolitan-district-council/walsall ,WC152-398,31.07.2023,ADULT SOCIAL CARE,ADVANCE HEALTH CARE (UK) LTD,04/07/2023,441,6541-Domiciliary Care,THIRD PARTY PAYMENTS,PRIVATE CONTRACTOR,REVENUE
Walsall Council,http://opendatacommunities.org/id/metropolitan-district-council/walsall ,WC152-399,31.07.2023,ADULT SOCIAL CARE,ADVANCE HEALTH CARE (UK) LTD,04/07/2023,567,6541-Domiciliary Care,THIRD PARTY PAYMENTS,PRIVATE CONTRACTOR,REVENUE
Walsall Council,http://opendatacommunities.org/id/metropolitan-district-council/walsall ,WC152-400,31.07.2023,ADULT SOCIAL CARE,ADVANCE HEALTH CARE (UK) LTD,04/07/2023,540,6541-Domiciliary Care,THIRD PARTY PAYMENTS,PRIVATE CONTRACTOR,REVENUE
Walsall Council,http://opendatacommunities.org/id/metropolitan-district-council/walsall ,WC152-401,31.07.2023,ADULT SOCIAL CARE,ADVANCE HEALTH CARE (UK) LTD,04/07/2023,279,6541-Domiciliary Care,THIRD PARTY PAYMENTS,PRIVATE CONTRACTOR,REVENUE
Walsall Council,http://opendatacommunities.org/id/metropolitan-district-council/walsall ,WC152-402,31.07.2023,ADULT SOCIAL CARE,ADVANCE HEALTH CARE (UK) LTD,04/07/2023,504,6541-Domiciliary Care,THIRD PARTY PAYMENTS,PRIVATE CONTRACTOR,REVENUE
Walsall Council,http://opendatacommunities.org/id/metropolitan-district-council/walsall ,WC152-403,31.07.2023,ADULT SOCIAL CARE,ADVANCE HEALTH CARE (UK) LTD,04/07/2023,288,6541-Domiciliary Care,THIRD PARTY PAYMENTS,PRIVATE CONTRACTOR,REVENUE
Walsall Council,http://opendatacommunities.org/id/metropolitan-district-council/walsall ,WC152-404,31.07.2023,ADULT SOCIAL CARE,ADVANCE HEALTH CARE (UK) LTD,04/07/2023,468,6541-Domiciliary Care,THIRD PARTY PAYMENTS,PRIVATE CONTRACTOR,REVENUE
Walsall Council,http://opendatacommunities.org/id/metropolitan-district-council/walsall ,WC152-405,31.07.2023,ADULT SOCIAL CARE,ADVANCE HEALTH CARE (UK) LTD,04/07/2023,769.5,6541-Domiciliary Care,THIRD PARTY PAYMENTS,PRIVATE CONTRACTOR,REVENUE
Walsall Council,http://opendatacommunities.org/id/metropolitan-district-council/walsall ,WC152-406,31.07.2023,ADULT SOCIAL CARE,ADVANCE HEALTH CARE (UK) LTD,04/07/2023,301.5,6541-Domiciliary Care,THIRD PARTY PAYMENTS,PRIVATE CONTRACTOR,REVENUE
Walsall Council,http://opendatacommunities.org/id/metropolitan-district-council/walsall ,WC152-407,31.07.2023,ADULT SOCIAL CARE,ADVANCE HEALTH CARE (UK) LTD,04/07/2023,567,6541-Domiciliary Care,THIRD PARTY PAYMENTS,PRIVATE CONTRACTOR,REVENUE
Walsall Council,http://opendatacommunities.org/id/metropolitan-district-council/walsall ,WC152-408,31.07.2023,ADULT SOCIAL CARE,ADVANCE HEALTH CARE (UK) LTD,04/07/2023,567,6541-Domiciliary Care,THIRD PARTY PAYMENTS,PRIVATE CONTRACTOR,REVENUE
Walsall Council,http://opendatacommunities.org/id/metropolitan-district-council/walsall ,WC152-409,31.07.2023,ADULT SOCIAL CARE,ADVANCE HEALTH CARE (UK) LTD,04/07/2023,567,6541-Domiciliary Care,THIRD PARTY PAYMENTS,PRIVATE CONTRACTOR,REVENUE
Walsall Council,http://opendatacommunities.org/id/metropolitan-district-council/walsall ,WC152-410,31.07.2023,ADULT SOCIAL CARE,ADVANCE HEALTH CARE (UK) LTD,04/07/2023,963,6541-Domiciliary Care,THIRD PARTY PAYMENTS,PRIVATE CONTRACTOR,REVENUE
Walsall Council,http://opendatacommunities.org/id/metropolitan-district-council/walsall ,WC152-411,31.07.2023,ADULT SOCIAL CARE,ADVANCE HEALTH CARE (UK) LTD,04/07/2023,441,6541-Domiciliary Care,THIRD PARTY PAYMENTS,PRIVATE CONTRACTOR,REVENUE
Walsall Council,http://opendatacommunities.org/id/metropolitan-district-council/walsall ,WC152-412,31.07.2023,ADULT SOCIAL CARE,ADVANCE HEALTH CARE (UK) LTD,04/07/2023,378,6541-Domiciliary Care,THIRD PARTY PAYMENTS,PRIVATE CONTRACTOR,REVENUE
Walsall Council,http://opendatacommunities.org/id/metropolitan-district-council/walsall ,WC152-413,31.07.2023,ADULT SOCIAL CARE,ADVANCE HEALTH CARE (UK) LTD,04/07/2023,567,6541-Domiciliary Care,THIRD PARTY PAYMENTS,PRIVATE CONTRACTOR,REVENUE
Walsall Council,http://opendatacommunities.org/id/metropolitan-district-council/walsall ,WC152-414,31.07.2023,ADULT SOCIAL CARE,ADVANCE HEALTH CARE (UK) LTD,04/07/2023,441,6541-Domiciliary Care,THIRD PARTY PAYMENTS,PRIVATE CONTRACTOR,REVENUE
Walsall Council,http://opendatacommunities.org/id/metropolitan-district-council/walsall ,WC152-415,31.07.2023,ADULT SOCIAL CARE,ADVANCE HEALTH CARE (UK) LTD,04/07/2023,567,6541-Domiciliary Care,THIRD PARTY PAYMENTS,PRIVATE CONTRACTOR,REVENUE
Walsall Council,http://opendatacommunities.org/id/metropolitan-district-council/walsall ,WC152-416,31.07.2023,ADULT SOCIAL CARE,ADVANCE HEALTH CARE (UK) LTD,04/07/2023,630,6541-Domiciliary Care,THIRD PARTY PAYMENTS,PRIVATE CONTRACTOR,REVENUE
Walsall Council,http://opendatacommunities.org/id/metropolitan-district-council/walsall ,WC152-417,31.07.2023,ADULT SOCIAL CARE,ADVANCE HEALTH CARE (UK) LTD,04/07/2023,630,6541-Domiciliary Care,THIRD PARTY PAYMENTS,PRIVATE CONTRACTOR,REVENUE
Walsall Council,http://opendatacommunities.org/id/metropolitan-district-council/walsall ,WC152-418,31.07.2023,ADULT SOCIAL CARE,ADVANCE HEALTH CARE (UK) LTD,04/07/2023,283.5,6541-Domiciliary Care,THIRD PARTY PAYMENTS,PRIVATE CONTRACTOR,REVENUE
Walsall Council,http://opendatacommunities.org/id/metropolitan-district-council/walsall ,WC152-419,31.07.2023,ADULT SOCIAL CARE,ADVANCE HEALTH CARE (UK) LTD,04/07/2023,301.5,6541-Domiciliary Care,THIRD PARTY PAYMENTS,PRIVATE CONTRACTOR,REVENUE
Walsall Council,http://opendatacommunities.org/id/metropolitan-district-council/walsall ,WC152-420,31.07.2023,ADULT SOCIAL CARE,ADVANCE HEALTH CARE (UK) LTD,04/07/2023,283.5,6541-Domiciliary Care,THIRD PARTY PAYMENTS,PRIVATE CONTRACTOR,REVENUE
Walsall Council,http://opendatacommunities.org/id/metropolitan-district-council/walsall ,WC152-421,31.07.2023,ADULT SOCIAL CARE,ADVANCE HEALTH CARE (UK) LTD,04/07/2023,420,6541-Domiciliary Care,THIRD PARTY PAYMENTS,PRIVATE CONTRACTOR,REVENUE
Walsall Council,http://opendatacommunities.org/id/metropolitan-district-council/walsall ,WC152-422,31.07.2023,ADULT SOCIAL CARE,ADVANCE HEALTH CARE (UK) LTD,04/07/2023,504,6541-Domiciliary Care,THIRD PARTY PAYMENTS,PRIVATE CONTRACTOR,REVENUE
Walsall Council,http://opendatacommunities.org/id/metropolitan-district-council/walsall ,WC152-423,31.07.2023,ADULT SOCIAL CARE,ADVANCE HEALTH CARE (UK) LTD,04/07/2023,252,6541-Domiciliary Care,THIRD PARTY PAYMENTS,PRIVATE CONTRACTOR,REVENUE
Walsall Council,http://opendatacommunities.org/id/metropolitan-district-council/walsall ,WC152-424,31.07.2023,ADULT SOCIAL CARE,ADVANCE HEALTH CARE (UK) LTD,04/07/2023,504,6541-Domiciliary Care,THIRD PARTY PAYMENTS,PRIVATE CONTRACTOR,REVENUE
Walsall Council,http://opendatacommunities.org/id/metropolitan-district-council/walsall ,WC152-425,31.07.2023,ADULT SOCIAL CARE,ADVANCE HEALTH CARE (UK) LTD,04/07/2023,441,6541-Domiciliary Care,THIRD PARTY PAYMENTS,PRIVATE CONTRACTOR,REVENUE
Walsall Council,http://opendatacommunities.org/id/metropolitan-district-council/walsall ,WC152-426,31.07.2023,ADULT SOCIAL CARE,ADVANCE HEALTH CARE (UK) LTD,04/07/2023,567,6541-Domiciliary Care,THIRD PARTY PAYMENTS,PRIVATE CONTRACTOR,REVENUE
Walsall Council,http://opendatacommunities.org/id/metropolitan-district-council/walsall ,WC152-427,31.07.2023,ADULT SOCIAL CARE,ADVANCE HEALTH CARE (UK) LTD,04/07/2023,630,6541-Domiciliary Care,THIRD PARTY PAYMENTS,PRIVATE CONTRACTOR,REVENUE
Walsall Council,http://opendatacommunities.org/id/metropolitan-district-council/walsall ,WC152-428,31.07.2023,ADULT SOCIAL CARE,ADVANCE HEALTH CARE (UK) LTD,04/07/2023,441,6541-Domiciliary Care,THIRD PARTY PAYMENTS,PRIVATE CONTRACTOR,REVENUE
Walsall Council,http://opendatacommunities.org/id/metropolitan-district-council/walsall ,WC152-429,31.07.2023,ADULT SOCIAL CARE,ADVANCE HEALTH CARE (UK) LTD,04/07/2023,567,6541-Domiciliary Care,THIRD PARTY PAYMENTS,PRIVATE CONTRACTOR,REVENUE
Walsall Council,http://opendatacommunities.org/id/metropolitan-district-council/walsall ,WC152-430,31.07.2023,ADULT SOCIAL CARE,ADVANCE HEALTH CARE (UK) LTD,04/07/2023,540,6541-Domiciliary Care,THIRD PARTY PAYMENTS,PRIVATE CONTRACTOR,REVENUE
Walsall Council,http://opendatacommunities.org/id/metropolitan-district-council/walsall ,WC152-431,31.07.2023,ADULT SOCIAL CARE,ADVANCE HEALTH CARE (UK) LTD,04/07/2023,504,6541-Domiciliary Care,THIRD PARTY PAYMENTS,PRIVATE CONTRACTOR,REVENUE
Walsall Council,http://opendatacommunities.org/id/metropolitan-district-council/walsall ,WC152-432,31.07.2023,ADULT SOCIAL CARE,ADVANCE HEALTH CARE (UK) LTD,04/07/2023,283.5,6541-Domiciliary Care,THIRD PARTY PAYMENTS,PRIVATE CONTRACTOR,REVENUE
Walsall Council,http://opendatacommunities.org/id/metropolitan-district-council/walsall ,WC152-433,31.07.2023,ADULT SOCIAL CARE,ADVANCE HEALTH CARE (UK) LTD,04/07/2023,378,6541-Domiciliary Care,THIRD PARTY PAYMENTS,PRIVATE CONTRACTOR,REVENUE
Walsall Council,http://opendatacommunities.org/id/metropolitan-district-council/walsall ,WC152-434,31.07.2023,ADULT SOCIAL CARE,ADVANCE HEALTH CARE (UK) LTD,04/07/2023,301.5,6541-Domiciliary Care,THIRD PARTY PAYMENTS,PRIVATE CONTRACTOR,REVENUE
Walsall Council,http://opendatacommunities.org/id/metropolitan-district-council/walsall ,WC152-435,31.07.2023,ADULT SOCIAL CARE,ADVANCE HEALTH CARE (UK) LTD,04/07/2023,576,6541-Domiciliary Care,THIRD PARTY PAYMENTS,PRIVATE CONTRACTOR,REVENUE
Walsall Council,http://opendatacommunities.org/id/metropolitan-district-council/walsall ,WC152-436,31.07.2023,ADULT SOCIAL CARE,ADVANCE HEALTH CARE (UK) LTD,04/07/2023,648,6541-Domiciliary Care,THIRD PARTY PAYMENTS,PRIVATE CONTRACTOR,REVENUE
Walsall Council,http://opendatacommunities.org/id/metropolitan-district-council/walsall ,WC152-437,31.07.2023,ADULT SOCIAL CARE,ADVANCE HEALTH CARE (UK) LTD,04/07/2023,576,6541-Domiciliary Care,THIRD PARTY PAYMENTS,PRIVATE CONTRACTOR,REVENUE
Walsall Council,http://opendatacommunities.org/id/metropolitan-district-council/walsall ,WC152-438,31.07.2023,ADULT SOCIAL CARE,ADVANCE HEALTH CARE (UK) LTD,18/07/2023,567,6541-Domiciliary Care,THIRD PARTY PAYMENTS,PRIVATE CONTRACTOR,REVENUE
Walsall Council,http://opendatacommunities.org/id/metropolitan-district-council/walsall ,WC152-439,31.07.2023,ADULT SOCIAL CARE,ADVANCE HEALTH CARE (UK) LTD,18/07/2023,567,6541-Domiciliary Care,THIRD PARTY PAYMENTS,PRIVATE CONTRACTOR,REVENUE
Walsall Council,http://opendatacommunities.org/id/metropolitan-district-council/walsall ,WC152-440,31.07.2023,ADULT SOCIAL CARE,ADVANCE HEALTH CARE (UK) LTD,18/07/2023,963,6541-Domiciliary Care,THIRD PARTY PAYMENTS,PRIVATE CONTRACTOR,REVENUE
Walsall Council,http://opendatacommunities.org/id/metropolitan-district-council/walsall ,WC152-441,31.07.2023,ADULT SOCIAL CARE,ADVANCE HEALTH CARE (UK) LTD,18/07/2023,441,6541-Domiciliary Care,THIRD PARTY PAYMENTS,PRIVATE CONTRACTOR,REVENUE
Walsall Council,http://opendatacommunities.org/id/metropolitan-district-council/walsall ,WC152-442,31.07.2023,ADULT SOCIAL CARE,ADVANCE HEALTH CARE (UK) LTD,18/07/2023,283.5,6541-Domiciliary Care,THIRD PARTY PAYMENTS,PRIVATE CONTRACTOR,REVENUE
Walsall Council,http://opendatacommunities.org/id/metropolitan-district-council/walsall ,WC152-443,31.07.2023,ADULT SOCIAL CARE,ADVANCE HEALTH CARE (UK) LTD,18/07/2023,420,6541-Domiciliary Care,THIRD PARTY PAYMENTS,PRIVATE CONTRACTOR,REVENUE
Walsall Council,http://opendatacommunities.org/id/metropolitan-district-council/walsall ,WC152-444,31.07.2023,ADULT SOCIAL CARE,ADVANCE HEALTH CARE (UK) LTD,18/07/2023,441,6541-Domiciliary Care,THIRD PARTY PAYMENTS,PRIVATE CONTRACTOR,REVENUE
Walsall Council,http://opendatacommunities.org/id/metropolitan-district-council/walsall ,WC152-445,31.07.2023,ADULT SOCIAL CARE,ADVANCE HEALTH CARE (UK) LTD,18/07/2023,630,6541-Domiciliary Care,THIRD PARTY PAYMENTS,PRIVATE CONTRACTOR,REVENUE
Walsall Council,http://opendatacommunities.org/id/metropolitan-district-council/walsall ,WC152-446,31.07.2023,ADULT SOCIAL CARE,ADVANCE HEALTH CARE (UK) LTD,18/07/2023,283.5,6541-Domiciliary Care,THIRD PARTY PAYMENTS,PRIVATE CONTRACTOR,REVENUE
Walsall Council,http://opendatacommunities.org/id/metropolitan-district-council/walsall ,WC152-447,31.07.2023,ADULT SOCIAL CARE,ADVANCE HEALTH CARE (UK) LTD,18/07/2023,378,6541-Domiciliary Care,THIRD PARTY PAYMENTS,PRIVATE CONTRACTOR,REVENUE
Walsall Council,http://opendatacommunities.org/id/metropolitan-district-council/walsall ,WC152-448,31.07.2023,ADULT SOCIAL CARE,ADVANCE HEALTH CARE (UK) LTD,18/07/2023,301.5,6541-Domiciliary Care,THIRD PARTY PAYMENTS,PRIVATE CONTRACTOR,REVENUE
Walsall Council,http://opendatacommunities.org/id/metropolitan-district-council/walsall ,WC152-449,31.07.2023,ADULT SOCIAL CARE,ADVANCE HEALTH CARE (UK) LTD,18/07/2023,378,6541-Domiciliary Care,THIRD PARTY PAYMENTS,PRIVATE CONTRACTOR,REVENUE
Walsall Council,http://opendatacommunities.org/id/metropolitan-district-council/walsall ,WC152-450,31.07.2023,ADULT SOCIAL CARE,ADVANCE HEALTH CARE (UK) LTD,18/07/2023,540,6541-Domiciliary Care,THIRD PARTY PAYMENTS,PRIVATE CONTRACTOR,REVENUE
Walsall Council,http://opendatacommunities.org/id/metropolitan-district-council/walsall ,WC152-451,31.07.2023,ADULT SOCIAL CARE,ADVANCE HEALTH CARE (UK) LTD,18/07/2023,567,6541-Domiciliary Care,THIRD PARTY PAYMENTS,PRIVATE CONTRACTOR,REVENUE
Walsall Council,http://opendatacommunities.org/id/metropolitan-district-council/walsall ,WC152-452,31.07.2023,ADULT SOCIAL CARE,ADVANCE HEALTH CARE (UK) LTD,18/07/2023,567,6541-Domiciliary Care,THIRD PARTY PAYMENTS,PRIVATE CONTRACTOR,REVENUE
Walsall Council,http://opendatacommunities.org/id/metropolitan-district-council/walsall ,WC152-453,31.07.2023,ADULT SOCIAL CARE,ADVANCE HEALTH CARE (UK) LTD,18/07/2023,630,6541-Domiciliary Care,THIRD PARTY PAYMENTS,PRIVATE CONTRACTOR,REVENUE
Walsall Council,http://opendatacommunities.org/id/metropolitan-district-council/walsall ,WC152-454,31.07.2023,ADULT SOCIAL CARE,ADVANCE HEALTH CARE (UK) LTD,18/07/2023,504,6541-Domiciliary Care,THIRD PARTY PAYMENTS,PRIVATE CONTRACTOR,REVENUE
Walsall Council,http://opendatacommunities.org/id/metropolitan-district-council/walsall ,WC152-455,31.07.2023,ADULT SOCIAL CARE,ADVANCE HEALTH CARE (UK) LTD,18/07/2023,252,6541-Domiciliary Care,THIRD PARTY PAYMENTS,PRIVATE CONTRACTOR,REVENUE
Walsall Council,http://opendatacommunities.org/id/metropolitan-district-council/walsall ,WC152-456,31.07.2023,ADULT SOCIAL CARE,ADVANCE HEALTH CARE (UK) LTD,18/07/2023,504,6541-Domiciliary Care,THIRD PARTY PAYMENTS,PRIVATE CONTRACTOR,REVENUE
Walsall Council,http://opendatacommunities.org/id/metropolitan-district-council/walsall ,WC152-457,31.07.2023,ADULT SOCIAL CARE,ADVANCE HEALTH CARE (UK) LTD,18/07/2023,504,6541-Domiciliary Care,THIRD PARTY PAYMENTS,PRIVATE CONTRACTOR,REVENUE
Walsall Council,http://opendatacommunities.org/id/metropolitan-district-council/walsall ,WC152-458,31.07.2023,ADULT SOCIAL CARE,ADVANCE HEALTH CARE (UK) LTD,18/07/2023,504,6541-Domiciliary Care,THIRD PARTY PAYMENTS,PRIVATE CONTRACTOR,REVENUE
Walsall Council,http://opendatacommunities.org/id/metropolitan-district-council/walsall ,WC152-459,31.07.2023,ADULT SOCIAL CARE,ADVANCE HEALTH CARE (UK) LTD,18/07/2023,283.5,6541-Domiciliary Care,THIRD PARTY PAYMENTS,PRIVATE CONTRACTOR,REVENUE
Walsall Council,http://opendatacommunities.org/id/metropolitan-district-council/walsall ,WC152-460,31.07.2023,ADULT SOCIAL CARE,ADVANCE HEALTH CARE (UK) LTD,18/07/2023,441,6541-Domiciliary Care,THIRD PARTY PAYMENTS,PRIVATE CONTRACTOR,REVENUE
Walsall Council,http://opendatacommunities.org/id/metropolitan-district-council/walsall ,WC152-461,31.07.2023,ADULT SOCIAL CARE,ADVANCE HEALTH CARE (UK) LTD,18/07/2023,567,6541-Domiciliary Care,THIRD PARTY PAYMENTS,PRIVATE CONTRACTOR,REVENUE
Walsall Council,http://opendatacommunities.org/id/metropolitan-district-council/walsall ,WC152-462,31.07.2023,ADULT SOCIAL CARE,ADVANCE HEALTH CARE (UK) LTD,18/07/2023,630,6541-Domiciliary Care,THIRD PARTY PAYMENTS,PRIVATE CONTRACTOR,REVENUE
Walsall Council,http://opendatacommunities.org/id/metropolitan-district-council/walsall ,WC152-463,31.07.2023,ADULT SOCIAL CARE,ADVANCE HEALTH CARE (UK) LTD,18/07/2023,441,6541-Domiciliary Care,THIRD PARTY PAYMENTS,PRIVATE CONTRACTOR,REVENUE
Walsall Council,http://opendatacommunities.org/id/metropolitan-district-council/walsall ,WC152-464,31.07.2023,ADULT SOCIAL CARE,ADVANCE HEALTH CARE (UK) LTD,18/07/2023,567,6541-Domiciliary Care,THIRD PARTY PAYMENTS,PRIVATE CONTRACTOR,REVENUE
Walsall Council,http://opendatacommunities.org/id/metropolitan-district-council/walsall ,WC152-465,31.07.2023,ADULT SOCIAL CARE,ADVANCE HEALTH CARE (UK) LTD,18/07/2023,301.5,6541-Domiciliary Care,THIRD PARTY PAYMENTS,PRIVATE CONTRACTOR,REVENUE
Walsall Council,http://opendatacommunities.org/id/metropolitan-district-council/walsall ,WC152-466,31.07.2023,ADULT SOCIAL CARE,ADVANCE HEALTH CARE (UK) LTD,18/07/2023,576,6541-Domiciliary Care,THIRD PARTY PAYMENTS,PRIVATE CONTRACTOR,REVENUE
Walsall Council,http://opendatacommunities.org/id/metropolitan-district-council/walsall ,WC152-467,31.07.2023,ADULT SOCIAL CARE,ADVANCE HEALTH CARE (UK) LTD,18/07/2023,756,6541-Domiciliary Care,THIRD PARTY PAYMENTS,PRIVATE CONTRACTOR,REVENUE
Walsall Council,http://opendatacommunities.org/id/metropolitan-district-council/walsall ,WC152-468,31.07.2023,ADULT SOCIAL CARE,ADVANCE HEALTH CARE (UK) LTD,18/07/2023,279,6541-Domiciliary Care,THIRD PARTY PAYMENTS,PRIVATE CONTRACTOR,REVENUE
Walsall Council,http://opendatacommunities.org/id/metropolitan-district-council/walsall ,WC152-469,31.07.2023,ADULT SOCIAL CARE,ADVANCE HEALTH CARE (UK) LTD,18/07/2023,567,6541-Domiciliary Care,THIRD PARTY PAYMENTS,PRIVATE CONTRACTOR,REVENUE
Walsall Council,http://opendatacommunities.org/id/metropolitan-district-council/walsall ,WC152-470,31.07.2023,ADULT SOCIAL CARE,ADVANCE HEALTH CARE (UK) LTD,18/07/2023,567,6541-Domiciliary Care,THIRD PARTY PAYMENTS,PRIVATE CONTRACTOR,REVENUE
Walsall Council,http://opendatacommunities.org/id/metropolitan-district-council/walsall ,WC152-471,31.07.2023,ADULT SOCIAL CARE,ADVANCE HEALTH CARE (UK) LTD,18/07/2023,963,6541-Domiciliary Care,THIRD PARTY PAYMENTS,PRIVATE CONTRACTOR,REVENUE
Walsall Council,http://opendatacommunities.org/id/metropolitan-district-council/walsall ,WC152-472,31.07.2023,ADULT SOCIAL CARE,ADVANCE HEALTH CARE (UK) LTD,18/07/2023,441,6541-Domiciliary Care,THIRD PARTY PAYMENTS,PRIVATE CONTRACTOR,REVENUE
Walsall Council,http://opendatacommunities.org/id/metropolitan-district-council/walsall ,WC152-473,31.07.2023,ADULT SOCIAL CARE,ADVANCE HEALTH CARE (UK) LTD,18/07/2023,378,6541-Domiciliary Care,THIRD PARTY PAYMENTS,PRIVATE CONTRACTOR,REVENUE
Walsall Council,http://opendatacommunities.org/id/metropolitan-district-council/walsall ,WC152-474,31.07.2023,ADULT SOCIAL CARE,ADVANCE HEALTH CARE (UK) LTD,18/07/2023,567,6541-Domiciliary Care,THIRD PARTY PAYMENTS,PRIVATE CONTRACTOR,REVENUE
Walsall Council,http://opendatacommunities.org/id/metropolitan-district-council/walsall ,WC152-475,31.07.2023,ADULT SOCIAL CARE,ADVANCE HEALTH CARE (UK) LTD,18/07/2023,441,6541-Domiciliary Care,THIRD PARTY PAYMENTS,PRIVATE CONTRACTOR,REVENUE
Walsall Council,http://opendatacommunities.org/id/metropolitan-district-council/walsall ,WC152-476,31.07.2023,ADULT SOCIAL CARE,ADVANCE HEALTH CARE (UK) LTD,18/07/2023,567,6541-Domiciliary Care,THIRD PARTY PAYMENTS,PRIVATE CONTRACTOR,REVENUE
Walsall Council,http://opendatacommunities.org/id/metropolitan-district-council/walsall ,WC152-477,31.07.2023,ADULT SOCIAL CARE,ADVANCE HEALTH CARE (UK) LTD,18/07/2023,630,6541-Domiciliary Care,THIRD PARTY PAYMENTS,PRIVATE CONTRACTOR,REVENUE
Walsall Council,http://opendatacommunities.org/id/metropolitan-district-council/walsall ,WC152-478,31.07.2023,ADULT SOCIAL CARE,ADVANCE HEALTH CARE (UK) LTD,18/07/2023,504,6541-Domiciliary Care,THIRD PARTY PAYMENTS,PRIVATE CONTRACTOR,REVENUE
Walsall Council,http://opendatacommunities.org/id/metropolitan-district-council/walsall ,WC152-479,31.07.2023,ADULT SOCIAL CARE,ADVANCE HEALTH CARE (UK) LTD,18/07/2023,283.5,6541-Domiciliary Care,THIRD PARTY PAYMENTS,PRIVATE CONTRACTOR,REVENUE
Walsall Council,http://opendatacommunities.org/id/metropolitan-district-council/walsall ,WC152-480,31.07.2023,ADULT SOCIAL CARE,ADVANCE HEALTH CARE (UK) LTD,18/07/2023,420,6541-Domiciliary Care,THIRD PARTY PAYMENTS,PRIVATE CONTRACTOR,REVENUE
Walsall Council,http://opendatacommunities.org/id/metropolitan-district-council/walsall ,WC152-481,31.07.2023,ADULT SOCIAL CARE,ADVANCE HEALTH CARE (UK) LTD,18/07/2023,301.5,6541-Domiciliary Care,THIRD PARTY PAYMENTS,PRIVATE CONTRACTOR,REVENUE
Walsall Council,http://opendatacommunities.org/id/metropolitan-district-council/walsall ,WC152-482,31.07.2023,ADULT SOCIAL CARE,ADVANCE HEALTH CARE (UK) LTD,18/07/2023,540,6541-Domiciliary Care,THIRD PARTY PAYMENTS,PRIVATE CONTRACTOR,REVENUE
Walsall Council,http://opendatacommunities.org/id/metropolitan-district-council/walsall ,WC152-483,31.07.2023,ADULT SOCIAL CARE,ADVANCE HEALTH CARE (UK) LTD,18/07/2023,630,6541-Domiciliary Care,THIRD PARTY PAYMENTS,PRIVATE CONTRACTOR,REVENUE
Walsall Council,http://opendatacommunities.org/id/metropolitan-district-council/walsall ,WC152-484,31.07.2023,ADULT SOCIAL CARE,ADVANCE HEALTH CARE (UK) LTD,18/07/2023,283.5,6541-Domiciliary Care,THIRD PARTY PAYMENTS,PRIVATE CONTRACTOR,REVENUE
Walsall Council,http://opendatacommunities.org/id/metropolitan-district-council/walsall ,WC152-485,31.07.2023,ADULT SOCIAL CARE,ADVANCE HEALTH CARE (UK) LTD,18/07/2023,252,6541-Domiciliary Care,THIRD PARTY PAYMENTS,PRIVATE CONTRACTOR,REVENUE
Walsall Council,http://opendatacommunities.org/id/metropolitan-district-council/walsall ,WC152-486,31.07.2023,ADULT SOCIAL CARE,ADVANCE HEALTH CARE (UK) LTD,18/07/2023,504,6541-Domiciliary Care,THIRD PARTY PAYMENTS,PRIVATE CONTRACTOR,REVENUE
Walsall Council,http://opendatacommunities.org/id/metropolitan-district-council/walsall ,WC152-487,31.07.2023,ADULT SOCIAL CARE,ADVANCE HEALTH CARE (UK) LTD,18/07/2023,441,6541-Domiciliary Care,THIRD PARTY PAYMENTS,PRIVATE CONTRACTOR,REVENUE
Walsall Council,http://opendatacommunities.org/id/metropolitan-district-council/walsall ,WC152-488,31.07.2023,ADULT SOCIAL CARE,ADVANCE HEALTH CARE (UK) LTD,18/07/2023,567,6541-Domiciliary Care,THIRD PARTY PAYMENTS,PRIVATE CONTRACTOR,REVENUE
Walsall Council,http://opendatacommunities.org/id/metropolitan-district-council/walsall ,WC152-489,31.07.2023,ADULT SOCIAL CARE,ADVANCE HEALTH CARE (UK) LTD,18/07/2023,630,6541-Domiciliary Care,THIRD PARTY PAYMENTS,PRIVATE CONTRACTOR,REVENUE
Walsall Council,http://opendatacommunities.org/id/metropolitan-district-council/walsall ,WC152-490,31.07.2023,ADULT SOCIAL CARE,ADVANCE HEALTH CARE (UK) LTD,18/07/2023,441,6541-Domiciliary Care,THIRD PARTY PAYMENTS,PRIVATE CONTRACTOR,REVENUE
Walsall Council,http://opendatacommunities.org/id/metropolitan-district-council/walsall ,WC152-491,31.07.2023,ADULT SOCIAL CARE,ADVANCE HEALTH CARE (UK) LTD,18/07/2023,567,6541-Domiciliary Care,THIRD PARTY PAYMENTS,PRIVATE CONTRACTOR,REVENUE
Walsall Council,http://opendatacommunities.org/id/metropolitan-district-council/walsall ,WC152-492,31.07.2023,ADULT SOCIAL CARE,ADVANCE HEALTH CARE (UK) LTD,18/07/2023,504,6541-Domiciliary Care,THIRD PARTY PAYMENTS,PRIVATE CONTRACTOR,REVENUE
Walsall Council,http://opendatacommunities.org/id/metropolitan-district-council/walsall ,WC152-493,31.07.2023,ADULT SOCIAL CARE,ADVANCE HEALTH CARE (UK) LTD,18/07/2023,252,6541-Domiciliary Care,THIRD PARTY PAYMENTS,PRIVATE CONTRACTOR,REVENUE
Walsall Council,http://opendatacommunities.org/id/metropolitan-district-council/walsall ,WC152-494,31.07.2023,ADULT SOCIAL CARE,ADVANCE HEALTH CARE (UK) LTD,18/07/2023,283.5,6541-Domiciliary Care,THIRD PARTY PAYMENTS,PRIVATE CONTRACTOR,REVENUE
Walsall Council,http://opendatacommunities.org/id/metropolitan-district-council/walsall ,WC152-495,31.07.2023,ADULT SOCIAL CARE,ADVANCE HEALTH CARE (UK) LTD,18/07/2023,576,6541-Domiciliary Care,THIRD PARTY PAYMENTS,PRIVATE CONTRACTOR,REVENUE
Walsall Council,http://opendatacommunities.org/id/metropolitan-district-council/walsall ,WC152-496,31.07.2023,ADULT SOCIAL CARE,ADVANCE HEALTH CARE (UK) LTD,18/07/2023,378,6541-Domiciliary Care,THIRD PARTY PAYMENTS,PRIVATE CONTRACTOR,REVENUE
Walsall Council,http://opendatacommunities.org/id/metropolitan-district-council/walsall ,WC152-497,31.07.2023,ADULT SOCIAL CARE,ADVANCE HEALTH CARE (UK) LTD,18/07/2023,301.5,6541-Domiciliary Care,THIRD PARTY PAYMENTS,PRIVATE CONTRACTOR,REVENUE
Walsall Council,http://opendatacommunities.org/id/metropolitan-district-council/walsall ,WC152-498,31.07.2023,ADULT SOCIAL CARE,ADVANCE HEALTH CARE (UK) LTD,18/07/2023,"1,296.00",6541-Domiciliary Care,THIRD PARTY PAYMENTS,PRIVATE CONTRACTOR,REVENUE
Walsall Council,http://opendatacommunities.org/id/metropolitan-district-council/walsall ,WC152-499,31.07.2023,ADULT SOCIAL CARE,ADVANCE HEALTH CARE (UK) LTD,18/07/2023,576,6541-Domiciliary Care,THIRD PARTY PAYMENTS,PRIVATE CONTRACTOR,REVENUE
Walsall Council,http://opendatacommunities.org/id/metropolitan-district-council/walsall ,WC152-500,31.07.2023,ADULT SOCIAL CARE,ADVANCE HEALTH CARE (UK) LTD,18/07/2023,756,6541-Domiciliary Care,THIRD PARTY PAYMENTS,PRIVATE CONTRACTOR,REVENUE
Walsall Council,http://opendatacommunities.org/id/metropolitan-district-council/walsall ,WC152-501,31.07.2023,ADULT SOCIAL CARE,ADVANCE HEALTH CARE (UK) LTD,27/07/2023,919.5,6554-Professional Services-Priv Contractor & Other Agencies,THIRD PARTY PAYMENTS,PRIVATE CONTRACTOR,REVENUE
Walsall Council,http://opendatacommunities.org/id/metropolitan-district-council/walsall ,WC152-502,31.07.2023,ADULT SOCIAL CARE,ADVANCE HEALTH CARE (UK) LTD,27/07/2023,"1,701.00",6554-Professional Services-Priv Contractor & Other Agencies,THIRD PARTY PAYMENTS,PRIVATE CONTRACTOR,REVENUE
Walsall Council,http://opendatacommunities.org/id/metropolitan-district-council/walsall ,WC152-503,31.07.2023,ADULT SOCIAL CARE,ADVANCE HEALTH CARE (UK) LTD,27/07/2023,315,6554-Professional Services-Priv Contractor & Other Agencies,THIRD PARTY PAYMENTS,PRIVATE CONTRACTOR,REVENUE
Walsall Council,http://opendatacommunities.org/id/metropolitan-district-council/walsall ,WC152-504,31.07.2023,ADULT SOCIAL CARE,ADVANCE HEALTH CARE (UK) LTD,27/07/2023,"1,332.00",6554-Professional Services-Priv Contractor & Other Agencies,THIRD PARTY PAYMENTS,PRIVATE CONTRACTOR,REVENUE
Walsall Council,http://opendatacommunities.org/id/metropolitan-district-council/walsall ,WC152-505,31.07.2023,ADULT SOCIAL CARE,ADVANCE HEALTH CARE (UK) LTD,27/07/2023,435,6554-Professional Services-Priv Contractor & Other Agencies,THIRD PARTY PAYMENTS,PRIVATE CONTRACTOR,REVENUE
Walsall Council,http://opendatacommunities.org/id/metropolitan-district-council/walsall ,WC152-506,31.07.2023,ADULT SOCIAL CARE,ADVANCE HEALTH CARE (UK) LTD,27/07/2023,738,6554-Professional Services-Priv Contractor & Other Agencies,THIRD PARTY PAYMENTS,PRIVATE CONTRACTOR,REVENUE
Walsall Council,http://opendatacommunities.org/id/metropolitan-district-council/walsall ,WC152-507,31.07.2023,ADULT SOCIAL CARE,ADVANCE HEALTH CARE (UK) LTD,27/07/2023,409.5,6554-Professional Services-Priv Contractor & Other Agencies,THIRD PARTY PAYMENTS,PRIVATE CONTRACTOR,REVENUE
Walsall Council,http://opendatacommunities.org/id/metropolitan-district-council/walsall ,WC152-508,31.07.2023,ADULT SOCIAL CARE,ADVANCE HEALTH CARE (UK) LTD,27/07/2023,351,6554-Professional Services-Priv Contractor & Other Agencies,THIRD PARTY PAYMENTS,PRIVATE CONTRACTOR,REVENUE
Walsall Council,http://opendatacommunities.org/id/metropolitan-district-council/walsall ,WC152-509,31.07.2023,ADULT SOCIAL CARE,ADVANCE HEALTH CARE (UK) LTD,27/07/2023,895.5,6554-Professional Services-Priv Contractor & Other Agencies,THIRD PARTY PAYMENTS,PRIVATE CONTRACTOR,REVENUE
Walsall Council,http://opendatacommunities.org/id/metropolitan-district-council/walsall ,WC152-510,31.07.2023,ADULT SOCIAL CARE,ADVANCE HEALTH CARE (UK) LTD,27/07/2023,522,6554-Professional Services-Priv Contractor & Other Agencies,THIRD PARTY PAYMENTS,PRIVATE CONTRACTOR,REVENUE
Walsall Council,http://opendatacommunities.org/id/metropolitan-district-council/walsall ,WC152-511,31.07.2023,ADULT SOCIAL CARE,ADVANCE HEALTH CARE (UK) LTD,27/07/2023,504,6554-Professional Services-Priv Contractor & Other Agencies,THIRD PARTY PAYMENTS,PRIVATE CONTRACTOR,REVENUE
Walsall Council,http://opendatacommunities.org/id/metropolitan-district-council/walsall ,WC152-512,31.07.2023,ADULT SOCIAL CARE,ADVANCE HEALTH CARE (UK) LTD,27/07/2023,594,6554-Professional Services-Priv Contractor & Other Agencies,THIRD PARTY PAYMENTS,PRIVATE CONTRACTOR,REVENUE
Walsall Council,http://opendatacommunities.org/id/metropolitan-district-council/walsall ,WC152-513,31.07.2023,ADULT SOCIAL CARE,ADVANCE HEALTH CARE (UK) LTD,27/07/2023,378,6554-Professional Services-Priv Contractor & Other Agencies,THIRD PARTY PAYMENTS,PRIVATE CONTRACTOR,REVENUE
Walsall Council,http://opendatacommunities.org/id/metropolitan-district-council/walsall ,WC152-514,31.07.2023,CHILDRENS,ADVENTURELAND DAY NURSERY,07/07/2023,640,1184-Transfer Payments-Other Schoolchildren/Student Related Items,TRANSFER PAYMENTS,SCHOOLCHILDREN/STUDENTS,REVENUE
Walsall Council,http://opendatacommunities.org/id/metropolitan-district-council/walsall ,WC152-515,31.07.2023,ADULT SOCIAL CARE,ADVINIA CARE HOMES LTD - HAMMERWICH HALL CARE HOME,04/07/2023,"2,413.36",6541-Residential EMI,THIRD PARTY PAYMENTS,PRIVATE CONTRACTOR,REVENUE
Walsall Council,http://opendatacommunities.org/id/metropolitan-district-council/walsall ,WC152-516,31.07.2023,ADULT SOCIAL CARE,ADVINIA CARE HOMES LTD - HAMMERWICH HALL CARE HOME,04/07/2023,"2,137.32",6541-Residential,THIRD PARTY PAYMENTS,PRIVATE CONTRACTOR,REVENUE
Walsall Council,http://opendatacommunities.org/id/metropolitan-district-council/walsall ,WC152-517,31.07.2023,ADULT SOCIAL CARE,ADVINIA CARE HOMES LTD - HAMMERWICH HALL CARE HOME,04/07/2023,350,6541-Residential EMI,THIRD PARTY PAYMENTS,PRIVATE CONTRACTOR,REVENUE
Walsall Council,http://opendatacommunities.org/id/metropolitan-district-council/walsall ,WC152-518,31.07.2023,ADULT SOCIAL CARE,ADVINIA CARE HOMES LTD - HAMMERWICH HALL CARE HOME,04/07/2023,350,6541-Residential,THIRD PARTY PAYMENTS,PRIVATE CONTRACTOR,REVENUE
Walsall Council,http://opendatacommunities.org/id/metropolitan-district-council/walsall ,WC152-519,31.07.2023,ECONOMY & ENVIRONMENT CAPITAL,AECOM INFRASTRUCTURE & ENVIRONMENT UK LIMITED,07/07/2023,"-2,669.47",7200-Consultants Fees,CAPITAL,"NEW CONSTRUCTION,CONVERSION & RENOVATION",CAPITAL
Walsall Council,http://opendatacommunities.org/id/metropolitan-district-council/walsall ,WC152-520,31.07.2023,ECONOMY & ENVIRONMENT CAPITAL,AECOM INFRASTRUCTURE & ENVIRONMENT UK LIMITED,07/07/2023,"2,669.47",7200-Consultants Fees,CAPITAL,"NEW CONSTRUCTION,CONVERSION & RENOVATION",CAPITAL
Walsall Council,http://opendatacommunities.org/id/metropolitan-district-council/walsall ,WC152-521,31.07.2023,ECONOMY & ENVIRONMENT CAPITAL,AECOM INFRASTRUCTURE & ENVIRONMENT UK LIMITED,19/07/2023,"4,314.06",7200-Consultants Fees,CAPITAL,"NEW CONSTRUCTION,CONVERSION & RENOVATION",CAPITAL
Walsall Council,http://opendatacommunities.org/id/metropolitan-district-council/walsall ,WC152-522,31.07.2023,ECONOMY & ENVIRONMENT CAPITAL,AECOM INFRASTRUCTURE & ENVIRONMENT UK LIMITED,31/07/2023,"-8,284.32",7200-Consultants Fees,CAPITAL,"NEW CONSTRUCTION,CONVERSION & RENOVATION",CAPITAL
Walsall Council,http://opendatacommunities.org/id/metropolitan-district-council/walsall ,WC152-523,31.07.2023,ECONOMY & ENVIRONMENT CAPITAL,AECOM INFRASTRUCTURE & ENVIRONMENT UK LIMITED,31/07/2023,"8,284.32",7200-Consultants Fees,CAPITAL,"NEW CONSTRUCTION,CONVERSION & RENOVATION",CAPITAL
Walsall Council,http://opendatacommunities.org/id/metropolitan-district-council/walsall ,WC152-524,31.07.2023,ECONOMY & ENVIRONMENT CAPITAL,AECOM INFRASTRUCTURE & ENVIRONMENT UK LIMITED,31/07/2023,"8,284.32",7200-Consultants Fees,CAPITAL,"NEW CONSTRUCTION,CONVERSION & RENOVATION",CAPITAL
Walsall Council,http://opendatacommunities.org/id/metropolitan-district-council/walsall ,WC152-525,31.07.2023,CHILDRENS,AFGHAN COMMUNITY & WELFARE CENTRE,03/07/2023,"3,599.46",6211-Professional Fees & Services,SUPPLIES & SERVICES,SERVICES,REVENUE
Walsall Council,http://opendatacommunities.org/id/metropolitan-district-council/walsall ,WC152-526,31.07.2023,ADULT SOCIAL CARE,REDACTED,06/07/2023,958.12,6541-Direct Payment,THIRD PARTY PAYMENTS,PRIVATE CONTRACTOR,REVENUE
Walsall Council,http://opendatacommunities.org/id/metropolitan-district-council/walsall ,WC152-527,31.07.2023,RESOURCES AND TRANSFORMATION,AGILE APPLICATIONS LIMITED,13/07/2023,"-5,232.00",6623-Computer Equipment,SUPPLIES & SERVICES,COMMUNICATIONS & COMPUTING,REVENUE
Walsall Council,http://opendatacommunities.org/id/metropolitan-district-council/walsall ,WC152-528,31.07.2023,RESOURCES AND TRANSFORMATION,AGILE APPLICATIONS LIMITED,13/07/2023,"5,232.00",6623-Computer Equipment,SUPPLIES & SERVICES,COMMUNICATIONS & COMPUTING,REVENUE
Walsall Council,http://opendatacommunities.org/id/metropolitan-district-council/walsall ,WC152-529,31.07.2023,RESOURCES AND TRANSFORMATION,AGILE APPLICATIONS LIMITED,13/07/2023,"39,240.00",6623-Computer Equipment,SUPPLIES & SERVICES,COMMUNICATIONS & COMPUTING,REVENUE
Walsall Council,http://opendatacommunities.org/id/metropolitan-district-council/walsall ,WC152-530,31.07.2023,CHILDRENS,REDACTED,19/07/2023,"1,112.81",6223-Special Guardianship Orders,TRANSFER PAYMENTS,CHILDREN SOCIAL SERVICES CLIENT,REVENUE
Walsall Council,http://opendatacommunities.org/id/metropolitan-district-council/walsall ,WC152-531,31.07.2023,CHILDRENS,REDACTED,27/07/2023,933.08,6223-Special Guardianship Orders,TRANSFER PAYMENTS,CHILDREN SOCIAL SERVICES CLIENT,REVENUE
Walsall Council,http://opendatacommunities.org/id/metropolitan-district-council/walsall ,WC152-532,31.07.2023,ADULT SOCIAL CARE,REDACTED,06/07/2023,"2,836.32",6541-Direct Payment,THIRD PARTY PAYMENTS,PRIVATE CONTRACTOR,REVENUE
Walsall Council,http://opendatacommunities.org/id/metropolitan-district-council/walsall ,WC152-533,31.07.2023,"ECONOMY, ENVIRONMENT & COMMUNITIES",AIRQUEE,26/07/2023,302.2,6413-Repair & Maintenance of Furniture & Equipment,SUPPLIES & SERVICES,EQUIPMENT FURNITURE & MATERIALS,REVENUE
Walsall Council,http://opendatacommunities.org/id/metropolitan-district-council/walsall ,WC152-534,31.07.2023,ADULT SOCIAL CARE,REDACTED,06/07/2023,"1,125.44",6541-Direct Payment,THIRD PARTY PAYMENTS,PRIVATE CONTRACTOR,REVENUE
Walsall Council,http://opendatacommunities.org/id/metropolitan-district-council/walsall ,WC152-535,31.07.2023,ADULT SOCIAL CARE,REDACTED,06/07/2023,494.12,6541-Direct Payment,THIRD PARTY PAYMENTS,PRIVATE CONTRACTOR,REVENUE
Walsall Council,http://opendatacommunities.org/id/metropolitan-district-council/walsall ,WC152-536,31.07.2023,ADULT SOCIAL CARE,REDACTED,06/07/2023,264,6541-Direct Payment,THIRD PARTY PAYMENTS,PRIVATE CONTRACTOR,REVENUE
Walsall Council,http://opendatacommunities.org/id/metropolitan-district-council/walsall ,WC152-537,31.07.2023,ADULT SOCIAL CARE,REDACTED,06/07/2023,"1,393.28",6541-Direct Payment,THIRD PARTY PAYMENTS,PRIVATE CONTRACTOR,REVENUE
Walsall Council,http://opendatacommunities.org/id/metropolitan-district-council/walsall ,WC152-538,31.07.2023,ADULT SOCIAL CARE,ALDBOURNE NURSING HOME LTD,04/07/2023,"6,282.88",6541-Nursing EMI,THIRD PARTY PAYMENTS,PRIVATE CONTRACTOR,REVENUE
Walsall Council,http://opendatacommunities.org/id/metropolitan-district-council/walsall ,WC152-539,31.07.2023,CHILDRENS,ALDRIDGE & BARONS LIMITED,17/07/2023,"1,995.00",6241-Hire of Vehicle with Driver,TRANSPORT,DIRECT TRANSPORT COSTS,REVENUE
Walsall Council,http://opendatacommunities.org/id/metropolitan-district-council/walsall ,WC152-540,31.07.2023,CHILDRENS,ALDRIDGE & BARONS LIMITED,17/07/2023,"2,414.00",6241-Hire of Vehicle with Driver,TRANSPORT,DIRECT TRANSPORT COSTS,REVENUE
Walsall Council,http://opendatacommunities.org/id/metropolitan-district-council/walsall ,WC152-541,31.07.2023,CHILDRENS,ALDRIDGE & BARONS LIMITED,17/07/2023,"3,440.00",6241-Hire of Vehicle with Driver,TRANSPORT,DIRECT TRANSPORT COSTS,REVENUE
Walsall Council,http://opendatacommunities.org/id/metropolitan-district-council/walsall ,WC152-542,31.07.2023,CHILDRENS,ALDRIDGE & BARONS LIMITED,17/07/2023,"2,470.00",6241-Hire of Vehicle with Driver,TRANSPORT,DIRECT TRANSPORT COSTS,REVENUE
Walsall Council,http://opendatacommunities.org/id/metropolitan-district-council/walsall ,WC152-543,31.07.2023,CHILDRENS,ALDRIDGE & BARONS LIMITED,17/07/2023,"3,110.40",6241-Hire of Vehicle with Driver,TRANSPORT,DIRECT TRANSPORT COSTS,REVENUE
Walsall Council,http://opendatacommunities.org/id/metropolitan-district-council/walsall ,WC152-544,31.07.2023,CHILDRENS,ALDRIDGE & BARONS LIMITED,17/07/2023,"3,000.00",6241-Hire of Vehicle with Driver,TRANSPORT,DIRECT TRANSPORT COSTS,REVENUE
Walsall Council,http://opendatacommunities.org/id/metropolitan-district-council/walsall ,WC152-545,31.07.2023,CHILDRENS,ALDRIDGE & BARONS LIMITED,17/07/2023,"2,660.00",6241-Hire of Vehicle with Driver,TRANSPORT,DIRECT TRANSPORT COSTS,REVENUE
Walsall Council,http://opendatacommunities.org/id/metropolitan-district-council/walsall ,WC152-546,31.07.2023,CHILDRENS,ALDRIDGE & BARONS LIMITED,17/07/2023,"2,280.00",6241-Hire of Vehicle with Driver,TRANSPORT,DIRECT TRANSPORT COSTS,REVENUE
Walsall Council,http://opendatacommunities.org/id/metropolitan-district-council/walsall ,WC152-547,31.07.2023,CHILDRENS,ALDRIDGE & BARONS LIMITED,17/07/2023,"2,400.00",6241-Hire of Vehicle with Driver,TRANSPORT,DIRECT TRANSPORT COSTS,REVENUE
Walsall Council,http://opendatacommunities.org/id/metropolitan-district-council/walsall ,WC152-548,31.07.2023,CHILDRENS,ALDRIDGE & BARONS LIMITED,17/07/2023,"2,755.00",6241-Hire of Vehicle with Driver,TRANSPORT,DIRECT TRANSPORT COSTS,REVENUE
Walsall Council,http://opendatacommunities.org/id/metropolitan-district-council/walsall ,WC152-549,31.07.2023,CHILDRENS,ALDRIDGE & BARONS LIMITED,17/07/2023,"2,743.22",6241-Hire of Vehicle with Driver,TRANSPORT,DIRECT TRANSPORT COSTS,REVENUE
Walsall Council,http://opendatacommunities.org/id/metropolitan-district-council/walsall ,WC152-550,31.07.2023,CHILDRENS,ALDRIDGE & BARONS LIMITED,17/07/2023,"2,223.00",6241-Hire of Vehicle with Driver,TRANSPORT,DIRECT TRANSPORT COSTS,REVENUE
Walsall Council,http://opendatacommunities.org/id/metropolitan-district-council/walsall ,WC152-551,31.07.2023,CHILDRENS,ALDRIDGE & BARONS LIMITED,17/07/2023,"3,420.00",6241-Hire of Vehicle with Driver,TRANSPORT,DIRECT TRANSPORT COSTS,REVENUE
Walsall Council,http://opendatacommunities.org/id/metropolitan-district-council/walsall ,WC152-552,31.07.2023,CHILDRENS,ALDRIDGE & BARONS LIMITED,17/07/2023,"2,120.40",6241-Hire of Vehicle with Driver,TRANSPORT,DIRECT TRANSPORT COSTS,REVENUE
Walsall Council,http://opendatacommunities.org/id/metropolitan-district-council/walsall ,WC152-553,31.07.2023,CHILDRENS,ALDRIDGE & BARONS LIMITED,17/07/2023,"2,760.00",6241-Hire of Vehicle with Driver,TRANSPORT,DIRECT TRANSPORT COSTS,REVENUE
Walsall Council,http://opendatacommunities.org/id/metropolitan-district-council/walsall ,WC152-554,31.07.2023,CHILDRENS,ALDRIDGE & BARONS LIMITED,17/07/2023,"2,000.00",6241-Hire of Vehicle with Driver,TRANSPORT,DIRECT TRANSPORT COSTS,REVENUE
Walsall Council,http://opendatacommunities.org/id/metropolitan-district-council/walsall ,WC152-555,31.07.2023,CHILDRENS,ALDRIDGE & BARONS LIMITED,17/07/2023,"3,172.00",6241-Hire of Vehicle with Driver,TRANSPORT,DIRECT TRANSPORT COSTS,REVENUE
Walsall Council,http://opendatacommunities.org/id/metropolitan-district-council/walsall ,WC152-556,31.07.2023,CHILDRENS,ALDRIDGE & BARONS LIMITED,17/07/2023,"1,800.00",6241-Hire of Vehicle with Driver,TRANSPORT,DIRECT TRANSPORT COSTS,REVENUE
Walsall Council,http://opendatacommunities.org/id/metropolitan-district-council/walsall ,WC152-557,31.07.2023,CHILDRENS,ALDRIDGE & BARONS LIMITED,17/07/2023,"1,368.00",6241-Hire of Vehicle with Driver,TRANSPORT,DIRECT TRANSPORT COSTS,REVENUE
Walsall Council,http://opendatacommunities.org/id/metropolitan-district-council/walsall ,WC152-558,31.07.2023,CHILDRENS,ALDRIDGE & BARONS LIMITED,17/07/2023,"1,980.00",6241-Hire of Vehicle with Driver,TRANSPORT,DIRECT TRANSPORT COSTS,REVENUE
Walsall Council,http://opendatacommunities.org/id/metropolitan-district-council/walsall ,WC152-559,31.07.2023,CHILDRENS,ALDRIDGE & BARONS LIMITED,17/07/2023,"2,811.60",6241-Hire of Vehicle with Driver,TRANSPORT,DIRECT TRANSPORT COSTS,REVENUE
Walsall Council,http://opendatacommunities.org/id/metropolitan-district-council/walsall ,WC152-560,31.07.2023,CHILDRENS,ALDRIDGE & BARONS LIMITED,17/07/2023,"1,717.00",6241-Hire of Vehicle with Driver,TRANSPORT,DIRECT TRANSPORT COSTS,REVENUE
Walsall Council,http://opendatacommunities.org/id/metropolitan-district-council/walsall ,WC152-561,31.07.2023,CHILDRENS,ALDRIDGE & BARONS LIMITED,17/07/2023,"2,124.00",6241-Hire of Vehicle with Driver,TRANSPORT,DIRECT TRANSPORT COSTS,REVENUE
Walsall Council,http://opendatacommunities.org/id/metropolitan-district-council/walsall ,WC152-562,31.07.2023,CHILDRENS,ALDRIDGE & BARONS LIMITED,17/07/2023,"1,818.30",6241-Hire of Vehicle with Driver,TRANSPORT,DIRECT TRANSPORT COSTS,REVENUE
Walsall Council,http://opendatacommunities.org/id/metropolitan-district-council/walsall ,WC152-563,31.07.2023,CHILDRENS,ALDRIDGE & BARONS LIMITED,17/07/2023,"3,360.00",6241-Hire of Vehicle with Driver,TRANSPORT,DIRECT TRANSPORT COSTS,REVENUE
Walsall Council,http://opendatacommunities.org/id/metropolitan-district-council/walsall ,WC152-564,31.07.2023,CHILDRENS,ALDRIDGE & BARONS LIMITED,17/07/2023,"1,188.00",6241-Hire of Vehicle with Driver,TRANSPORT,DIRECT TRANSPORT COSTS,REVENUE
Walsall Council,http://opendatacommunities.org/id/metropolitan-district-council/walsall ,WC152-565,31.07.2023,CHILDRENS,ALDRIDGE & BARONS LIMITED,17/07/2023,"2,200.00",6241-Hire of Vehicle with Driver,TRANSPORT,DIRECT TRANSPORT COSTS,REVENUE
Walsall Council,http://opendatacommunities.org/id/metropolitan-district-council/walsall ,WC152-566,31.07.2023,CHILDRENS,ALDRIDGE & BARONS LIMITED,17/07/2023,"2,390.00",6241-Hire of Vehicle with Driver,TRANSPORT,DIRECT TRANSPORT COSTS,REVENUE
Walsall Council,http://opendatacommunities.org/id/metropolitan-district-council/walsall ,WC152-567,31.07.2023,CHILDRENS,ALDRIDGE & BARONS LIMITED,17/07/2023,"2,850.00",6241-Hire of Vehicle with Driver,TRANSPORT,DIRECT TRANSPORT COSTS,REVENUE
Walsall Council,http://opendatacommunities.org/id/metropolitan-district-council/walsall ,WC152-568,31.07.2023,CHILDRENS,ALDRIDGE & BARONS LIMITED,17/07/2023,"2,160.00",6241-Hire of Vehicle with Driver,TRANSPORT,DIRECT TRANSPORT COSTS,REVENUE
Walsall Council,http://opendatacommunities.org/id/metropolitan-district-council/walsall ,WC152-569,31.07.2023,CHILDRENS,ALDRIDGE & BARONS LIMITED,17/07/2023,"2,375.00",6241-Hire of Vehicle with Driver,TRANSPORT,DIRECT TRANSPORT COSTS,REVENUE
Walsall Council,http://opendatacommunities.org/id/metropolitan-district-council/walsall ,WC152-570,31.07.2023,CHILDRENS,ALDRIDGE & BARONS LIMITED,17/07/2023,"2,500.00",6241-Hire of Vehicle with Driver,TRANSPORT,DIRECT TRANSPORT COSTS,REVENUE
Walsall Council,http://opendatacommunities.org/id/metropolitan-district-council/walsall ,WC152-571,31.07.2023,CHILDRENS,ALDRIDGE PREMIER TUITION LTD,10/07/2023,780,1220-Professional Fees & Services,SUPPLIES & SERVICES,SERVICES,REVENUE
Walsall Council,http://opendatacommunities.org/id/metropolitan-district-council/walsall ,WC152-572,31.07.2023,ADULT SOCIAL CARE,REDACTED,06/07/2023,"1,728.00",6541-Direct Payment,THIRD PARTY PAYMENTS,PRIVATE CONTRACTOR,REVENUE
Walsall Council,http://opendatacommunities.org/id/metropolitan-district-council/walsall ,WC152-573,31.07.2023,ADULT SOCIAL CARE,ALEXANDRA HOUSE CARE SERVICES LTD T/A STONEBRIDGE NURSING HOME,04/07/2023,"7,546.24",6541-Residential,THIRD PARTY PAYMENTS,PRIVATE CONTRACTOR,REVENUE
Walsall Council,http://opendatacommunities.org/id/metropolitan-district-council/walsall ,WC152-574,31.07.2023,ADULT SOCIAL CARE,ALEXANDRA HOUSE SUPPORT SERVICES LTD,04/07/2023,"5,936.00",6541-Residential,THIRD PARTY PAYMENTS,PRIVATE CONTRACTOR,REVENUE
Walsall Council,http://opendatacommunities.org/id/metropolitan-district-council/walsall ,WC152-575,31.07.2023,ADULT SOCIAL CARE,REDACTED,06/07/2023,"1,094.72",6541-Direct Payment,THIRD PARTY PAYMENTS,PRIVATE CONTRACTOR,REVENUE
Walsall Council,http://opendatacommunities.org/id/metropolitan-district-council/walsall ,WC152-576,31.07.2023,CHILDRENS,REDACTED,27/07/2023,355.56,6223-Special Guardianship Orders,TRANSFER PAYMENTS,CHILDREN SOCIAL SERVICES CLIENT,REVENUE
Walsall Council,http://opendatacommunities.org/id/metropolitan-district-council/walsall ,WC152-577,31.07.2023,CHILDRENS,ALL STARS WALSALL CIC,03/07/2023,"5,536.00",6211-Professional Fees & Services,SUPPLIES & SERVICES,SERVICES,REVENUE
Walsall Council,http://opendatacommunities.org/id/metropolitan-district-council/walsall ,WC152-578,31.07.2023,CHILDRENS,ALLIANCE CARE LTD,28/07/2023,324,6220-Professional Services-Priv Contractor & Other Agencies,THIRD PARTY PAYMENTS,PRIVATE CONTRACTOR,REVENUE
Walsall Council,http://opendatacommunities.org/id/metropolitan-district-council/walsall ,WC152-579,31.07.2023,ECONOMY & ENVIRONMENT CAPITAL,ALLIANCE LEISURE SERVICES LTD,06/07/2023,"-4,544.27",7200-Site Works Contractors,CAPITAL,"NEW CONSTRUCTION,CONVERSION & RENOVATION",CAPITAL
Walsall Council,http://opendatacommunities.org/id/metropolitan-district-council/walsall ,WC152-580,31.07.2023,ECONOMY & ENVIRONMENT CAPITAL,ALLIANCE LEISURE SERVICES LTD,06/07/2023,"4,544.27",7200-Site Works Contractors,CAPITAL,"NEW CONSTRUCTION,CONVERSION & RENOVATION",CAPITAL
Walsall Council,http://opendatacommunities.org/id/metropolitan-district-council/walsall ,WC152-581,31.07.2023,RESOURCES AND TRANSFORMATION,ALLIED PUBLICITY SERVICES (MANCHESTER) LIMITED T/A APS GROUP,14/07/2023,"1,619.50",6312-External Printing Services,SUPPLIES & SERVICES,PRINTING STATIONERY & GENERAL OFFICE,REVENUE
Walsall Council,http://opendatacommunities.org/id/metropolitan-district-council/walsall ,WC152-582,31.07.2023,ADULT SOCIAL CARE,ALMA COURT,04/07/2023,"4,861.00",6541-Nursing EMI,THIRD PARTY PAYMENTS,PRIVATE CONTRACTOR,REVENUE
Walsall Council,http://opendatacommunities.org/id/metropolitan-district-council/walsall ,WC152-583,31.07.2023,ADULT SOCIAL CARE,ALMA COURT,04/07/2023,"4,263.00",6541-Residential,THIRD PARTY PAYMENTS,PRIVATE CONTRACTOR,REVENUE
Walsall Council,http://opendatacommunities.org/id/metropolitan-district-council/walsall ,WC152-584,31.07.2023,ADULT SOCIAL CARE,ALMA COURT,04/07/2023,"4,055.28",6541-Nursing EMI,THIRD PARTY PAYMENTS,PRIVATE CONTRACTOR,REVENUE
Walsall Council,http://opendatacommunities.org/id/metropolitan-district-council/walsall ,WC152-585,31.07.2023,ADULT SOCIAL CARE,ALMA COURT,04/07/2023,"6,718.40",6541-Residential,THIRD PARTY PAYMENTS,PRIVATE CONTRACTOR,REVENUE
Walsall Council,http://opendatacommunities.org/id/metropolitan-district-council/walsall ,WC152-586,31.07.2023,ADULT SOCIAL CARE,ALMA COURT,04/07/2023,"4,855.28",6541-Nursing EMI,THIRD PARTY PAYMENTS,PRIVATE CONTRACTOR,REVENUE
Walsall Council,http://opendatacommunities.org/id/metropolitan-district-council/walsall ,WC152-587,31.07.2023,CHILDRENS,ALMOZENE NURSERY & CHILDRENS CENTRE,27/07/2023,270,6220-Creche Facilities,SUPPLIES & SERVICES,SERVICES,REVENUE
Walsall Council,http://opendatacommunities.org/id/metropolitan-district-council/walsall ,WC152-588,31.07.2023,CHILDRENS,ALMOZENE NURSERY & CHILDRENS CENTRE,20/07/2023,"1,074.45",1184-Other-Grants to Other Orgs,SUPPLIES & SERVICES,GRANTS (EXP) & SUBSCRIPTIONS,REVENUE
Walsall Council,http://opendatacommunities.org/id/metropolitan-district-council/walsall ,WC152-589,31.07.2023,CHILDRENS,ALMOZENE NURSERY & CHILDRENS CENTRE,03/07/2023,"4,798.72",6211-Professional Fees & Services,SUPPLIES & SERVICES,SERVICES,REVENUE
Walsall Council,http://opendatacommunities.org/id/metropolitan-district-council/walsall ,WC152-590,31.07.2023,ADULT SOCIAL CARE,ALPHA HEALTH CARE LTD,04/07/2023,"2,819.08",6541-Nursing EMI,THIRD PARTY PAYMENTS,PRIVATE CONTRACTOR,REVENUE
Walsall Council,http://opendatacommunities.org/id/metropolitan-district-council/walsall ,WC152-591,31.07.2023,ADULT SOCIAL CARE,ALPHA HEALTH CARE LTD,04/07/2023,"7,123.08",6541-Nursing EMI,THIRD PARTY PAYMENTS,PRIVATE CONTRACTOR,REVENUE
Walsall Council,http://opendatacommunities.org/id/metropolitan-district-council/walsall ,WC152-592,31.07.2023,ADULT SOCIAL CARE,ALPHA HEALTH CARE LTD,04/07/2023,"3,187.40",6541-Nursing EMI,THIRD PARTY PAYMENTS,PRIVATE CONTRACTOR,REVENUE
Walsall Council,http://opendatacommunities.org/id/metropolitan-district-council/walsall ,WC152-593,31.07.2023,ADULT SOCIAL CARE,ALPHA HEALTH CARE LTD,04/07/2023,"3,445.36",6541-Residential EMI,THIRD PARTY PAYMENTS,PRIVATE CONTRACTOR,REVENUE
Walsall Council,http://opendatacommunities.org/id/metropolitan-district-council/walsall ,WC152-594,31.07.2023,ADULT SOCIAL CARE,ALPHA HEALTH CARE LTD,04/07/2023,"2,813.36",6541-Residential EMI,THIRD PARTY PAYMENTS,PRIVATE CONTRACTOR,REVENUE
Walsall Council,http://opendatacommunities.org/id/metropolitan-district-council/walsall ,WC152-595,31.07.2023,ADULT SOCIAL CARE,ALPHA HEALTH CARE LTD,04/07/2023,"7,105.00",6541-Residential,THIRD PARTY PAYMENTS,PRIVATE CONTRACTOR,REVENUE
Walsall Council,http://opendatacommunities.org/id/metropolitan-district-council/walsall ,WC152-596,31.07.2023,ADULT SOCIAL CARE,ALPHA HEALTH CARE LTD,04/07/2023,"3,422.28",6541-Residential EMI,THIRD PARTY PAYMENTS,PRIVATE CONTRACTOR,REVENUE
Walsall Council,http://opendatacommunities.org/id/metropolitan-district-council/walsall ,WC152-597,31.07.2023,ADULT SOCIAL CARE,ALPHA HEALTH CARE LTD,04/07/2023,"3,422.28",6541-Residential EMI,THIRD PARTY PAYMENTS,PRIVATE CONTRACTOR,REVENUE
Walsall Council,http://opendatacommunities.org/id/metropolitan-district-council/walsall ,WC152-598,31.07.2023,ADULT SOCIAL CARE,ALPHA HEALTH CARE LTD,04/07/2023,"-10,552.54",6541-Residential EMI,THIRD PARTY PAYMENTS,PRIVATE CONTRACTOR,REVENUE
Walsall Council,http://opendatacommunities.org/id/metropolitan-district-council/walsall ,WC152-599,31.07.2023,ADULT SOCIAL CARE,ALPHA HEALTH CARE LTD,04/07/2023,"3,047.12",6541-Nursing,THIRD PARTY PAYMENTS,PRIVATE CONTRACTOR,REVENUE
Walsall Council,http://opendatacommunities.org/id/metropolitan-district-council/walsall ,WC152-600,31.07.2023,ADULT SOCIAL CARE,ALPHA HEALTH CARE LTD,04/07/2023,"4,027.32",6541-Residential EMI,THIRD PARTY PAYMENTS,PRIVATE CONTRACTOR,REVENUE
Walsall Council,http://opendatacommunities.org/id/metropolitan-district-council/walsall ,WC152-601,31.07.2023,ADULT SOCIAL CARE,ALPHA HEALTH CARE LTD,04/07/2023,"7,600.00",6541-Residential,THIRD PARTY PAYMENTS,PRIVATE CONTRACTOR,REVENUE
Walsall Council,http://opendatacommunities.org/id/metropolitan-district-council/walsall ,WC152-602,31.07.2023,ADULT SOCIAL CARE,ALPHA HEALTH CARE LTD,04/07/2023,"3,723.08",6541-Nursing EMI,THIRD PARTY PAYMENTS,PRIVATE CONTRACTOR,REVENUE
Walsall Council,http://opendatacommunities.org/id/metropolitan-district-council/walsall ,WC152-603,31.07.2023,ADULT SOCIAL CARE,ALPHA HEALTH CARE LTD,04/07/2023,"3,958.52",6541-Residential,THIRD PARTY PAYMENTS,PRIVATE CONTRACTOR,REVENUE
Walsall Council,http://opendatacommunities.org/id/metropolitan-district-council/walsall ,WC152-604,31.07.2023,ADULT SOCIAL CARE,ALPHA HEALTH CARE LTD,04/07/2023,"2,936.84",6541-Residential EMI,THIRD PARTY PAYMENTS,PRIVATE CONTRACTOR,REVENUE
Walsall Council,http://opendatacommunities.org/id/metropolitan-district-council/walsall ,WC152-605,31.07.2023,ADULT SOCIAL CARE,ALPHA HEALTH CARE LTD,04/07/2023,"2,413.36",6541-Residential EMI,THIRD PARTY PAYMENTS,PRIVATE CONTRACTOR,REVENUE
Walsall Council,http://opendatacommunities.org/id/metropolitan-district-council/walsall ,WC152-606,31.07.2023,ADULT SOCIAL CARE,ALPHA HEALTH CARE LTD,04/07/2023,"4,175.28",6541-Nursing EMI,THIRD PARTY PAYMENTS,PRIVATE CONTRACTOR,REVENUE
Walsall Council,http://opendatacommunities.org/id/metropolitan-district-council/walsall ,WC152-607,31.07.2023,ADULT SOCIAL CARE,ALPHA HEALTH CARE LTD,04/07/2023,"1,289.56",6541-Nursing,THIRD PARTY PAYMENTS,PRIVATE CONTRACTOR,REVENUE
Walsall Council,http://opendatacommunities.org/id/metropolitan-district-council/walsall ,WC152-608,31.07.2023,ADULT SOCIAL CARE,ALPHA HEALTH CARE LTD,04/07/2023,"3,090.44",6541-Residential,THIRD PARTY PAYMENTS,PRIVATE CONTRACTOR,REVENUE
Walsall Council,http://opendatacommunities.org/id/metropolitan-district-council/walsall ,WC152-609,31.07.2023,ADULT SOCIAL CARE,ALPHA HEALTH CARE LTD,04/07/2023,"3,567.32",6541-Residential EMI,THIRD PARTY PAYMENTS,PRIVATE CONTRACTOR,REVENUE
Walsall Council,http://opendatacommunities.org/id/metropolitan-district-council/walsall ,WC152-610,31.07.2023,ADULT SOCIAL CARE,ALPHA HEALTH CARE LTD,04/07/2023,"4,412.29",6541-Nursing EMI,THIRD PARTY PAYMENTS,PRIVATE CONTRACTOR,REVENUE
Walsall Council,http://opendatacommunities.org/id/metropolitan-district-council/walsall ,WC152-611,31.07.2023,ADULT SOCIAL CARE,ALPHA HEALTH CARE LTD,04/07/2023,"4,855.28",6541-Nursing EMI,THIRD PARTY PAYMENTS,PRIVATE CONTRACTOR,REVENUE
Walsall Council,http://opendatacommunities.org/id/metropolitan-district-council/walsall ,WC152-612,31.07.2023,ADULT SOCIAL CARE,ALPHA HEALTH CARE LTD,04/07/2023,"1,885.71",6554-Professional Services-Priv Contractor & Other Agencies,THIRD PARTY PAYMENTS,PRIVATE CONTRACTOR,REVENUE
Walsall Council,http://opendatacommunities.org/id/metropolitan-district-council/walsall ,WC152-613,31.07.2023,ADULT SOCIAL CARE,ALPHA HEALTH CARE LTD,04/07/2023,"2,742.85",6541-Nursing EMI,THIRD PARTY PAYMENTS,PRIVATE CONTRACTOR,REVENUE
Walsall Council,http://opendatacommunities.org/id/metropolitan-district-council/walsall ,WC152-614,31.07.2023,ADULT SOCIAL CARE,ALPHA HEALTH CARE LTD,04/07/2023,"5,055.28",6541-Nursing EMI,THIRD PARTY PAYMENTS,PRIVATE CONTRACTOR,REVENUE
Walsall Council,http://opendatacommunities.org/id/metropolitan-district-council/walsall ,WC152-615,31.07.2023,ADULT SOCIAL CARE,ALPHA HEALTH CARE LTD,04/07/2023,"7,600.00",6541-Residential,THIRD PARTY PAYMENTS,PRIVATE CONTRACTOR,REVENUE
Walsall Council,http://opendatacommunities.org/id/metropolitan-district-council/walsall ,WC152-616,31.07.2023,ADULT SOCIAL CARE,ALPHA HEALTH CARE LTD,04/07/2023,"3,928.57",6554-Professional Services-Priv Contractor & Other Agencies,THIRD PARTY PAYMENTS,PRIVATE CONTRACTOR,REVENUE
Walsall Council,http://opendatacommunities.org/id/metropolitan-district-council/walsall ,WC152-617,31.07.2023,ADULT SOCIAL CARE,ALPHA HEALTH CARE LTD,04/07/2023,"2,717.72",6541-Nursing EMI,THIRD PARTY PAYMENTS,PRIVATE CONTRACTOR,REVENUE
Walsall Council,http://opendatacommunities.org/id/metropolitan-district-council/walsall ,WC152-618,31.07.2023,ADULT SOCIAL CARE,ALPHA HEALTH CARE LTD,04/07/2023,"6,343.36",6541-Residential,THIRD PARTY PAYMENTS,PRIVATE CONTRACTOR,REVENUE
Walsall Council,http://opendatacommunities.org/id/metropolitan-district-council/walsall ,WC152-619,31.07.2023,ADULT SOCIAL CARE,ALPHA HEALTH CARE LTD,04/07/2023,"3,135.00",6541-Nursing,THIRD PARTY PAYMENTS,PRIVATE CONTRACTOR,REVENUE
Walsall Council,http://opendatacommunities.org/id/metropolitan-district-council/walsall ,WC152-620,31.07.2023,ADULT SOCIAL CARE,ALPHA HEALTH CARE LTD,04/07/2023,"2,905.36",6541-Nursing,THIRD PARTY PAYMENTS,PRIVATE CONTRACTOR,REVENUE
Walsall Council,http://opendatacommunities.org/id/metropolitan-district-council/walsall ,WC152-621,31.07.2023,ADULT SOCIAL CARE,ALPHA HEALTH CARE LTD,04/07/2023,"1,465.25",6541-Residential EMI,THIRD PARTY PAYMENTS,PRIVATE CONTRACTOR,REVENUE
Walsall Council,http://opendatacommunities.org/id/metropolitan-district-council/walsall ,WC152-622,31.07.2023,ADULT SOCIAL CARE,ALPHA HEALTH CARE LTD,04/07/2023,"4,916.14",6541-Residential EMI,THIRD PARTY PAYMENTS,PRIVATE CONTRACTOR,REVENUE
Walsall Council,http://opendatacommunities.org/id/metropolitan-district-council/walsall ,WC152-623,31.07.2023,ADULT SOCIAL CARE,ALPHA HEALTH CARE LTD,04/07/2023,"3,829.36",6541-Residential EMI,THIRD PARTY PAYMENTS,PRIVATE CONTRACTOR,REVENUE
Walsall Council,http://opendatacommunities.org/id/metropolitan-district-council/walsall ,WC152-624,31.07.2023,ADULT SOCIAL CARE,ALPHA HEALTH CARE LTD,04/07/2023,"7,600.00",6541-Residential,THIRD PARTY PAYMENTS,PRIVATE CONTRACTOR,REVENUE
Walsall Council,http://opendatacommunities.org/id/metropolitan-district-council/walsall ,WC152-625,31.07.2023,ADULT SOCIAL CARE,ALPHA HEALTH CARE LTD,04/07/2023,803.57,6554-Professional Services-Priv Contractor & Other Agencies,THIRD PARTY PAYMENTS,PRIVATE CONTRACTOR,REVENUE
Walsall Council,http://opendatacommunities.org/id/metropolitan-district-council/walsall ,WC152-626,31.07.2023,ADULT SOCIAL CARE,ALPHA HEALTH CARE LTD,04/07/2023,930.29,6541-Nursing EMI,THIRD PARTY PAYMENTS,PRIVATE CONTRACTOR,REVENUE
Walsall Council,http://opendatacommunities.org/id/metropolitan-district-council/walsall ,WC152-627,31.07.2023,CHILDRENS,ALPHABIOLABS,11/07/2023,468,6220-School Only Payments - Catering,THIRD PARTY PAYMENTS,INDEPENDENT UNIT WITHIN COUNCIL,REVENUE
Walsall Council,http://opendatacommunities.org/id/metropolitan-district-council/walsall ,WC152-628,31.07.2023,CHILDRENS,ALPHABIOLABS,21/07/2023,285,6220-School Only Payments - Catering,THIRD PARTY PAYMENTS,INDEPENDENT UNIT WITHIN COUNCIL,REVENUE
Walsall Council,http://opendatacommunities.org/id/metropolitan-district-council/walsall ,WC152-629,31.07.2023,CHILDRENS,ALPHABIOLABS,11/07/2023,"1,289.00",6220-School Only Payments - Catering,THIRD PARTY PAYMENTS,INDEPENDENT UNIT WITHIN COUNCIL,REVENUE
Walsall Council,http://opendatacommunities.org/id/metropolitan-district-council/walsall ,WC152-630,31.07.2023,CHILDRENS,ALPHABIOLABS,13/07/2023,859,6222-Professional Fees & Services,SUPPLIES & SERVICES,SERVICES,REVENUE
Walsall Council,http://opendatacommunities.org/id/metropolitan-district-council/walsall ,WC152-631,31.07.2023,CHILDRENS,ALPHABIOLABS,13/07/2023,285,6222-Professional Fees & Services,SUPPLIES & SERVICES,SERVICES,REVENUE
Walsall Council,http://opendatacommunities.org/id/metropolitan-district-council/walsall ,WC152-632,31.07.2023,CHILDRENS,ALPHABIOLABS,12/07/2023,645,6220-School Only Payments - Catering,THIRD PARTY PAYMENTS,INDEPENDENT UNIT WITHIN COUNCIL,REVENUE
Walsall Council,http://opendatacommunities.org/id/metropolitan-district-council/walsall ,WC152-633,31.07.2023,CHILDRENS,ALPHABIOLABS,06/07/2023,520,6220-School Only Payments - Catering,THIRD PARTY PAYMENTS,INDEPENDENT UNIT WITHIN COUNCIL,REVENUE
Walsall Council,http://opendatacommunities.org/id/metropolitan-district-council/walsall ,WC152-634,31.07.2023,CHILDRENS,ALPHABIOLABS,11/07/2023,"1,605.00",6222-Professional Fees & Services,SUPPLIES & SERVICES,SERVICES,REVENUE
Walsall Council,http://opendatacommunities.org/id/metropolitan-district-council/walsall ,WC152-635,31.07.2023,CHILDRENS,ALPHABIOLABS,26/07/2023,390,6220-School Only Payments - Catering,THIRD PARTY PAYMENTS,INDEPENDENT UNIT WITHIN COUNCIL,REVENUE
Walsall Council,http://opendatacommunities.org/id/metropolitan-district-council/walsall ,WC152-636,31.07.2023,CHILDRENS,ALPHABIOLABS,31/07/2023,995,6222-Professional Fees & Services,SUPPLIES & SERVICES,SERVICES,REVENUE
Walsall Council,http://opendatacommunities.org/id/metropolitan-district-council/walsall ,WC152-637,31.07.2023,ADULT SOCIAL CARE,REDACTED,06/07/2023,979.57,6541-Direct Payment,THIRD PARTY PAYMENTS,PRIVATE CONTRACTOR,REVENUE
Walsall Council,http://opendatacommunities.org/id/metropolitan-district-council/walsall ,WC152-638,31.07.2023,CHILDRENS,AMAH NURSERIES LIMITED T/A BANANA MOON WALSALL,20/07/2023,991.8,1184-Other-Grants to Other Orgs,SUPPLIES & SERVICES,GRANTS (EXP) & SUBSCRIPTIONS,REVENUE
Walsall Council,http://opendatacommunities.org/id/metropolitan-district-council/walsall ,WC152-639,31.07.2023,CHILDRENS,LITTLE BLOSSOMS CHILDMINDING,28/07/2023,430,6223-Creche Facilities,SUPPLIES & SERVICES,SERVICES,REVENUE
Walsall Council,http://opendatacommunities.org/id/metropolitan-district-council/walsall ,WC152-640,31.07.2023,CHILDRENS,AMANS TRAVEL LTD,17/07/2023,"3,800.00",6241-Hire of Vehicle with Driver,TRANSPORT,DIRECT TRANSPORT COSTS,REVENUE
Walsall Council,http://opendatacommunities.org/id/metropolitan-district-council/walsall ,WC152-641,31.07.2023,CHILDRENS,AMANS TRAVEL LTD,17/07/2023,"4,200.00",6241-Hire of Vehicle with Driver,TRANSPORT,DIRECT TRANSPORT COSTS,REVENUE
Walsall Council,http://opendatacommunities.org/id/metropolitan-district-council/walsall ,WC152-642,31.07.2023,CHILDRENS,AMANS TRAVEL LTD,17/07/2023,"2,700.00",6241-Hire of Vehicle with Driver,TRANSPORT,DIRECT TRANSPORT COSTS,REVENUE
Walsall Council,http://opendatacommunities.org/id/metropolitan-district-council/walsall ,WC152-643,31.07.2023,CHILDRENS,AMANS TRAVEL LTD,17/07/2023,"2,700.00",6241-Hire of Vehicle with Driver,TRANSPORT,DIRECT TRANSPORT COSTS,REVENUE
Walsall Council,http://opendatacommunities.org/id/metropolitan-district-council/walsall ,WC152-644,31.07.2023,CHILDRENS,AMANS TRAVEL LTD,17/07/2023,"3,800.00",6241-Hire of Vehicle with Driver,TRANSPORT,DIRECT TRANSPORT COSTS,REVENUE
Walsall Council,http://opendatacommunities.org/id/metropolitan-district-council/walsall ,WC152-645,31.07.2023,CHILDRENS,AMBER FOSTERING LTD,11/07/2023,500.86,6223-Independent Foster Care-Oth Agency Provision,THIRD PARTY PAYMENTS,PRIVATE CONTRACTOR,REVENUE
Walsall Council,http://opendatacommunities.org/id/metropolitan-district-council/walsall ,WC152-646,31.07.2023,ADULT SOCIAL CARE,REDACTED,06/07/2023,"2,024.84",6541-Direct Payment,THIRD PARTY PAYMENTS,PRIVATE CONTRACTOR,REVENUE
Walsall Council,http://opendatacommunities.org/id/metropolitan-district-council/walsall ,WC152-647,31.07.2023,ECONOMY & ENVIRONMENT CAPITAL,AMEY LG LIMITED,31/07/2023,"14,042.95",7200-Site Works Contractors,CAPITAL,"NEW CONSTRUCTION,CONVERSION & RENOVATION",CAPITAL
Walsall Council,http://opendatacommunities.org/id/metropolitan-district-council/walsall ,WC152-648,31.07.2023,"ECONOMY, ENVIRONMENT & COMMUNITIES",AMEY LG LIMITED,31/07/2023,"2,287.90",6411-Professional Services-Priv Contractor & Other Agencies,THIRD PARTY PAYMENTS,PRIVATE CONTRACTOR,REVENUE
Walsall Council,http://opendatacommunities.org/id/metropolitan-district-council/walsall ,WC152-649,31.07.2023,"ECONOMY, ENVIRONMENT & COMMUNITIES",AMEY LG LIMITED,31/07/2023,"2,599.40",6430-Repair & Maintenance of Furniture & Equipment,SUPPLIES & SERVICES,EQUIPMENT FURNITURE & MATERIALS,REVENUE
Walsall Council,http://opendatacommunities.org/id/metropolitan-district-council/walsall ,WC152-650,31.07.2023,ECONOMY & ENVIRONMENT CAPITAL,AMEY OW LTD,12/07/2023,"2,718.14",7200-Project Fees,CAPITAL,"NEW CONSTRUCTION,CONVERSION & RENOVATION",CAPITAL
Walsall Council,http://opendatacommunities.org/id/metropolitan-district-council/walsall ,WC152-651,31.07.2023,ECONOMY & ENVIRONMENT CAPITAL,AMEY OW LTD,28/07/2023,"9,388.36",7200-Project Fees,CAPITAL,"NEW CONSTRUCTION,CONVERSION & RENOVATION",CAPITAL
Walsall Council,http://opendatacommunities.org/id/metropolitan-district-council/walsall ,WC152-652,31.07.2023,"ECONOMY, ENVIRONMENT & COMMUNITIES",AMEY OW LTD,28/07/2023,"15,524.35",6411-Professional Fees & Services,SUPPLIES & SERVICES,SERVICES,REVENUE
Walsall Council,http://opendatacommunities.org/id/metropolitan-district-council/walsall ,WC152-653,31.07.2023,ECONOMY & ENVIRONMENT CAPITAL,AMEY OW LTD,28/07/2023,"2,769.50",7200-Project Fees,CAPITAL,"NEW CONSTRUCTION,CONVERSION & RENOVATION",CAPITAL
Walsall Council,http://opendatacommunities.org/id/metropolitan-district-council/walsall ,WC152-654,31.07.2023,ECONOMY & ENVIRONMENT CAPITAL,AMEY OW LTD,31/07/2023,"8,666.81",7200-Site Works Contractors,CAPITAL,"NEW CONSTRUCTION,CONVERSION & RENOVATION",CAPITAL
Walsall Council,http://opendatacommunities.org/id/metropolitan-district-council/walsall ,WC152-655,31.07.2023,CHILDRENS,AMG NURSING CARE SERVICES,20/07/2023,447.2,6220-Professional Fees & Services,SUPPLIES & SERVICES,SERVICES,REVENUE
Walsall Council,http://opendatacommunities.org/id/metropolitan-district-council/walsall ,WC152-656,31.07.2023,CHILDRENS,AMG NURSING CARE SERVICES,20/07/2023,361.2,6220-Professional Fees & Services,SUPPLIES & SERVICES,SERVICES,REVENUE
Walsall Council,http://opendatacommunities.org/id/metropolitan-district-council/walsall ,WC152-657,31.07.2023,CHILDRENS,AMG NURSING CARE SERVICES,20/07/2023,378.4,6220-Professional Fees & Services,SUPPLIES & SERVICES,SERVICES,REVENUE
Walsall Council,http://opendatacommunities.org/id/metropolitan-district-council/walsall ,WC152-658,31.07.2023,CHILDRENS,AMG NURSING CARE SERVICES,20/07/2023,344,6220-Professional Fees & Services,SUPPLIES & SERVICES,SERVICES,REVENUE
Walsall Council,http://opendatacommunities.org/id/metropolitan-district-council/walsall ,WC152-659,31.07.2023,CHILDRENS,AMG NURSING CARE SERVICES,20/07/2023,387,6220-Professional Fees & Services,SUPPLIES & SERVICES,SERVICES,REVENUE
Walsall Council,http://opendatacommunities.org/id/metropolitan-district-council/walsall ,WC152-660,31.07.2023,CHILDRENS,AMG NURSING CARE SERVICES,20/07/2023,344,6220-Professional Fees & Services,SUPPLIES & SERVICES,SERVICES,REVENUE
Walsall Council,http://opendatacommunities.org/id/metropolitan-district-council/walsall ,WC152-661,31.07.2023,CHILDRENS,AMG NURSING CARE SERVICES,20/07/2023,387,6220-Professional Fees & Services,SUPPLIES & SERVICES,SERVICES,REVENUE
Walsall Council,http://opendatacommunities.org/id/metropolitan-district-council/walsall ,WC152-662,31.07.2023,CHILDRENS,AMG NURSING CARE SERVICES,20/07/2023,349.28,6220-Professional Fees & Services,SUPPLIES & SERVICES,SERVICES,REVENUE
Walsall Council,http://opendatacommunities.org/id/metropolitan-district-council/walsall ,WC152-663,31.07.2023,CHILDRENS,AMG NURSING CARE SERVICES,20/07/2023,323.48,6220-Professional Fees & Services,SUPPLIES & SERVICES,SERVICES,REVENUE
Walsall Council,http://opendatacommunities.org/id/metropolitan-district-council/walsall ,WC152-664,31.07.2023,CHILDRENS,AMG NURSING CARE SERVICES,20/07/2023,344,6220-Professional Fees & Services,SUPPLIES & SERVICES,SERVICES,REVENUE
Walsall Council,http://opendatacommunities.org/id/metropolitan-district-council/walsall ,WC152-665,31.07.2023,CHILDRENS,AMG NURSING CARE SERVICES,20/07/2023,335.4,6220-Professional Fees & Services,SUPPLIES & SERVICES,SERVICES,REVENUE
Walsall Council,http://opendatacommunities.org/id/metropolitan-district-council/walsall ,WC152-666,31.07.2023,CHILDRENS,AMG NURSING CARE SERVICES,20/07/2023,344,6220-Professional Fees & Services,SUPPLIES & SERVICES,SERVICES,REVENUE
Walsall Council,http://opendatacommunities.org/id/metropolitan-district-council/walsall ,WC152-667,31.07.2023,CHILDRENS,AMG NURSING CARE SERVICES,20/07/2023,449.92,6220-Professional Fees & Services,SUPPLIES & SERVICES,SERVICES,REVENUE
Walsall Council,http://opendatacommunities.org/id/metropolitan-district-council/walsall ,WC152-668,31.07.2023,CHILDRENS,AMG NURSING CARE SERVICES,20/07/2023,378.4,6220-Professional Fees & Services,SUPPLIES & SERVICES,SERVICES,REVENUE
Walsall Council,http://opendatacommunities.org/id/metropolitan-district-council/walsall ,WC152-669,31.07.2023,CHILDRENS,AMG NURSING CARE SERVICES,20/07/2023,441.32,6220-Professional Fees & Services,SUPPLIES & SERVICES,SERVICES,REVENUE
Walsall Council,http://opendatacommunities.org/id/metropolitan-district-council/walsall ,WC152-670,31.07.2023,CHILDRENS,AMG NURSING CARE SERVICES,20/07/2023,387,6220-Professional Fees & Services,SUPPLIES & SERVICES,SERVICES,REVENUE
Walsall Council,http://opendatacommunities.org/id/metropolitan-district-council/walsall ,WC152-671,31.07.2023,CHILDRENS,AMG NURSING CARE SERVICES,20/07/2023,258,6220-Professional Fees & Services,SUPPLIES & SERVICES,SERVICES,REVENUE
Walsall Council,http://opendatacommunities.org/id/metropolitan-district-council/walsall ,WC152-672,31.07.2023,CHILDRENS,AMG NURSING CARE SERVICES,20/07/2023,387,6220-Professional Fees & Services,SUPPLIES & SERVICES,SERVICES,REVENUE
Walsall Council,http://opendatacommunities.org/id/metropolitan-district-council/walsall ,WC152-673,31.07.2023,CHILDRENS,AMG NURSING CARE SERVICES,20/07/2023,387,6220-Professional Fees & Services,SUPPLIES & SERVICES,SERVICES,REVENUE
Walsall Council,http://opendatacommunities.org/id/metropolitan-district-council/walsall ,WC152-674,31.07.2023,CHILDRENS,AMG NURSING CARE SERVICES,20/07/2023,387,6220-Professional Fees & Services,SUPPLIES & SERVICES,SERVICES,REVENUE
Walsall Council,http://opendatacommunities.org/id/metropolitan-district-council/walsall ,WC152-675,31.07.2023,CHILDRENS,AMG NURSING CARE SERVICES,20/07/2023,387,6220-Professional Fees & Services,SUPPLIES & SERVICES,SERVICES,REVENUE
Walsall Council,http://opendatacommunities.org/id/metropolitan-district-council/walsall ,WC152-676,31.07.2023,CHILDRENS,AMG NURSING CARE SERVICES,27/07/2023,349.49,6220-Professional Fees & Services,SUPPLIES & SERVICES,SERVICES,REVENUE
Walsall Council,http://opendatacommunities.org/id/metropolitan-district-council/walsall ,WC152-677,31.07.2023,CHILDRENS,AMG NURSING CARE SERVICES,27/07/2023,545.78,6220-Professional Fees & Services,SUPPLIES & SERVICES,SERVICES,REVENUE
Walsall Council,http://opendatacommunities.org/id/metropolitan-district-council/walsall ,WC152-678,31.07.2023,CHILDRENS,AMG NURSING CARE SERVICES,27/07/2023,713.34,6220-Professional Fees & Services,SUPPLIES & SERVICES,SERVICES,REVENUE
Walsall Council,http://opendatacommunities.org/id/metropolitan-district-council/walsall ,WC152-679,31.07.2023,CHILDRENS,AMG NURSING CARE SERVICES,27/07/2023,445.24,6220-Professional Fees & Services,SUPPLIES & SERVICES,SERVICES,REVENUE
Walsall Council,http://opendatacommunities.org/id/metropolitan-district-council/walsall ,WC152-680,31.07.2023,CHILDRENS,AMG NURSING CARE SERVICES,07/07/2023,428.24,6220-Professional Fees & Services,SUPPLIES & SERVICES,SERVICES,REVENUE
Walsall Council,http://opendatacommunities.org/id/metropolitan-district-council/walsall ,WC152-681,31.07.2023,CHILDRENS,AMG NURSING CARE SERVICES,07/07/2023,584.1,6220-Professional Fees & Services,SUPPLIES & SERVICES,SERVICES,REVENUE
Walsall Council,http://opendatacommunities.org/id/metropolitan-district-council/walsall ,WC152-682,31.07.2023,CHILDRENS,AMG NURSING CARE SERVICES,10/07/2023,-535.3,6220-Professional Fees & Services,SUPPLIES & SERVICES,SERVICES,REVENUE
Walsall Council,http://opendatacommunities.org/id/metropolitan-district-council/walsall ,WC152-683,31.07.2023,CHILDRENS,AMG NURSING CARE SERVICES,10/07/2023,535.3,6220-Professional Fees & Services,SUPPLIES & SERVICES,SERVICES,REVENUE
Walsall Council,http://opendatacommunities.org/id/metropolitan-district-council/walsall ,WC152-684,31.07.2023,CHILDRENS,AMG NURSING CARE SERVICES,10/07/2023,327.45,6220-Professional Fees & Services,SUPPLIES & SERVICES,SERVICES,REVENUE
Walsall Council,http://opendatacommunities.org/id/metropolitan-district-council/walsall ,WC152-685,31.07.2023,CHILDRENS,AMG NURSING CARE SERVICES,10/07/2023,687.3,6220-Professional Fees & Services,SUPPLIES & SERVICES,SERVICES,REVENUE
Walsall Council,http://opendatacommunities.org/id/metropolitan-district-council/walsall ,WC152-686,31.07.2023,CHILDRENS,AMG NURSING CARE SERVICES,17/07/2023,535.3,6220-Professional Fees & Services,SUPPLIES & SERVICES,SERVICES,REVENUE
Walsall Council,http://opendatacommunities.org/id/metropolitan-district-council/walsall ,WC152-687,31.07.2023,CHILDRENS,AMG NURSING CARE SERVICES,17/07/2023,560.16,6220-Professional Fees & Services,SUPPLIES & SERVICES,SERVICES,REVENUE
Walsall Council,http://opendatacommunities.org/id/metropolitan-district-council/walsall ,WC152-688,31.07.2023,CHILDRENS,AMG NURSING CARE SERVICES,24/07/2023,535.3,6220-Professional Fees & Services,SUPPLIES & SERVICES,SERVICES,REVENUE
Walsall Council,http://opendatacommunities.org/id/metropolitan-district-council/walsall ,WC152-689,31.07.2023,CHILDRENS,AMG NURSING CARE SERVICES,24/07/2023,584.1,6220-Professional Fees & Services,SUPPLIES & SERVICES,SERVICES,REVENUE
Walsall Council,http://opendatacommunities.org/id/metropolitan-district-council/walsall ,WC152-690,31.07.2023,CHILDRENS,AMG NURSING CARE SERVICES,28/07/2023,535.3,6220-Professional Fees & Services,SUPPLIES & SERVICES,SERVICES,REVENUE
Walsall Council,http://opendatacommunities.org/id/metropolitan-district-council/walsall ,WC152-691,31.07.2023,CHILDRENS,AMG NURSING CARE SERVICES,28/07/2023,545.8,6220-Professional Fees & Services,SUPPLIES & SERVICES,SERVICES,REVENUE
Walsall Council,http://opendatacommunities.org/id/metropolitan-district-council/walsall ,WC152-692,31.07.2023,ADULT SOCIAL CARE,AMG NURSING CARE SERVICES,05/07/2023,"11,246.00",6554-Professional Services-Priv Contractor & Other Agencies,THIRD PARTY PAYMENTS,PRIVATE CONTRACTOR,REVENUE
Walsall Council,http://opendatacommunities.org/id/metropolitan-district-council/walsall ,WC152-693,31.07.2023,"ECONOMY, ENVIRONMENT & COMMUNITIES",AMX SOLUTIONS LIMITED,26/07/2023,"4,283.52",6411-Materials,SUPPLIES & SERVICES,EQUIPMENT FURNITURE & MATERIALS,REVENUE
Walsall Council,http://opendatacommunities.org/id/metropolitan-district-council/walsall ,WC152-694,31.07.2023,CHILDRENS,REDACTED,27/07/2023,604,6223-Special Guardianship Orders,TRANSFER PAYMENTS,CHILDREN SOCIAL SERVICES CLIENT,REVENUE
Walsall Council,http://opendatacommunities.org/id/metropolitan-district-council/walsall ,WC152-695,31.07.2023,CHILDRENS,REDACTED,27/07/2023,374,6223-Special Guardianship Orders,TRANSFER PAYMENTS,CHILDREN SOCIAL SERVICES CLIENT,REVENUE
Walsall Council,http://opendatacommunities.org/id/metropolitan-district-council/walsall ,WC152-696,31.07.2023,ADULT SOCIAL CARE,ANCHOR HANOVER GROUP - BLOOMFIELD COURT,04/07/2023,"2,413.36",6541-Residential EMI,THIRD PARTY PAYMENTS,PRIVATE CONTRACTOR,REVENUE
Walsall Council,http://opendatacommunities.org/id/metropolitan-district-council/walsall ,WC152-697,31.07.2023,ADULT SOCIAL CARE,ANCHOR HANOVER GROUP - HARDEN HALL CARE HOME,04/07/2023,"2,413.36",6541-Residential EMI,THIRD PARTY PAYMENTS,PRIVATE CONTRACTOR,REVENUE
Walsall Council,http://opendatacommunities.org/id/metropolitan-district-council/walsall ,WC152-698,31.07.2023,ADULT SOCIAL CARE,ANCHOR HANOVER GROUP - HARDEN HALL CARE HOME,04/07/2023,"2,413.36",6541-Residential EMI,THIRD PARTY PAYMENTS,PRIVATE CONTRACTOR,REVENUE
Walsall Council,http://opendatacommunities.org/id/metropolitan-district-council/walsall ,WC152-699,31.07.2023,ADULT SOCIAL CARE,ANCHOR HANOVER GROUP - HARDEN HALL CARE HOME,04/07/2023,"2,413.36",6541-Residential EMI,THIRD PARTY PAYMENTS,PRIVATE CONTRACTOR,REVENUE
Walsall Council,http://opendatacommunities.org/id/metropolitan-district-council/walsall ,WC152-700,31.07.2023,ADULT SOCIAL CARE,ANCHOR HANOVER GROUP - HARDEN HALL CARE HOME,04/07/2023,"2,413.36",6541-Residential EMI,THIRD PARTY PAYMENTS,PRIVATE CONTRACTOR,REVENUE
Walsall Council,http://opendatacommunities.org/id/metropolitan-district-council/walsall ,WC152-701,31.07.2023,ADULT SOCIAL CARE,ANCHOR HANOVER GROUP - HARDEN HALL CARE HOME,04/07/2023,"2,613.36",6541-Residential EMI,THIRD PARTY PAYMENTS,PRIVATE CONTRACTOR,REVENUE
Walsall Council,http://opendatacommunities.org/id/metropolitan-district-council/walsall ,WC152-702,31.07.2023,ADULT SOCIAL CARE,ANCHOR HANOVER GROUP - HARDEN HALL CARE HOME,04/07/2023,"2,137.32",6541-Residential,THIRD PARTY PAYMENTS,PRIVATE CONTRACTOR,REVENUE
Walsall Council,http://opendatacommunities.org/id/metropolitan-district-council/walsall ,WC152-703,31.07.2023,ADULT SOCIAL CARE,ANCHOR HANOVER GROUP - HARDEN HALL CARE HOME,04/07/2023,"2,413.36",6541-Residential EMI,THIRD PARTY PAYMENTS,PRIVATE CONTRACTOR,REVENUE
Walsall Council,http://opendatacommunities.org/id/metropolitan-district-council/walsall ,WC152-704,31.07.2023,ADULT SOCIAL CARE,ANCHOR HANOVER GROUP - HARDEN HALL CARE HOME,04/07/2023,"2,413.36",6541-Residential EMI,THIRD PARTY PAYMENTS,PRIVATE CONTRACTOR,REVENUE
Walsall Council,http://opendatacommunities.org/id/metropolitan-district-council/walsall ,WC152-705,31.07.2023,ADULT SOCIAL CARE,ANCHOR HANOVER GROUP - HARDEN HALL CARE HOME,04/07/2023,"2,413.36",6541-Residential EMI,THIRD PARTY PAYMENTS,PRIVATE CONTRACTOR,REVENUE
Walsall Council,http://opendatacommunities.org/id/metropolitan-district-council/walsall ,WC152-706,31.07.2023,ADULT SOCIAL CARE,ANCHOR HANOVER GROUP - HARDEN HALL CARE HOME,04/07/2023,"2,745.36",6541-Residential EMI,THIRD PARTY PAYMENTS,PRIVATE CONTRACTOR,REVENUE
Walsall Council,http://opendatacommunities.org/id/metropolitan-district-council/walsall ,WC152-707,31.07.2023,ADULT SOCIAL CARE,ANCHOR HANOVER GROUP - HARDEN HALL CARE HOME,04/07/2023,"2,773.36",6541-Residential EMI,THIRD PARTY PAYMENTS,PRIVATE CONTRACTOR,REVENUE
Walsall Council,http://opendatacommunities.org/id/metropolitan-district-council/walsall ,WC152-708,31.07.2023,ADULT SOCIAL CARE,ANCHOR HANOVER GROUP - HARDEN HALL CARE HOME,04/07/2023,"2,595.32",6541-Residential EMI,THIRD PARTY PAYMENTS,PRIVATE CONTRACTOR,REVENUE
Walsall Council,http://opendatacommunities.org/id/metropolitan-district-council/walsall ,WC152-709,31.07.2023,ADULT SOCIAL CARE,ANCHOR HANOVER GROUP - HARDEN HALL CARE HOME,04/07/2023,"2,413.36",6541-Residential EMI,THIRD PARTY PAYMENTS,PRIVATE CONTRACTOR,REVENUE
Walsall Council,http://opendatacommunities.org/id/metropolitan-district-council/walsall ,WC152-710,31.07.2023,ADULT SOCIAL CARE,ANCHOR HANOVER GROUP - HARDEN HALL CARE HOME,04/07/2023,"2,773.36",6541-Residential EMI,THIRD PARTY PAYMENTS,PRIVATE CONTRACTOR,REVENUE
Walsall Council,http://opendatacommunities.org/id/metropolitan-district-council/walsall ,WC152-711,31.07.2023,ADULT SOCIAL CARE,ANCHOR HANOVER GROUP - HARDEN HALL CARE HOME,04/07/2023,"2,693.36",6541-Residential EMI,THIRD PARTY PAYMENTS,PRIVATE CONTRACTOR,REVENUE
Walsall Council,http://opendatacommunities.org/id/metropolitan-district-council/walsall ,WC152-712,31.07.2023,ADULT SOCIAL CARE,ANCHOR HANOVER GROUP - HARDEN HALL CARE HOME,04/07/2023,"2,413.36",6541-Residential EMI,THIRD PARTY PAYMENTS,PRIVATE CONTRACTOR,REVENUE
Walsall Council,http://opendatacommunities.org/id/metropolitan-district-council/walsall ,WC152-713,31.07.2023,ADULT SOCIAL CARE,ANCHOR HANOVER GROUP - HARDEN HALL CARE HOME,04/07/2023,"2,797.02",6541-Residential EMI,THIRD PARTY PAYMENTS,PRIVATE CONTRACTOR,REVENUE
Walsall Council,http://opendatacommunities.org/id/metropolitan-district-council/walsall ,WC152-714,31.07.2023,ADULT SOCIAL CARE,ANCHOR HANOVER GROUP - HARDEN HALL CARE HOME,04/07/2023,"2,413.36",6541-Residential EMI,THIRD PARTY PAYMENTS,PRIVATE CONTRACTOR,REVENUE
Walsall Council,http://opendatacommunities.org/id/metropolitan-district-council/walsall ,WC152-715,31.07.2023,ADULT SOCIAL CARE,ANCHOR HANOVER GROUP - HARDEN HALL CARE HOME,04/07/2023,"2,773.36",6541-Residential EMI,THIRD PARTY PAYMENTS,PRIVATE CONTRACTOR,REVENUE
Walsall Council,http://opendatacommunities.org/id/metropolitan-district-council/walsall ,WC152-716,31.07.2023,ADULT SOCIAL CARE,ANCHOR HANOVER GROUP - HARDEN HALL CARE HOME,04/07/2023,"2,413.36",6541-Residential EMI,THIRD PARTY PAYMENTS,PRIVATE CONTRACTOR,REVENUE
Walsall Council,http://opendatacommunities.org/id/metropolitan-district-council/walsall ,WC152-717,31.07.2023,ADULT SOCIAL CARE,ANCHOR HANOVER GROUP - HARDEN HALL CARE HOME,04/07/2023,"2,773.36",6541-Residential EMI,THIRD PARTY PAYMENTS,PRIVATE CONTRACTOR,REVENUE
Walsall Council,http://opendatacommunities.org/id/metropolitan-district-council/walsall ,WC152-718,31.07.2023,ADULT SOCIAL CARE,ANCHOR HANOVER GROUP - HARDEN HALL CARE HOME,04/07/2023,"2,137.32",6541-Residential,THIRD PARTY PAYMENTS,PRIVATE CONTRACTOR,REVENUE
Walsall Council,http://opendatacommunities.org/id/metropolitan-district-council/walsall ,WC152-719,31.07.2023,ADULT SOCIAL CARE,ANCHOR HANOVER GROUP - HARDEN HALL CARE HOME,04/07/2023,"2,773.36",6541-Residential EMI,THIRD PARTY PAYMENTS,PRIVATE CONTRACTOR,REVENUE
Walsall Council,http://opendatacommunities.org/id/metropolitan-district-council/walsall ,WC152-720,31.07.2023,ADULT SOCIAL CARE,ANCHOR HANOVER GROUP - HARDEN HALL CARE HOME,04/07/2023,"2,497.32",6541-Residential,THIRD PARTY PAYMENTS,PRIVATE CONTRACTOR,REVENUE
Walsall Council,http://opendatacommunities.org/id/metropolitan-district-council/walsall ,WC152-721,31.07.2023,ADULT SOCIAL CARE,ANCHOR HANOVER GROUP - HARDEN HALL CARE HOME,04/07/2023,"2,773.36",6541-Residential EMI,THIRD PARTY PAYMENTS,PRIVATE CONTRACTOR,REVENUE
Walsall Council,http://opendatacommunities.org/id/metropolitan-district-council/walsall ,WC152-722,31.07.2023,ADULT SOCIAL CARE,ANCHOR HANOVER GROUP - HARDEN HALL CARE HOME,04/07/2023,"2,773.36",6541-Residential EMI,THIRD PARTY PAYMENTS,PRIVATE CONTRACTOR,REVENUE
Walsall Council,http://opendatacommunities.org/id/metropolitan-district-council/walsall ,WC152-723,31.07.2023,ADULT SOCIAL CARE,REDACTED,06/07/2023,763.8,6541-Direct Payment,THIRD PARTY PAYMENTS,PRIVATE CONTRACTOR,REVENUE
Walsall Council,http://opendatacommunities.org/id/metropolitan-district-council/walsall ,WC152-724,31.07.2023,ADULT SOCIAL CARE,REDACTED,06/07/2023,"3,132.00",6541-Direct Payment,THIRD PARTY PAYMENTS,PRIVATE CONTRACTOR,REVENUE
Walsall Council,http://opendatacommunities.org/id/metropolitan-district-council/walsall ,WC152-725,31.07.2023,CHILDRENS,REDACTED,12/07/2023,802.62,6223-Transfer Payments - Social Services Clients,TRANSFER PAYMENTS,ADULT SOCIAL SERVICES CLIENT,REVENUE
Walsall Council,http://opendatacommunities.org/id/metropolitan-district-council/walsall ,WC152-726,31.07.2023,CHILDRENS,REDACTED,27/07/2023,401.32,6223-Special Guardianship Orders,TRANSFER PAYMENTS,CHILDREN SOCIAL SERVICES CLIENT,REVENUE
Walsall Council,http://opendatacommunities.org/id/metropolitan-district-council/walsall ,WC152-727,31.07.2023,CHILDRENS,REDACTED,27/07/2023,352,6223-Special Guardianship Orders,TRANSFER PAYMENTS,CHILDREN SOCIAL SERVICES CLIENT,REVENUE
Walsall Council,http://opendatacommunities.org/id/metropolitan-district-council/walsall ,WC152-728,31.07.2023,CHILDRENS,ANGELS AND BUTTERFLIES CHILDMINDING,20/07/2023,"1,020.60",1184-Other-Grants to Other Orgs,SUPPLIES & SERVICES,GRANTS (EXP) & SUBSCRIPTIONS,REVENUE
Walsall Council,http://opendatacommunities.org/id/metropolitan-district-council/walsall ,WC152-729,31.07.2023,ADULT SOCIAL CARE,REDACTED,06/07/2023,716.16,6541-Direct Payment,THIRD PARTY PAYMENTS,PRIVATE CONTRACTOR,REVENUE
Walsall Council,http://opendatacommunities.org/id/metropolitan-district-council/walsall ,WC152-730,31.07.2023,CHILDRENS,REDACTED,27/07/2023,534,6223-Internal Foster Carers-Carer Fees,TRANSFER PAYMENTS,CHILDREN SOCIAL SERVICES CLIENT,REVENUE
Walsall Council,http://opendatacommunities.org/id/metropolitan-district-council/walsall ,WC152-731,31.07.2023,CHILDRENS,REDACTED,27/07/2023,398,6223-Foster Carers Holiday/Christmas Allowances,TRANSFER PAYMENTS,CHILDREN SOCIAL SERVICES CLIENT,REVENUE
Walsall Council,http://opendatacommunities.org/id/metropolitan-district-council/walsall ,WC152-732,31.07.2023,CHILDRENS,REDACTED,27/07/2023,756,6223-Foster Carers Maintenance Allowance,TRANSFER PAYMENTS,CHILDREN SOCIAL SERVICES CLIENT,REVENUE
Walsall Council,http://opendatacommunities.org/id/metropolitan-district-council/walsall ,WC152-733,31.07.2023,ADULT SOCIAL CARE,REDACTED,06/07/2023,579.84,6541-Direct Payment,THIRD PARTY PAYMENTS,PRIVATE CONTRACTOR,REVENUE
Walsall Council,http://opendatacommunities.org/id/metropolitan-district-council/walsall ,WC152-734,31.07.2023,"ECONOMY, ENVIRONMENT & COMMUNITIES",REDACTED,26/07/2023,500,6414-Professional Fees & Services,SUPPLIES & SERVICES,SERVICES,REVENUE
Walsall Council,http://opendatacommunities.org/id/metropolitan-district-council/walsall ,WC152-735,31.07.2023,ADULT SOCIAL CARE,ANSON COURT RESIDENTIAL HOME,04/07/2023,"2,413.36",6541-Residential EMI,THIRD PARTY PAYMENTS,PRIVATE CONTRACTOR,REVENUE
Walsall Council,http://opendatacommunities.org/id/metropolitan-district-council/walsall ,WC152-736,31.07.2023,ADULT SOCIAL CARE,ANSON COURT RESIDENTIAL HOME,04/07/2023,"2,413.36",6541-Residential EMI,THIRD PARTY PAYMENTS,PRIVATE CONTRACTOR,REVENUE
Walsall Council,http://opendatacommunities.org/id/metropolitan-district-council/walsall ,WC152-737,31.07.2023,ADULT SOCIAL CARE,ANSON COURT RESIDENTIAL HOME,04/07/2023,"2,413.36",6541-Residential EMI,THIRD PARTY PAYMENTS,PRIVATE CONTRACTOR,REVENUE
Walsall Council,http://opendatacommunities.org/id/metropolitan-district-council/walsall ,WC152-738,31.07.2023,ADULT SOCIAL CARE,ANSON COURT RESIDENTIAL HOME,04/07/2023,"2,413.36",6541-Residential EMI,THIRD PARTY PAYMENTS,PRIVATE CONTRACTOR,REVENUE
Walsall Council,http://opendatacommunities.org/id/metropolitan-district-council/walsall ,WC152-739,31.07.2023,ADULT SOCIAL CARE,ANSON COURT RESIDENTIAL HOME,04/07/2023,"2,413.36",6541-Residential EMI,THIRD PARTY PAYMENTS,PRIVATE CONTRACTOR,REVENUE
Walsall Council,http://opendatacommunities.org/id/metropolitan-district-council/walsall ,WC152-740,31.07.2023,ADULT SOCIAL CARE,ANSON COURT RESIDENTIAL HOME,04/07/2023,"2,413.36",6541-Residential EMI,THIRD PARTY PAYMENTS,PRIVATE CONTRACTOR,REVENUE
Walsall Council,http://opendatacommunities.org/id/metropolitan-district-council/walsall ,WC152-741,31.07.2023,ADULT SOCIAL CARE,ANSON COURT RESIDENTIAL HOME,04/07/2023,"2,257.32",6541-Residential,THIRD PARTY PAYMENTS,PRIVATE CONTRACTOR,REVENUE
Walsall Council,http://opendatacommunities.org/id/metropolitan-district-council/walsall ,WC152-742,31.07.2023,ADULT SOCIAL CARE,ANSON COURT RESIDENTIAL HOME,04/07/2023,"2,137.32",6541-Residential,THIRD PARTY PAYMENTS,PRIVATE CONTRACTOR,REVENUE
Walsall Council,http://opendatacommunities.org/id/metropolitan-district-council/walsall ,WC152-743,31.07.2023,ADULT SOCIAL CARE,ANSON COURT RESIDENTIAL HOME,04/07/2023,"2,413.36",6541-Residential EMI,THIRD PARTY PAYMENTS,PRIVATE CONTRACTOR,REVENUE
Walsall Council,http://opendatacommunities.org/id/metropolitan-district-council/walsall ,WC152-744,31.07.2023,ADULT SOCIAL CARE,ANSON COURT RESIDENTIAL HOME,04/07/2023,"2,413.36",6541-Residential EMI,THIRD PARTY PAYMENTS,PRIVATE CONTRACTOR,REVENUE
Walsall Council,http://opendatacommunities.org/id/metropolitan-district-council/walsall ,WC152-745,31.07.2023,ADULT SOCIAL CARE,ANSON COURT RESIDENTIAL HOME,04/07/2023,"2,413.36",6541-Residential EMI,THIRD PARTY PAYMENTS,PRIVATE CONTRACTOR,REVENUE
Walsall Council,http://opendatacommunities.org/id/metropolitan-district-council/walsall ,WC152-746,31.07.2023,ADULT SOCIAL CARE,ANSON COURT RESIDENTIAL HOME,04/07/2023,"2,413.36",6541-Residential EMI,THIRD PARTY PAYMENTS,PRIVATE CONTRACTOR,REVENUE
Walsall Council,http://opendatacommunities.org/id/metropolitan-district-council/walsall ,WC152-747,31.07.2023,ADULT SOCIAL CARE,ANSON COURT RESIDENTIAL HOME,04/07/2023,948.11,6541-Residential EMI,THIRD PARTY PAYMENTS,PRIVATE CONTRACTOR,REVENUE
Walsall Council,http://opendatacommunities.org/id/metropolitan-district-council/walsall ,WC152-748,31.07.2023,ADULT SOCIAL CARE,ANSON COURT RESIDENTIAL HOME,04/07/2023,948.21,6541-Short Stay Residential,THIRD PARTY PAYMENTS,PRIVATE CONTRACTOR,REVENUE
Walsall Council,http://opendatacommunities.org/id/metropolitan-district-council/walsall ,WC152-749,31.07.2023,ADULT SOCIAL CARE,ANSON COURT RESIDENTIAL HOME,04/07/2023,763.33,6541-Residential,THIRD PARTY PAYMENTS,PRIVATE CONTRACTOR,REVENUE
Walsall Council,http://opendatacommunities.org/id/metropolitan-district-council/walsall ,WC152-750,31.07.2023,ADULT SOCIAL CARE,ANSON COURT RESIDENTIAL HOME,04/07/2023,"1,292.88",6541-Residential EMI,THIRD PARTY PAYMENTS,PRIVATE CONTRACTOR,REVENUE
Walsall Council,http://opendatacommunities.org/id/metropolitan-district-council/walsall ,WC152-751,31.07.2023,ADULT SOCIAL CARE,ANSON COURT RESIDENTIAL HOME,04/07/2023,689.54,6541-Residential EMI,THIRD PARTY PAYMENTS,PRIVATE CONTRACTOR,REVENUE
Walsall Council,http://opendatacommunities.org/id/metropolitan-district-council/walsall ,WC152-752,31.07.2023,ADULT SOCIAL CARE,REDACTED,06/07/2023,"1,134.00",6541-Direct Payment,THIRD PARTY PAYMENTS,PRIVATE CONTRACTOR,REVENUE
Walsall Council,http://opendatacommunities.org/id/metropolitan-district-council/walsall ,WC152-753,31.07.2023,CHILDRENS,REDACTED,27/07/2023,371.92,6223-Special Guardianship Orders,TRANSFER PAYMENTS,CHILDREN SOCIAL SERVICES CLIENT,REVENUE
Walsall Council,http://opendatacommunities.org/id/metropolitan-district-council/walsall ,WC152-754,31.07.2023,"ECONOMY, ENVIRONMENT & COMMUNITIES",APCOA PARKING SERVICES (UK) LTD,11/07/2023,"57,708.83",6411-Parking Enforcement Activity-Priv Contractor Fees,THIRD PARTY PAYMENTS,PRIVATE CONTRACTOR,REVENUE
Walsall Council,http://opendatacommunities.org/id/metropolitan-district-council/walsall ,WC152-755,31.07.2023,RESOURCES AND TRANSFORMATION,APCOA PARKING SERVICES (UK) LTD,12/07/2023,-836.78,6634-Oxygen Finance Rebates ,SUPPLIES & SERVICES,SERVICES,REVENUE
Walsall Council,http://opendatacommunities.org/id/metropolitan-district-council/walsall ,WC152-756,31.07.2023,CHILDRENS,APP CARZ,07/07/2023,639.2,6314-Other Travel Allowances,TRANSPORT,CAR ALLOWANCES,REVENUE
Walsall Council,http://opendatacommunities.org/id/metropolitan-district-council/walsall ,WC152-757,31.07.2023,CHILDRENS,APP CARZ,17/07/2023,704,6241-Hire of Vehicle with Driver,TRANSPORT,DIRECT TRANSPORT COSTS,REVENUE
Walsall Council,http://opendatacommunities.org/id/metropolitan-district-council/walsall ,WC152-758,31.07.2023,CHILDRENS,APP CARZ,17/07/2023,720,6241-Hire of Vehicle with Driver,TRANSPORT,DIRECT TRANSPORT COSTS,REVENUE
Walsall Council,http://opendatacommunities.org/id/metropolitan-district-council/walsall ,WC152-759,31.07.2023,CHILDRENS,APP CARZ,17/07/2023,"2,720.00",6241-Hire of Vehicle with Driver,TRANSPORT,DIRECT TRANSPORT COSTS,REVENUE
Walsall Council,http://opendatacommunities.org/id/metropolitan-district-council/walsall ,WC152-760,31.07.2023,CHILDRENS,APP CARZ,17/07/2023,"2,600.00",6241-Hire of Vehicle with Driver,TRANSPORT,DIRECT TRANSPORT COSTS,REVENUE
Walsall Council,http://opendatacommunities.org/id/metropolitan-district-council/walsall ,WC152-761,31.07.2023,CHILDRENS,APP CARZ,17/07/2023,910,6241-Hire of Vehicle with Driver,TRANSPORT,DIRECT TRANSPORT COSTS,REVENUE
Walsall Council,http://opendatacommunities.org/id/metropolitan-district-council/walsall ,WC152-762,31.07.2023,CHILDRENS,APP CARZ,17/07/2023,"2,400.00",6241-Hire of Vehicle with Driver,TRANSPORT,DIRECT TRANSPORT COSTS,REVENUE
Walsall Council,http://opendatacommunities.org/id/metropolitan-district-council/walsall ,WC152-763,31.07.2023,CHILDRENS,APP CARZ,17/07/2023,"-2,135.00",6241-Hire of Vehicle with Driver,TRANSPORT,DIRECT TRANSPORT COSTS,REVENUE
Walsall Council,http://opendatacommunities.org/id/metropolitan-district-council/walsall ,WC152-764,31.07.2023,CHILDRENS,APP CARZ,17/07/2023,"1,840.00",6241-Hire of Vehicle with Driver,TRANSPORT,DIRECT TRANSPORT COSTS,REVENUE
Walsall Council,http://opendatacommunities.org/id/metropolitan-district-council/walsall ,WC152-765,31.07.2023,CHILDRENS,APP CARZ,17/07/2023,"1,440.00",6241-Hire of Vehicle with Driver,TRANSPORT,DIRECT TRANSPORT COSTS,REVENUE
Walsall Council,http://opendatacommunities.org/id/metropolitan-district-council/walsall ,WC152-766,31.07.2023,CHILDRENS,APPOINT US SERVICES (MIDLANDS) CIC,13/07/2023,-822.25,6222-Professional Fees & Services,SUPPLIES & SERVICES,SERVICES,REVENUE
Walsall Council,http://opendatacommunities.org/id/metropolitan-district-council/walsall ,WC152-767,31.07.2023,CHILDRENS,APPOINT US SERVICES (MIDLANDS) CIC,13/07/2023,809.75,6222-Professional Fees & Services,SUPPLIES & SERVICES,SERVICES,REVENUE
Walsall Council,http://opendatacommunities.org/id/metropolitan-district-council/walsall ,WC152-768,31.07.2023,CHILDRENS,APPOINT US SERVICES (MIDLANDS) CIC,13/07/2023,822.25,6222-Professional Fees & Services,SUPPLIES & SERVICES,SERVICES,REVENUE
Walsall Council,http://opendatacommunities.org/id/metropolitan-district-council/walsall ,WC152-769,31.07.2023,CHILDRENS,APPOINT US SERVICES (MIDLANDS) CIC,13/07/2023,329.4,6222-Professional Fees & Services,SUPPLIES & SERVICES,SERVICES,REVENUE
Walsall Council,http://opendatacommunities.org/id/metropolitan-district-council/walsall ,WC152-770,31.07.2023,CHILDRENS,APPOINT US SERVICES (MIDLANDS) CIC,13/07/2023,391.45,6222-Professional Fees & Services,SUPPLIES & SERVICES,SERVICES,REVENUE
Walsall Council,http://opendatacommunities.org/id/metropolitan-district-council/walsall ,WC152-771,31.07.2023,CHILDRENS,APT FOR YOU CIC,03/07/2023,"1,932.06",6211-Professional Fees & Services,SUPPLIES & SERVICES,SERVICES,REVENUE
Walsall Council,http://opendatacommunities.org/id/metropolitan-district-council/walsall ,WC152-772,31.07.2023,CHILDRENS,ARBORETUM HOUSE LTD T/A SAFE HAVEN ARBORETUM HOUSE,11/07/2023,"24,760.00",6223-External Residential Care-Oth Agency Provision,THIRD PARTY PAYMENTS,PRIVATE CONTRACTOR,REVENUE
Walsall Council,http://opendatacommunities.org/id/metropolitan-district-council/walsall ,WC152-773,31.07.2023,ADULT SOCIAL CARE,ARBORETUM NURSING HOME.,26/07/2023,"2,601.00",6541-Nursing EMI,THIRD PARTY PAYMENTS,PRIVATE CONTRACTOR,REVENUE
Walsall Council,http://opendatacommunities.org/id/metropolitan-district-council/walsall ,WC152-774,31.07.2023,ADULT SOCIAL CARE,ARBORETUM NURSING HOME.,04/07/2023,"2,505.36",6541-Nursing,THIRD PARTY PAYMENTS,PRIVATE CONTRACTOR,REVENUE
Walsall Council,http://opendatacommunities.org/id/metropolitan-district-council/walsall ,WC152-775,31.07.2023,ADULT SOCIAL CARE,ARBORETUM NURSING HOME.,04/07/2023,"2,505.36",6541-Nursing,THIRD PARTY PAYMENTS,PRIVATE CONTRACTOR,REVENUE
Walsall Council,http://opendatacommunities.org/id/metropolitan-district-council/walsall ,WC152-776,31.07.2023,ADULT SOCIAL CARE,ARBORETUM NURSING HOME.,04/07/2023,"2,685.36",6541-Nursing,THIRD PARTY PAYMENTS,PRIVATE CONTRACTOR,REVENUE
Walsall Council,http://opendatacommunities.org/id/metropolitan-district-council/walsall ,WC152-777,31.07.2023,ADULT SOCIAL CARE,ARBORETUM NURSING HOME.,04/07/2023,"2,685.36",6541-Nursing,THIRD PARTY PAYMENTS,PRIVATE CONTRACTOR,REVENUE
Walsall Council,http://opendatacommunities.org/id/metropolitan-district-council/walsall ,WC152-778,31.07.2023,ADULT SOCIAL CARE,ARBORETUM NURSING HOME.,04/07/2023,"2,505.36",6541-Nursing,THIRD PARTY PAYMENTS,PRIVATE CONTRACTOR,REVENUE
Walsall Council,http://opendatacommunities.org/id/metropolitan-district-council/walsall ,WC152-779,31.07.2023,ADULT SOCIAL CARE,ARBORETUM NURSING HOME.,04/07/2023,"2,505.36",6541-Nursing,THIRD PARTY PAYMENTS,PRIVATE CONTRACTOR,REVENUE
Walsall Council,http://opendatacommunities.org/id/metropolitan-district-council/walsall ,WC152-780,31.07.2023,ADULT SOCIAL CARE,ARBORETUM NURSING HOME.,04/07/2023,"6,629.36",6541-Nursing,THIRD PARTY PAYMENTS,PRIVATE CONTRACTOR,REVENUE
Walsall Council,http://opendatacommunities.org/id/metropolitan-district-council/walsall ,WC152-781,31.07.2023,ADULT SOCIAL CARE,ARBORETUM NURSING HOME.,04/07/2023,"2,705.36",6541-Nursing,THIRD PARTY PAYMENTS,PRIVATE CONTRACTOR,REVENUE
Walsall Council,http://opendatacommunities.org/id/metropolitan-district-council/walsall ,WC152-782,31.07.2023,ADULT SOCIAL CARE,ARBORETUM NURSING HOME.,04/07/2023,"2,685.36",6541-Nursing,THIRD PARTY PAYMENTS,PRIVATE CONTRACTOR,REVENUE
Walsall Council,http://opendatacommunities.org/id/metropolitan-district-council/walsall ,WC152-783,31.07.2023,ADULT SOCIAL CARE,ARBORETUM NURSING HOME.,04/07/2023,"2,685.36",6541-Nursing,THIRD PARTY PAYMENTS,PRIVATE CONTRACTOR,REVENUE
Walsall Council,http://opendatacommunities.org/id/metropolitan-district-council/walsall ,WC152-784,31.07.2023,ADULT SOCIAL CARE,ARBORETUM NURSING HOME.,04/07/2023,"2,505.36",6541-Nursing,THIRD PARTY PAYMENTS,PRIVATE CONTRACTOR,REVENUE
Walsall Council,http://opendatacommunities.org/id/metropolitan-district-council/walsall ,WC152-785,31.07.2023,ADULT SOCIAL CARE,ARBORETUM NURSING HOME.,04/07/2023,"2,505.36",6541-Nursing,THIRD PARTY PAYMENTS,PRIVATE CONTRACTOR,REVENUE
Walsall Council,http://opendatacommunities.org/id/metropolitan-district-council/walsall ,WC152-786,31.07.2023,ADULT SOCIAL CARE,ARBORETUM NURSING HOME.,04/07/2023,"1,285.71",6554-Professional Services-Priv Contractor & Other Agencies,THIRD PARTY PAYMENTS,PRIVATE CONTRACTOR,REVENUE
Walsall Council,http://opendatacommunities.org/id/metropolitan-district-council/walsall ,WC152-787,31.07.2023,ADULT SOCIAL CARE,ARBORETUM NURSING HOME.,04/07/2023,257.14,6554-Professional Services-Priv Contractor & Other Agencies,THIRD PARTY PAYMENTS,PRIVATE CONTRACTOR,REVENUE
Walsall Council,http://opendatacommunities.org/id/metropolitan-district-council/walsall ,WC152-788,31.07.2023,ADULT SOCIAL CARE,ARBORETUM NURSING HOME.,04/07/2023,"1,542.86",6554-Professional Services-Priv Contractor & Other Agencies,THIRD PARTY PAYMENTS,PRIVATE CONTRACTOR,REVENUE
Walsall Council,http://opendatacommunities.org/id/metropolitan-district-council/walsall ,WC152-789,31.07.2023,ADULT SOCIAL CARE,ARBORETUM NURSING HOME.,04/07/2023,"3,652.47",6554-Professional Services-Priv Contractor & Other Agencies,THIRD PARTY PAYMENTS,PRIVATE CONTRACTOR,REVENUE
Walsall Council,http://opendatacommunities.org/id/metropolitan-district-council/walsall ,WC152-790,31.07.2023,ADULT SOCIAL CARE,ARBORETUM NURSING HOME.,04/07/2023,"2,549.12",6541-Nursing,THIRD PARTY PAYMENTS,PRIVATE CONTRACTOR,REVENUE
Walsall Council,http://opendatacommunities.org/id/metropolitan-district-council/walsall ,WC152-791,31.07.2023,ADULT SOCIAL CARE,ARBORETUM NURSING HOME.,04/07/2023,"2,505.36",6541-Nursing,THIRD PARTY PAYMENTS,PRIVATE CONTRACTOR,REVENUE
Walsall Council,http://opendatacommunities.org/id/metropolitan-district-council/walsall ,WC152-792,31.07.2023,ADULT SOCIAL CARE,ARBORETUM NURSING HOME.,04/07/2023,-830.11,6554-Professional Services-Priv Contractor & Other Agencies,THIRD PARTY PAYMENTS,PRIVATE CONTRACTOR,REVENUE
Walsall Council,http://opendatacommunities.org/id/metropolitan-district-council/walsall ,WC152-793,31.07.2023,ADULT SOCIAL CARE,ARBORETUM NURSING HOME.,04/07/2023,"3,800.00",6554-Professional Services-Priv Contractor & Other Agencies,THIRD PARTY PAYMENTS,PRIVATE CONTRACTOR,REVENUE
Walsall Council,http://opendatacommunities.org/id/metropolitan-district-council/walsall ,WC152-794,31.07.2023,ADULT SOCIAL CARE,ARBORETUM NURSING HOME.,04/07/2023,"3,649.12",6541-Nursing,THIRD PARTY PAYMENTS,PRIVATE CONTRACTOR,REVENUE
Walsall Council,http://opendatacommunities.org/id/metropolitan-district-council/walsall ,WC152-795,31.07.2023,ADULT SOCIAL CARE,ARBORETUM NURSING HOME.,04/07/2023,"3,993.60",6554-Professional Services-Priv Contractor & Other Agencies,THIRD PARTY PAYMENTS,PRIVATE CONTRACTOR,REVENUE
Walsall Council,http://opendatacommunities.org/id/metropolitan-district-council/walsall ,WC152-796,31.07.2023,ADULT SOCIAL CARE,ARBORETUM NURSING HOME.,04/07/2023,"2,705.36",6541-Nursing,THIRD PARTY PAYMENTS,PRIVATE CONTRACTOR,REVENUE
Walsall Council,http://opendatacommunities.org/id/metropolitan-district-council/walsall ,WC152-797,31.07.2023,ADULT SOCIAL CARE,ARBORETUM NURSING HOME.,04/07/2023,364.29,6554-Professional Services-Priv Contractor & Other Agencies,THIRD PARTY PAYMENTS,PRIVATE CONTRACTOR,REVENUE
Walsall Council,http://opendatacommunities.org/id/metropolitan-district-council/walsall ,WC152-798,31.07.2023,ADULT SOCIAL CARE,ARBORETUM NURSING HOME.,04/07/2023,"2,140.39",6554-Professional Services-Priv Contractor & Other Agencies,THIRD PARTY PAYMENTS,PRIVATE CONTRACTOR,REVENUE
Walsall Council,http://opendatacommunities.org/id/metropolitan-district-council/walsall ,WC152-799,31.07.2023,ADULT SOCIAL CARE,ARBORETUM NURSING HOME.,04/07/2023,"2,729.36",6541-Nursing,THIRD PARTY PAYMENTS,PRIVATE CONTRACTOR,REVENUE
Walsall Council,http://opendatacommunities.org/id/metropolitan-district-council/walsall ,WC152-800,31.07.2023,ADULT SOCIAL CARE,ARBORETUM NURSING HOME.,04/07/2023,"3,214.29",6554-Professional Services-Priv Contractor & Other Agencies,THIRD PARTY PAYMENTS,PRIVATE CONTRACTOR,REVENUE
Walsall Council,http://opendatacommunities.org/id/metropolitan-district-council/walsall ,WC152-801,31.07.2023,ADULT SOCIAL CARE,ARBORETUM NURSING HOME.,04/07/2023,"2,852.55",6554-Professional Services-Priv Contractor & Other Agencies,THIRD PARTY PAYMENTS,PRIVATE CONTRACTOR,REVENUE
Walsall Council,http://opendatacommunities.org/id/metropolitan-district-council/walsall ,WC152-802,31.07.2023,"ECONOMY, ENVIRONMENT & COMMUNITIES",ARBURY WALSALL,14/07/2023,373.23,6410-Materials,SUPPLIES & SERVICES,EQUIPMENT FURNITURE & MATERIALS,REVENUE
Walsall Council,http://opendatacommunities.org/id/metropolitan-district-council/walsall ,WC152-803,31.07.2023,RESOURCES AND TRANSFORMATION CAPITAL,ARCADIS,05/07/2023,"22,779.75",7300-Consultants Fees,CAPITAL,"NEW CONSTRUCTION,CONVERSION & RENOVATION",CAPITAL
Walsall Council,http://opendatacommunities.org/id/metropolitan-district-council/walsall ,WC152-804,31.07.2023,ECONOMY & ENVIRONMENT CAPITAL,ARCADIS,20/07/2023,"-34,853.48",7200-Project Fees,CAPITAL,"NEW CONSTRUCTION,CONVERSION & RENOVATION",CAPITAL
Walsall Council,http://opendatacommunities.org/id/metropolitan-district-council/walsall ,WC152-805,31.07.2023,ECONOMY & ENVIRONMENT CAPITAL,ARCADIS,20/07/2023,"34,853.48",7200-Project Fees,CAPITAL,"NEW CONSTRUCTION,CONVERSION & RENOVATION",CAPITAL
Walsall Council,http://opendatacommunities.org/id/metropolitan-district-council/walsall ,WC152-806,31.07.2023,ECONOMY & ENVIRONMENT CAPITAL,ARCADIS,20/07/2023,"34,853.48",7200-Project Fees,CAPITAL,"NEW CONSTRUCTION,CONVERSION & RENOVATION",CAPITAL
Walsall Council,http://opendatacommunities.org/id/metropolitan-district-council/walsall ,WC152-807,31.07.2023,CHILDRENS,ARNOLD CLARK CAR & VAN RENTAL,05/07/2023,286.56,6223-Hire of Vehicle with Driver,TRANSPORT,DIRECT TRANSPORT COSTS,REVENUE
Walsall Council,http://opendatacommunities.org/id/metropolitan-district-council/walsall ,WC152-808,31.07.2023,CHILDRENS,ARNOLD CLARK CAR & VAN RENTAL,31/07/2023,-729.39,6222-Hire of Vehicle,TRANSPORT,DIRECT TRANSPORT COSTS,REVENUE
Walsall Council,http://opendatacommunities.org/id/metropolitan-district-council/walsall ,WC152-809,31.07.2023,CHILDRENS,ARNOLD CLARK CAR & VAN RENTAL,31/07/2023,726.39,6222-Hire of Vehicle,TRANSPORT,DIRECT TRANSPORT COSTS,REVENUE
Walsall Council,http://opendatacommunities.org/id/metropolitan-district-council/walsall ,WC152-810,31.07.2023,CHILDRENS,ARNOLD CLARK CAR & VAN RENTAL,31/07/2023,729.39,6222-Hire of Vehicle,TRANSPORT,DIRECT TRANSPORT COSTS,REVENUE
Walsall Council,http://opendatacommunities.org/id/metropolitan-district-council/walsall ,WC152-811,31.07.2023,ADULT SOCIAL CARE,ASH GRANGE CARE HOME,04/07/2023,"2,137.32",6541-Residential,THIRD PARTY PAYMENTS,PRIVATE CONTRACTOR,REVENUE
Walsall Council,http://opendatacommunities.org/id/metropolitan-district-council/walsall ,WC152-812,31.07.2023,ADULT SOCIAL CARE,ASH GRANGE CARE HOME,04/07/2023,"2,819.08",6541-Nursing EMI,THIRD PARTY PAYMENTS,PRIVATE CONTRACTOR,REVENUE
Walsall Council,http://opendatacommunities.org/id/metropolitan-district-council/walsall ,WC152-813,31.07.2023,ADULT SOCIAL CARE,ASH GRANGE CARE HOME,04/07/2023,"2,472.88",6541-Residential,THIRD PARTY PAYMENTS,PRIVATE CONTRACTOR,REVENUE
